PublisherLabel,PublisherURI,"Body name","Body","Service area","Service division","Responsible unit","Expenses type","Date","Transaction","Amount","Supplier name"
"Bracknell Forest Council","http://opendatacommunities.org/id/unitary-authority/bracknell-forest","Bracknell Forest Council","00MA","Homelessness","Bed/Breakfast Accommodation","Independent Fostering (Non BFBC)","External Agency Services",15/07/2015 00:00:00,"60012352",1688.33,"BUS CHG CARD"
"Bracknell Forest Council","http://opendatacommunities.org/id/unitary-authority/bracknell-forest","Bracknell Forest Council","00MA","Homelessness","Bed/Breakfast Accommodation","Housing Local Welfare Provision - Programme","External Agency Services",17/05/2015 00:00:00,"60012278",1577.49,"ACCOMODATION/MEALS"
"Bracknell Forest Council","http://opendatacommunities.org/id/unitary-authority/bracknell-forest","Bracknell Forest Council","00MA","Open Spaces","Countryside Recreation & Management","Housing Local Welfare Provision - Programme","R&M - Planned",27/08/2015 00:00:00,"6588572",780,"DENNIS ARTIS"
"Bracknell Forest Council","http://opendatacommunities.org/id/unitary-authority/bracknell-forest","Bracknell Forest Council","00MA","Open Spaces","Community Parks & Open Spaces","Internal Audit","Contracted Services",20/07/2015 00:00:00,"6587956",550,"DENNIS ARTIS"
"Bracknell Forest Council","http://opendatacommunities.org/id/unitary-authority/bracknell-forest","Bracknell Forest Council","00MA","Support Services & Management Costs","Training","Internal Audit","Training Costs",29/07/2015 00:00:00,"6586498",500,"REBECCA STEPHENS"
"Bracknell Forest Council","http://opendatacommunities.org/id/unitary-authority/bracknell-forest","Bracknell Forest Council","00MA","Un Ringfenced Grants","Home Office POCA Grant","Housing Local Welfare Provision - Programme","Legal Fees",14/07/2015 00:00:00,"6586467",1000,"MR LEE REYNOLDS"
"Bracknell Forest Council","http://opendatacommunities.org/id/unitary-authority/bracknell-forest","Bracknell Forest Council","00MA","Services for Young People","Targeted services for young people","Easthampstead House","Primary Care Trust",26/08/2015 00:00:00,"6588283",540,"DR SARAH TILLETT"
"Bracknell Forest Council","http://opendatacommunities.org/id/unitary-authority/bracknell-forest","Bracknell Forest Council","00MA","Cemeteries, Crematoria & Mortuary Services","Cemeteries & Crematorium","Easthampstead Park Conference Centre","Contracted Services",30/05/2015 00:00:00,"6582254",2170,"NEIL CURTIS"
"Bracknell Forest Council","http://opendatacommunities.org/id/unitary-authority/bracknell-forest","Bracknell Forest Council","00MA","Open Spaces","Countryside Recreation & Management","Leisure DSO - Downshire Catering","R&M - Planned",23/06/2015 00:00:00,"6584067",550,"DENNIS ARTIS"
"Bracknell Forest Council","http://opendatacommunities.org/id/unitary-authority/bracknell-forest","Bracknell Forest Council","00MA","Central Support Services - COF","Valuers","Independent Fostering (Non BFBC)","Consultants Fees",26/05/2015 00:00:00,"6581643",4000,"VAIL WILLIAMS"
"Bracknell Forest Council","http://opendatacommunities.org/id/unitary-authority/bracknell-forest","Bracknell Forest Council","00MA","Open Spaces","Countryside Recreation & Management","Independent Fostering (Non BFBC)","R&M - Planned",30/06/2015 00:00:00,"6584276",700,"DENNIS ARTIS"
"Bracknell Forest Council","http://opendatacommunities.org/id/unitary-authority/bracknell-forest","Bracknell Forest Council","00MA","Management and Support Services - CYPL","Unallocated High Needs Related Expenditure","Easthampstead Park Conference Centre","Voluntary Sector Service Providers",06/07/2015 00:00:00,"6588018",700,"TANYA TATHAM"
"Bracknell Forest Council","http://opendatacommunities.org/id/unitary-authority/bracknell-forest","Bracknell Forest Council","00MA","Management and Support Services - CYPL","Unallocated High Needs Related Expenditure","Easthampstead Park Conference Centre","Voluntary Sector Service Providers",31/07/2015 00:00:00,"6588025",675.49,"REBECCA DANDY"
"Bracknell Forest Council","http://opendatacommunities.org/id/unitary-authority/bracknell-forest","Bracknell Forest Council","00MA","Other Children and Family Services","Other Children and Family Services - Direct","Street Cleaning","Consultants Fees",17/08/2015 00:00:00,"6588041",1515,"MRS CEPPY HOSEGOOD"
"Bracknell Forest Council","http://opendatacommunities.org/id/unitary-authority/bracknell-forest","Bracknell Forest Council","00MA","Substance Misuse","Drug misuse in adults","","Contracted Services",30/04/2015 00:00:00,"6583122",960,"SOLUTIONS ACTION MANAGEMENT LTD"
"Bracknell Forest Council","http://opendatacommunities.org/id/unitary-authority/bracknell-forest","Bracknell Forest Council","00MA","Safeguarding Children and Young People�s Services","Social Work","","Agency",13/07/2015 00:00:00,"6585414",1500,"NONSTOP RECRUITMENT"
"Bracknell Forest Council","http://opendatacommunities.org/id/unitary-authority/bracknell-forest","Bracknell Forest Council","00MA","Safeguarding Children and Young People�s Services","Social Work","","Agency",30/06/2015 00:00:00,"6585415",1500,"NONSTOP RECRUITMENT"
"Bracknell Forest Council","http://opendatacommunities.org/id/unitary-authority/bracknell-forest","Bracknell Forest Council","00MA","Safeguarding Children and Young People�s Services","Social Work","","Agency",01/07/2015 00:00:00,"6585417",1400,"AFFINITY WORKFORCE LIMITED"
"Bracknell Forest Council","http://opendatacommunities.org/id/unitary-authority/bracknell-forest","Bracknell Forest Council","00MA","Safeguarding Children and Young People�s Services","Social Work","","Agency",24/06/2015 00:00:00,"6585419",1480,"AFFINITY WORKFORCE LIMITED"
"Bracknell Forest Council","http://opendatacommunities.org/id/unitary-authority/bracknell-forest","Bracknell Forest Council","00MA","Safeguarding Children and Young People�s Services","Social Work","","Agency",08/07/2015 00:00:00,"6585421",1480,"AFFINITY WORKFORCE LIMITED"
"Bracknell Forest Council","http://opendatacommunities.org/id/unitary-authority/bracknell-forest","Bracknell Forest Council","00MA","Business Support","Premises Development","","R&M - Service Contracts",17/06/2015 00:00:00,"6584558",1535.08,"NOVAR SYSTEMS LTD"
"Bracknell Forest Council","http://opendatacommunities.org/id/unitary-authority/bracknell-forest","Bracknell Forest Council","00MA","Commissioning & Service Delivery","Commissioning & Service Delivery","","Contracted Services",01/07/2015 00:00:00,"6585484",3720,"SEAP"
"Bracknell Forest Council","http://opendatacommunities.org/id/unitary-authority/bracknell-forest","Bracknell Forest Council","00MA","Support Services & Management Costs","Training","","Training Costs",15/07/2015 00:00:00,"6585447",3690,"RESULTS DRIVEN GROUP"
"Bracknell Forest Council","http://opendatacommunities.org/id/unitary-authority/bracknell-forest","Bracknell Forest Council","00MA","Recreation, Sports and Leisure","Indoor Sports & Recreation Facilities","","Cost of Goods Sold",10/07/2015 00:00:00,"6585461",999,"ZOGGS INTERNATIONAL LTD"
"Bracknell Forest Council","http://opendatacommunities.org/id/unitary-authority/bracknell-forest","Bracknell Forest Council","00MA","Other Education and Community Budget","Adult and Community Learning","","Other Fees for Bought-in Services",10/07/2015 00:00:00,"6585467",1950,"WOKINGHAM & DISTRICT MENCAP LTD"
"Bracknell Forest Council","http://opendatacommunities.org/id/unitary-authority/bracknell-forest","Bracknell Forest Council","00MA","Support Services & Management Costs","Training","","Training Costs",14/07/2015 00:00:00,"6585480",520,"EDGE SERVICES"
"Bracknell Forest Council","http://opendatacommunities.org/id/unitary-authority/bracknell-forest","Bracknell Forest Council","00MA","Substance Misuse","Drug misuse in adults","","Contracted Services",08/07/2015 00:00:00,"6584865",52188.53,"SMART CRIMINAL JUSTICE SERVICES"
"Bracknell Forest Council","http://opendatacommunities.org/id/unitary-authority/bracknell-forest","Bracknell Forest Council","00MA","Central Support Services - COF","Personnel","","Training Costs",10/07/2015 00:00:00,"6585322",2436,"SKILLS FOR CARE SOLUTIONS LTD"
"Bracknell Forest Council","http://opendatacommunities.org/id/unitary-authority/bracknell-forest","Bracknell Forest Council","00MA","Central Support Services - COF","Personnel","","Training Costs",04/07/2015 00:00:00,"6585333",572,"MCG TRAINING"
"Bracknell Forest Council","http://opendatacommunities.org/id/unitary-authority/bracknell-forest","Bracknell Forest Council","00MA","Recreation, Sports and Leisure","Indoor Sports & Recreation Facilities","","R&M - Reactive",17/04/2015 00:00:00,"6585514",715.65,"HSL"
"Bracknell Forest Council","http://opendatacommunities.org/id/unitary-authority/bracknell-forest","Bracknell Forest Council","00MA","Safeguarding Children and Young People�s Services","Social Work","Amenity Maintenance/Landscape","Consultants Fees",07/08/2015 00:00:00,"6587486",503.4,"CAROL BIGNELL"
"Bracknell Forest Council","http://opendatacommunities.org/id/unitary-authority/bracknell-forest","Bracknell Forest Council","00MA","Children Looked After","Other services for LAC","Public Health - Berkshire Shared Team","Vehicle Hire Charge",22/07/2015 00:00:00,"6586589",520,"MR C F BUNN"
"Bracknell Forest Council","http://opendatacommunities.org/id/unitary-authority/bracknell-forest","Bracknell Forest Council","00MA","Open Spaces","Community Parks & Open Spaces","Sexual Health - STI Testing & Treatment (Berks)","Contracted Services",05/06/2015 00:00:00,"6583030",1700,"DENNIS ARTIS"
"Bracknell Forest Council","http://opendatacommunities.org/id/unitary-authority/bracknell-forest","Bracknell Forest Council","00MA","Other Education and Community Budget","Service strategy and other education functions","Cserv. - Tax Making & Statutory Account","Consultants Fees",13/05/2015 00:00:00,"6581718",700,"FIONA EDWARDS"
"Bracknell Forest Council","http://opendatacommunities.org/id/unitary-authority/bracknell-forest","Bracknell Forest Council","00MA","NHS Health Check Programme","NHS Health Check Programme","Certificated Contract Payments","Contracted Services",03/07/2015 00:00:00,"6585267",520,"DR. M VENKATA RAO"
"Bracknell Forest Council","http://opendatacommunities.org/id/unitary-authority/bracknell-forest","Bracknell Forest Council","00MA","Planning Policy","Structure & Local Planning","Lily Hill Park Maintenance","Consultants Fees",04/07/2015 00:00:00,"6585363",788.3,"MRS KATHERINE BAILEY"
"Bracknell Forest Council","http://opendatacommunities.org/id/unitary-authority/bracknell-forest","Bracknell Forest Council","00MA","Services for Young People","Targeted services for young people","Lily Hill Park Maintenance","Primary Care Trust",30/06/2015 00:00:00,"6583784",1500,"DR SARAH TILLETT"
"Bracknell Forest Council","http://opendatacommunities.org/id/unitary-authority/bracknell-forest","Bracknell Forest Council","00MA","Libraries","Stock Ordering, Cataloguing & Distribution","Energy Management","Audio/Visual materials",30/04/2015 00:00:00,"6582478",555.92,"JOHN GLEW"
"Bracknell Forest Council","http://opendatacommunities.org/id/unitary-authority/bracknell-forest","Bracknell Forest Council","00MA","Libraries","Stock Ordering, Cataloguing & Distribution","Waste Collection Recycling","Audio/Visual materials",31/05/2015 00:00:00,"6582544",511.04,"JOHN GLEW"
"Bracknell Forest Council","http://opendatacommunities.org/id/unitary-authority/bracknell-forest","Bracknell Forest Council","00MA","Democratic Representation & Management COF","Democratic Representation & Management - COF","PS Older People 65+ Long Term Support - Community:Homecare","Training Costs",03/06/2015 00:00:00,"6582296",900,"MARY FRANCES"
"Bracknell Forest Council","http://opendatacommunities.org/id/unitary-authority/bracknell-forest","Bracknell Forest Council","00MA","Open Spaces","Community Parks & Open Spaces","Staying Put","R&M - Planned",16/06/2015 00:00:00,"6583138",1030,"DENNIS ARTIS"
"Bracknell Forest Council","http://opendatacommunities.org/id/unitary-authority/bracknell-forest","Bracknell Forest Council","00MA","Central Support Services - COF","Personnel","SM Payments by Results - SMART","Training Costs",02/06/2015 00:00:00,"6581783",500,"REBECCA STEPHENS"
"Bracknell Forest Council","http://opendatacommunities.org/id/unitary-authority/bracknell-forest","Bracknell Forest Council","00MA","Un Ringfenced Grants","Home Office POCA Grant","Leisure DSO - Downshire Catering","Legal Fees",12/06/2015 00:00:00,"6583150",4687.5,"MR LEE REYNOLDS"
"Bracknell Forest Council","http://opendatacommunities.org/id/unitary-authority/bracknell-forest","Bracknell Forest Council","00MA","Open Spaces","Countryside Recreation & Management","Public Health - Health Promotion","R&M - Planned",14/09/2015 00:00:00,"6589858",1100,"DENNIS ARTIS"
"Bracknell Forest Council","http://opendatacommunities.org/id/unitary-authority/bracknell-forest","Bracknell Forest Council","00MA","Open Spaces","Community Parks & Open Spaces","Supporting SEN Pre 16","Consultants Fees",01/09/2015 00:00:00,"6590788",4344,"ANDREW PARRY"
"Bracknell Forest Council","http://opendatacommunities.org/id/unitary-authority/bracknell-forest","Bracknell Forest Council","00MA","Support Services & Management Costs","Training","Supporting SEN - Post 16","Training Costs",21/07/2015 00:00:00,"6585988",900,"V. CRUMP"
"Bracknell Forest Council","http://opendatacommunities.org/id/unitary-authority/bracknell-forest","Bracknell Forest Council","00MA","Open Spaces","Countryside Recreation & Management","Supporting SEN - Post 16","R&M - Planned",27/08/2015 00:00:00,"6588571",680,"DENNIS ARTIS"
"Bracknell Forest Council","http://opendatacommunities.org/id/unitary-authority/bracknell-forest","Bracknell Forest Council","00MA","Un Ringfenced Grants","Home Office POCA Grant","Supporting SEN - Post 16","Legal Fees",12/06/2015 00:00:00,"6583258",1000,"MR LEE REYNOLDS"
"Bracknell Forest Council","http://opendatacommunities.org/id/unitary-authority/bracknell-forest","Bracknell Forest Council","00MA","Planning Policy","Structure & Local Planning","Independent Fostering (Non BFBC)","Consultants Fees",06/06/2015 00:00:00,"6583269",1086.25,"MRS KATHERINE BAILEY"
"Bracknell Forest Council","http://opendatacommunities.org/id/unitary-authority/bracknell-forest","Bracknell Forest Council","00MA","Support Services & Management Costs","Training","Independent Fostering (Non BFBC)","Training Costs",23/06/2015 00:00:00,"6583656",675,"V. CRUMP"
"Bracknell Forest Council","http://opendatacommunities.org/id/unitary-authority/bracknell-forest","Bracknell Forest Council","00MA","Safeguarding Children and Young People�s Services","Social Work","Travel Choice","Consultants Fees",16/06/2015 00:00:00,"6583250",554.5,"MR RICHARD CHARLES FOSTER"
"Bracknell Forest Council","http://opendatacommunities.org/id/unitary-authority/bracknell-forest","Bracknell Forest Council","00MA","Safeguarding Children and Young People�s Services","Social Work","Concessionary Fares","Consultants Fees",11/06/2015 00:00:00,"6583251",519.27,"CAROL BIGNELL"
"Bracknell Forest Council","http://opendatacommunities.org/id/unitary-authority/bracknell-forest","Bracknell Forest Council","00MA","Open Spaces","Countryside Recreation & Management","Waste Collection Recycling","R&M - Planned",29/07/2015 00:00:00,"6586630",780,"DENNIS ARTIS"
"Bracknell Forest Council","http://opendatacommunities.org/id/unitary-authority/bracknell-forest","Bracknell Forest Council","00MA","Social Care Activities","Social Care Activities","Sexual Health - STI Testing & Treatment (Berks)","Other Support to Clients",19/08/2015 00:00:00,"6588125",4562.86,"DR PATRICK PURCELL"
"Bracknell Forest Council","http://opendatacommunities.org/id/unitary-authority/bracknell-forest","Bracknell Forest Council","00MA","Central Support Services - COF","Policy Unit","Training - Planning & Transport","Photography",02/06/2015 00:00:00,"6581828",600,"STEWART TURKINGTON"
"Bracknell Forest Council","http://opendatacommunities.org/id/unitary-authority/bracknell-forest","Bracknell Forest Council","00MA","Management and Support Services - CYPL","Unallocated High Needs Related Expenditure","Independent Fostering (Non BFBC)","Voluntary Sector Service Providers",30/06/2015 00:00:00,"6584840",1139.48,"REBECCA DANDY"
"Bracknell Forest Council","http://opendatacommunities.org/id/unitary-authority/bracknell-forest","Bracknell Forest Council","00MA","Open Spaces","Community Parks & Open Spaces","Independent Fostering (Non BFBC)","Contracted Services",22/09/2015 00:00:00,"6591184",2500,"DENNIS ARTIS"
"Bracknell Forest Council","http://opendatacommunities.org/id/unitary-authority/bracknell-forest","Bracknell Forest Council","00MA","Other Education and Community Budget","Service strategy and other education functions","Independent Fostering (Non BFBC)","Consultants Fees",02/07/2015 00:00:00,"6584819",500,"LIZ KOUNNOU"
"Bracknell Forest Council","http://opendatacommunities.org/id/unitary-authority/bracknell-forest","Bracknell Forest Council","00MA","Management and Support Services - CYPL","Unallocated High Needs Related Expenditure","","Voluntary Sector Service Providers",02/07/2015 00:00:00,"6584377",2923.4,"Redact Name"
"Bracknell Forest Council","http://opendatacommunities.org/id/unitary-authority/bracknell-forest","Bracknell Forest Council","00MA","Central Support Services - COF","Finance","","Agency",26/06/2015 00:00:00,"6584778",2400,"ASHTON CONSULTING LTD"
"Bracknell Forest Council","http://opendatacommunities.org/id/unitary-authority/bracknell-forest","Bracknell Forest Council","00MA","Recreation, Sports and Leisure","Indoor Sports & Recreation Facilities","","Equipment - Purchase",05/07/2015 00:00:00,"6585609",684,"WORLD CLEANERS LTD"
"Bracknell Forest Council","http://opendatacommunities.org/id/unitary-authority/bracknell-forest","Bracknell Forest Council","00MA","Management and Support Services - CYPL","Unallocated High Needs Related Expenditure","","Contracted Services",21/07/2015 00:00:00,"6585236",2712.83,"RANELAGH ACADEMY"
"Bracknell Forest Council","http://opendatacommunities.org/id/unitary-authority/bracknell-forest","Bracknell Forest Council","00MA","Recreation, Sports and Leisure","Indoor Sports & Recreation Facilities","","Water & Sewerage",27/06/2015 00:00:00,"6584451",5566.84,"SOUTH EAST WATER"
"Bracknell Forest Council","http://opendatacommunities.org/id/unitary-authority/bracknell-forest","Bracknell Forest Council","00MA","Management and Support Services - CYPL","Unallocated High Needs Related Expenditure","","Contracted Services",21/07/2015 00:00:00,"6585236",2712.83,"RANELAGH ACADEMY"
"Bracknell Forest Council","http://opendatacommunities.org/id/unitary-authority/bracknell-forest","Bracknell Forest Council","00MA","Management and Support Services - CYPL","Unallocated High Needs Related Expenditure","","Contracted Services",21/07/2015 00:00:00,"6585236",3213.83,"RANELAGH ACADEMY"
"Bracknell Forest Council","http://opendatacommunities.org/id/unitary-authority/bracknell-forest","Bracknell Forest Council","00MA","Holding Accounts in Budget Book COF","Corporate Services - Office Services","","Reference Books & Publications",30/06/2015 00:00:00,"6584781",2280,"EMAP PUBLISHING LTD"
"Bracknell Forest Council","http://opendatacommunities.org/id/unitary-authority/bracknell-forest","Bracknell Forest Council","00MA","Primary Schools","Delegated Primary School Budgets","","R&M - Reactive",24/06/2015 00:00:00,"6585506",1179.28,"GRAHAM ASSET MANAGEMENT LTD"
"Bracknell Forest Council","http://opendatacommunities.org/id/unitary-authority/bracknell-forest","Bracknell Forest Council","00MA","Recreation, Sports and Leisure","Community Centres","","R&M - Reactive",24/06/2015 00:00:00,"6585549",1179.28,"GRAHAM ASSET MANAGEMENT LTD"
"Bracknell Forest Council","http://opendatacommunities.org/id/unitary-authority/bracknell-forest","Bracknell Forest Council","00MA","Recreation, Sports and Leisure","Community Centres","","R&M - Reactive",24/06/2015 00:00:00,"6585552",1135.28,"GRAHAM ASSET MANAGEMENT LTD"
"Bracknell Forest Council","http://opendatacommunities.org/id/unitary-authority/bracknell-forest","Bracknell Forest Council","00MA","Libraries","Branch Libraries","","Publicity & Marketing",23/06/2015 00:00:00,"6584468",3115,"HATTRICK MARKETING"
"Bracknell Forest Council","http://opendatacommunities.org/id/unitary-authority/bracknell-forest","Bracknell Forest Council","00MA","Miscellaneous Public Health Services","Miscellaneous Public Health Services","","Contracted Services",13/07/2015 00:00:00,"6585354",12500,"SOLUTIONS 4 HEALTH LTD"
"Bracknell Forest Council","http://opendatacommunities.org/id/unitary-authority/bracknell-forest","Bracknell Forest Council","00MA","NHS Health Check Programme","NHS Health Check Programme","","Contracted Services",01/07/2015 00:00:00,"6585383",1160,"THE GAINSBOROUGH PRACTICE"
"Bracknell Forest Council","http://opendatacommunities.org/id/unitary-authority/bracknell-forest","Bracknell Forest Council","00MA","Recreation, Sports and Leisure","Golf Courses","","Cost of Goods - Bar",18/06/2015 00:00:00,"6584425",1258.96,"MATTHEW CLARK WHOLESALE"
"Bracknell Forest Council","http://opendatacommunities.org/id/unitary-authority/bracknell-forest","Bracknell Forest Council","00MA","Recreation, Sports and Leisure","Golf Courses","","Cost of Goods - Bar",25/06/2015 00:00:00,"6584427",759.61,"MATTHEW CLARK WHOLESALE"
"Bracknell Forest Council","http://opendatacommunities.org/id/unitary-authority/bracknell-forest","Bracknell Forest Council","00MA","General Grants, Bequests & Donations","General Grants, Bequests & Donations","","Equipment - Purchase",31/03/2015 00:00:00,"6576767",3099,"SAFELINCS"
"Bracknell Forest Council","http://opendatacommunities.org/id/unitary-authority/bracknell-forest","Bracknell Forest Council","00MA","Holding Accounts not in Budget Book - COF","General Holding Accounts","","R&M - Service Contracts",31/05/2015 00:00:00,"6583722",7180.8,"GRAHAM ASSET MANAGEMENT LTD"
"Bracknell Forest Council","http://opendatacommunities.org/id/unitary-authority/bracknell-forest","Bracknell Forest Council","00MA","Parking Services","Off Street Parking","","Contracted Services",30/06/2015 00:00:00,"6583396",1917.25,"VINCI PARK SERVICES UK LTD"
"Bracknell Forest Council","http://opendatacommunities.org/id/unitary-authority/bracknell-forest","Bracknell Forest Council","00MA","Other Welfare Services","Other Welfare Services","","Equipment - Purchase",02/07/2015 00:00:00,"6584435",1204.9,"TUNSTALL TELECOM LTD"
"Bracknell Forest Council","http://opendatacommunities.org/id/unitary-authority/bracknell-forest","Bracknell Forest Council","00MA","Early Years","Centrally managed Expenditure - Early Years","","Training Costs",16/05/2015 00:00:00,"6583338",575,"CLEARWATER TRAINING"
"Bracknell Forest Council","http://opendatacommunities.org/id/unitary-authority/bracknell-forest","Bracknell Forest Council","00MA","Recreation, Sports and Leisure","Indoor Sports & Recreation Facilities","","Swimming Pool Chemicals",15/06/2015 00:00:00,"6583134",510.01,"BRENNTAG LUTTERWORTH"
"Bracknell Forest Council","http://opendatacommunities.org/id/unitary-authority/bracknell-forest","Bracknell Forest Council","00MA","Management and Support Services - CYPL","Unallocated High Needs Related Expenditure","","Computer -Purchase",09/05/2015 00:00:00,"6580862",555,"PC PARAMEDICS LTD"
"Bracknell Forest Council","http://opendatacommunities.org/id/unitary-authority/bracknell-forest","Bracknell Forest Council","00MA","Older People (65+)","Internal Services","","R&M - Reactive",10/06/2015 00:00:00,"6582520",1000,"RHS HEATING"
"Bracknell Forest Council","http://opendatacommunities.org/id/unitary-authority/bracknell-forest","Bracknell Forest Council","00MA","Older People (65+)","Internal Services","","R&M - Reactive",10/06/2015 00:00:00,"6582520",1300,"RHS HEATING"
"Bracknell Forest Council","http://opendatacommunities.org/id/unitary-authority/bracknell-forest","Bracknell Forest Council","00MA","Recreation, Sports and Leisure","Indoor Sports & Recreation Facilities","","R&M - Reactive",01/06/2015 00:00:00,"6583143",3512,"S P E"
"Bracknell Forest Council","http://opendatacommunities.org/id/unitary-authority/bracknell-forest","Bracknell Forest Council","00MA","Commissioning & Service Delivery","Commissioning & Service Delivery","","Contracted Services",01/04/2015 00:00:00,"6585525",3720,"SEAP"
"Bracknell Forest Council","http://opendatacommunities.org/id/unitary-authority/bracknell-forest","Bracknell Forest Council","00MA","Central Support Services - COF","Policy Unit","","Computer Maintenance",09/09/2015 00:00:00,"6589752",1820,"DEJAC ASSOCIATES LTD"
"Bracknell Forest Council","http://opendatacommunities.org/id/unitary-authority/bracknell-forest","Bracknell Forest Council","00MA","Family Support Services","Targeted Family Support","","Other Support to Clients",29/07/2015 00:00:00,"6587730",595,"STEWARTS COACHES LTD"
"Bracknell Forest Council","http://opendatacommunities.org/id/unitary-authority/bracknell-forest","Bracknell Forest Council","00MA","Family Support Services","Targeted Family Support","","Other Support to Clients",29/07/2015 00:00:00,"6587730",595,"STEWARTS COACHES LTD"
"Bracknell Forest Council","http://opendatacommunities.org/id/unitary-authority/bracknell-forest","Bracknell Forest Council","00MA","Holding Accounts not in Budget Book - COF","General Holding Accounts","","R&M - Reactive",28/08/2015 00:00:00,"6590001",42260.73,"GRAHAM ASSET MANAGEMENT LTD"
"Bracknell Forest Council","http://opendatacommunities.org/id/unitary-authority/bracknell-forest","Bracknell Forest Council","00MA","Holding Accounts not in Budget Book - COF","General Holding Accounts","","R&M - Reactive",28/08/2015 00:00:00,"6590002",20712.43,"GRAHAM ASSET MANAGEMENT LTD"
"Bracknell Forest Council","http://opendatacommunities.org/id/unitary-authority/bracknell-forest","Bracknell Forest Council","00MA","Central Support Services - COF","Construction and Property","","Contracted Services",31/07/2015 00:00:00,"6588934",677.51,"SITA"
"Bracknell Forest Council","http://opendatacommunities.org/id/unitary-authority/bracknell-forest","Bracknell Forest Council","00MA","Short Term Support Maximise Independence","Short Term Support to Maximise Independence","","Contracted Services",24/06/2015 00:00:00,"6583789",9875,"BERKS HEALTHCARE NHS FOUNDATION TRUST"
"Bracknell Forest Council","http://opendatacommunities.org/id/unitary-authority/bracknell-forest","Bracknell Forest Council","00MA","Short Term Support Maximise Independence","Short Term Support to Maximise Independence","","Contracted Services",24/06/2015 00:00:00,"6583790",8962,"BERKS HEALTHCARE NHS FOUNDATION TRUST"
"Bracknell Forest Council","http://opendatacommunities.org/id/unitary-authority/bracknell-forest","Bracknell Forest Council","00MA","Short Term Support Maximise Independence","Short Term Support to Maximise Independence","","Contracted Services",24/06/2015 00:00:00,"6583791",16812,"BERKS HEALTHCARE NHS FOUNDATION TRUST"
"Bracknell Forest Council","http://opendatacommunities.org/id/unitary-authority/bracknell-forest","Bracknell Forest Council","00MA","Smoking and Tobacco","Stop smoking services and interventions","","Contracted Services",25/08/2015 00:00:00,"6591224",174060,"SOLUTIONS 4 HEALTH LTD"
"Bracknell Forest Council","http://opendatacommunities.org/id/unitary-authority/bracknell-forest","Bracknell Forest Council","00MA","Business Support","Premises Development","","R&M - Reactive",07/06/2015 00:00:00,"6589597",750,"RHS HEATING"
"Bracknell Forest Council","http://opendatacommunities.org/id/unitary-authority/bracknell-forest","Bracknell Forest Council","00MA","Business Support","Premises Development","","Other Fees for Bought-in Services",11/09/2015 00:00:00,"6589771",1080,"DARKLIGHT DESIGN LTD"
"Bracknell Forest Council","http://opendatacommunities.org/id/unitary-authority/bracknell-forest","Bracknell Forest Council","00MA","Older People (65+)","Internal Services","","Agency",09/09/2015 00:00:00,"6589937",2945.2,"CARELINE"
"Bracknell Forest Council","http://opendatacommunities.org/id/unitary-authority/bracknell-forest","Bracknell Forest Council","00MA","Business Support","Premises Development","","Computer Software Maintenance",12/09/2015 00:00:00,"6589772",820,"POINTONE POS LTD"
"Bracknell Forest Council","http://opendatacommunities.org/id/unitary-authority/bracknell-forest","Bracknell Forest Council","00MA","Business Support","Premises Development","","Cost of Goods Sold",04/09/2015 00:00:00,"6589775",984.01,"MATTHEW CLARK WHOLESALE"
"Bracknell Forest Council","http://opendatacommunities.org/id/unitary-authority/bracknell-forest","Bracknell Forest Council","00MA","Business Support","Premises Development","","Publicity & Marketing",09/09/2015 00:00:00,"6589971",518,"WHITESPACE PUBLISHERS LTD"
"Bracknell Forest Council","http://opendatacommunities.org/id/unitary-authority/bracknell-forest","Bracknell Forest Council","00MA","Service Management & Support Services","Service Management & Support Services","","Training Costs",30/06/2015 00:00:00,"6584687",1050,"TREVOR ROBERTS ASSOCIATES LTD"
"Bracknell Forest Council","http://opendatacommunities.org/id/unitary-authority/bracknell-forest","Bracknell Forest Council","00MA","Early Years","Centrally managed Expenditure - Early Years","","Other Fees for Bought-in Services",12/07/2015 00:00:00,"6585441",575,"CLEARWATER TRAINING"
"Bracknell Forest Council","http://opendatacommunities.org/id/unitary-authority/bracknell-forest","Bracknell Forest Council","00MA","Early Years","Centrally managed Expenditure - Early Years","","Other Fees for Bought-in Services",30/06/2015 00:00:00,"6585443",825,"LITTLEWING TRAINING LTD"
"Bracknell Forest Council","http://opendatacommunities.org/id/unitary-authority/bracknell-forest","Bracknell Forest Council","00MA","Traffic Management & Road Safety","Road Safety Education","","Publicity & Marketing",29/06/2015 00:00:00,"6584390",763,"IN CAR SAFETY CENTRE"
"Bracknell Forest Council","http://opendatacommunities.org/id/unitary-authority/bracknell-forest","Bracknell Forest Council","00MA","Recreation, Sports and Leisure","Indoor Sports & Recreation Facilities","","Cost of Goods Sold",26/06/2015 00:00:00,"6584400",999,"ZOGGS INTERNATIONAL LTD"
"Bracknell Forest Council","http://opendatacommunities.org/id/unitary-authority/bracknell-forest","Bracknell Forest Council","00MA","Management and Support Services - CYPL","Schools Block Centrally Managed","","Learning Resources - Purchase",13/07/2015 00:00:00,"6584384",1300.2,"LOVE2REWARD PARK RETAIL LTD"
"Bracknell Forest Council","http://opendatacommunities.org/id/unitary-authority/bracknell-forest","Bracknell Forest Council","00MA","Safeguarding Children and Young People�s Services","Social Work","","Agency",28/06/2015 00:00:00,"6585423",1665,"TEMPEST RESOURCING"
"Bracknell Forest Council","http://opendatacommunities.org/id/unitary-authority/bracknell-forest","Bracknell Forest Council","00MA","Safeguarding Children and Young People�s Services","Social Work","","Agency",13/07/2015 00:00:00,"6585425",1500,"NONSTOP RECRUITMENT"
"Bracknell Forest Council","http://opendatacommunities.org/id/unitary-authority/bracknell-forest","Bracknell Forest Council","00MA","Sure Start Children�s Centres","Centrally managed expenditure - children�s centres","","Other Fees for Bought-in Services",19/06/2015 00:00:00,"6584099",6099.99,"BERKS HEALTHCARE NHS FOUNDATION TRUST"
"Bracknell Forest Council","http://opendatacommunities.org/id/unitary-authority/bracknell-forest","Bracknell Forest Council","00MA","Service Management & Support Services","Service Management & Support Services","","Computer Software Maintenance",05/05/2015 00:00:00,"6585518",1932,"INSIGHT MEDIA INTERNET LTD"
"Bracknell Forest Council","http://opendatacommunities.org/id/unitary-authority/bracknell-forest","Bracknell Forest Council","00MA","Adults (18-64)","Long Term Support - Community:Supported Living","","Other Support to Clients",25/06/2015 00:00:00,"6585334",2105.1,"MOVING ON CARE MANAGEMENT LTD"
"Bracknell Forest Council","http://opendatacommunities.org/id/unitary-authority/bracknell-forest","Bracknell Forest Council","00MA","Secondary Schools","Delegated Secondary Schools Budgets","","Contracted Services",21/07/2015 00:00:00,"6585236",5242,"RANELAGH ACADEMY"
"Bracknell Forest Council","http://opendatacommunities.org/id/unitary-authority/bracknell-forest","Bracknell Forest Council","00MA","Business Support","Premises Development","","Other Fees for Bought-in Services",13/07/2015 00:00:00,"6584780",720,"BENVILLE AND MARSH LTD"
"Bracknell Forest Council","http://opendatacommunities.org/id/unitary-authority/bracknell-forest","Bracknell Forest Council","00MA","Sure Start Children�s Centres","Children�s centres - direct","","Other Fees for Bought-in Services",28/06/2015 00:00:00,"6584484",588,"MAGICAL MOMENTS CRECHE"
"Bracknell Forest Council","http://opendatacommunities.org/id/unitary-authority/bracknell-forest","Bracknell Forest Council","00MA","Recreation, Sports and Leisure","Golf Courses","","Materials",30/06/2015 00:00:00,"6584414",666.33,"BANKS AMENITY PRODUCTS LTD"
"Bracknell Forest Council","http://opendatacommunities.org/id/unitary-authority/bracknell-forest","Bracknell Forest Council","00MA","Services for Young People","Universal services for young people","","R&M - Reactive",24/04/2015 00:00:00,"6583972",612.5,"WHITE LIGHT LTD"
"Bracknell Forest Council","http://opendatacommunities.org/id/unitary-authority/bracknell-forest","Bracknell Forest Council","00MA","Recreation, Sports and Leisure","Golf Courses","","Cost of Goods Sold",27/05/2015 00:00:00,"6583420",513.66,"PING EUROPE LTD"
"Bracknell Forest Council","http://opendatacommunities.org/id/unitary-authority/bracknell-forest","Bracknell Forest Council","00MA","Services for Young People","Universal services for young people","","Computer Software",02/06/2015 00:00:00,"6582076",2500,"QUALITY EDUCATION SOLUTIONS"
"Bracknell Forest Council","http://opendatacommunities.org/id/unitary-authority/bracknell-forest","Bracknell Forest Council","00MA","Services for Young People","Universal services for young people","","Contracted Services",04/06/2015 00:00:00,"6582077",500,"REDZ"
"Bracknell Forest Council","http://opendatacommunities.org/id/unitary-authority/bracknell-forest","Bracknell Forest Council","00MA","Services for Young People","Universal services for young people","","Youth & Community Activities",06/06/2015 00:00:00,"6582141",2000,"SIMPLY THE BEST EVENTS"
"Bracknell Forest Council","http://opendatacommunities.org/id/unitary-authority/bracknell-forest","Bracknell Forest Council","00MA","Cemeteries, Crematoria & Mortuary Services","Cemeteries & Crematorium","","Cost of Goods Sold",08/06/2015 00:00:00,"6582297",1704.6,"MARMAX PRODUCTS LTD"
"Bracknell Forest Council","http://opendatacommunities.org/id/unitary-authority/bracknell-forest","Bracknell Forest Council","00MA","Democratic Representation & Management COF","Democratic Representation & Management - COF","","Equipment - Purchase",23/03/2015 00:00:00,"6582522",1420,"RHS HEATING"
"Bracknell Forest Council","http://opendatacommunities.org/id/unitary-authority/bracknell-forest","Bracknell Forest Council","00MA","Short Term Support Maximise Independence","Short Term Support to Maximise Independence","","R&M - Reactive",26/02/2015 00:00:00,"6582546",1045,"GRAHAM ASSET MANAGEMENT LTD"
"Bracknell Forest Council","http://opendatacommunities.org/id/unitary-authority/bracknell-forest","Bracknell Forest Council","00MA","Recreation, Sports and Leisure","Indoor Sports & Recreation Facilities","","R&M - Reactive",01/06/2015 00:00:00,"6583142",3395.75,"S P E"
"Bracknell Forest Council","http://opendatacommunities.org/id/unitary-authority/bracknell-forest","Bracknell Forest Council","00MA","Public Transport","Support To Operators","","Consultants Fees",07/07/2015 00:00:00,"6585433",6099.42,"JMP CONSULTANTS"
"Bracknell Forest Council","http://opendatacommunities.org/id/unitary-authority/bracknell-forest","Bracknell Forest Council","00MA","Substance Misuse","Drug misuse in adults","","Equipment - Purchase",02/06/2015 00:00:00,"6583998",650.5,"NHS SUPPLY CHAIN"
"Bracknell Forest Council","http://opendatacommunities.org/id/unitary-authority/bracknell-forest","Bracknell Forest Council","00MA","Management and Support Services - CYPL","Strategy, Resources and Early Interventions","","Catering Equipment - Purchase",23/06/2015 00:00:00,"6584010",1936,"MANITOWOC"
"Bracknell Forest Council","http://opendatacommunities.org/id/unitary-authority/bracknell-forest","Bracknell Forest Council","00MA","Development Control","Applications - Development Control","","Agency",25/08/2015 00:00:00,"6588724",3305.4,"REBECCA LORD PLANNING"
"Bracknell Forest Council","http://opendatacommunities.org/id/unitary-authority/bracknell-forest","Bracknell Forest Council","00MA","Management and Support Services - CYPL","Holding Codes - net nil","","Audio/Visual materials",24/08/2015 00:00:00,"6588944",544.79,"ASKEWS & HOLTS LIBRARY SERVICE"
"Bracknell Forest Council","http://opendatacommunities.org/id/unitary-authority/bracknell-forest","Bracknell Forest Council","00MA","Management and Support Services - CYPL","Holding Codes - net nil","","Audio/Visual materials",31/08/2015 00:00:00,"6588945",589.15,"ASKEWS & HOLTS LIBRARY SERVICE"
"Bracknell Forest Council","http://opendatacommunities.org/id/unitary-authority/bracknell-forest","Bracknell Forest Council","00MA","Management and Support Services - CYPL","Holding Codes - net nil","","Audio/Visual materials",10/08/2015 00:00:00,"6588946",1444.45,"ASKEWS & HOLTS LIBRARY SERVICE"
"Bracknell Forest Council","http://opendatacommunities.org/id/unitary-authority/bracknell-forest","Bracknell Forest Council","00MA","Management and Support Services - CYPL","Holding Codes - net nil","","Audio/Visual materials",17/08/2015 00:00:00,"6588947",550.58,"ASKEWS & HOLTS LIBRARY SERVICE"
"Bracknell Forest Council","http://opendatacommunities.org/id/unitary-authority/bracknell-forest","Bracknell Forest Council","00MA","Other Education and Community Budget","Adult and Community Learning","","R&M - Reactive",23/03/2015 00:00:00,"6582548",693,"GRAHAM ASSET MANAGEMENT LTD"
"Bracknell Forest Council","http://opendatacommunities.org/id/unitary-authority/bracknell-forest","Bracknell Forest Council","00MA","Recreation, Sports and Leisure","Indoor Sports & Recreation Facilities","","Water & Sewerage",22/06/2015 00:00:00,"6584375",5914.92,"THAMES WATER UTILITIES LTD"
"Bracknell Forest Council","http://opendatacommunities.org/id/unitary-authority/bracknell-forest","Bracknell Forest Council","00MA","Recreation, Sports and Leisure","Indoor Sports & Recreation Facilities","","Cleaning materials",14/04/2015 00:00:00,"6584386",613,"SOURCE CLEANING SUPPLIES"
"Bracknell Forest Council","http://opendatacommunities.org/id/unitary-authority/bracknell-forest","Bracknell Forest Council","00MA","Older People (65+)","Internal Services","","Agency",10/06/2015 00:00:00,"6583985",787.23,"CONTRACT OPTIONS"
"Bracknell Forest Council","http://opendatacommunities.org/id/unitary-authority/bracknell-forest","Bracknell Forest Council","00MA","Central Support Services - COF","Construction and Property","","Security Systems",01/09/2015 00:00:00,"6590191",1010.13,"ADT FIRE AND SECURITY"
"Bracknell Forest Council","http://opendatacommunities.org/id/unitary-authority/bracknell-forest","Bracknell Forest Council","00MA","Older People (65+)","Internal Services","","Agency",19/08/2015 00:00:00,"6589934",1806.92,"CARELINE"
"Bracknell Forest Council","http://opendatacommunities.org/id/unitary-authority/bracknell-forest","Bracknell Forest Council","00MA","Older People (65+)","Internal Services","","Agency",02/09/2015 00:00:00,"6589936",1400.96,"CARELINE"
"Bracknell Forest Council","http://opendatacommunities.org/id/unitary-authority/bracknell-forest","Bracknell Forest Council","00MA","Open Spaces","Community Parks & Open Spaces","","Contracted Services",20/03/2015 00:00:00,"6583354",700,"ARBORFIELD TREE CARE"
"Bracknell Forest Council","http://opendatacommunities.org/id/unitary-authority/bracknell-forest","Bracknell Forest Council","00MA","Libraries","Branch Libraries","","R&M - Reactive",31/05/2015 00:00:00,"6582541",1155,"GRAHAM ASSET MANAGEMENT LTD"
"Bracknell Forest Council","http://opendatacommunities.org/id/unitary-authority/bracknell-forest","Bracknell Forest Council","00MA","Business Support","Premises Development","","Refuse Collection",31/08/2015 00:00:00,"6589459",556.99,"SITA"
"Bracknell Forest Council","http://opendatacommunities.org/id/unitary-authority/bracknell-forest","Bracknell Forest Council","00MA","Children Looked After","Short breaks for LAC","","Agency",02/09/2015 00:00:00,"6589931",971.12,"CARELINE"
"Bracknell Forest Council","http://opendatacommunities.org/id/unitary-authority/bracknell-forest","Bracknell Forest Council","00MA","Children Looked After","Education of LAC","","Computer Software Maintenance",22/05/2015 00:00:00,"70014557",840.03,""
"Bracknell Forest Council","http://opendatacommunities.org/id/unitary-authority/bracknell-forest","Bracknell Forest Council","00MA","Open Spaces","Countryside Recreation & Management","","Materials",24/08/2015 00:00:00,"6588368",1311.81,"CENTREWIRE LTD"
"Bracknell Forest Council","http://opendatacommunities.org/id/unitary-authority/bracknell-forest","Bracknell Forest Council","00MA","Central Support Services - COF","Finance","","Contracted Services",14/08/2015 00:00:00,"6588605",15878.5,"MAZARS PUBLIC SECTOR INTERNAL AUDIT LTD"
"Bracknell Forest Council","http://opendatacommunities.org/id/unitary-authority/bracknell-forest","Bracknell Forest Council","00MA","Commissioning & Service Delivery","Commissioning & Service Delivery","","Computer Software Maintenance",28/07/2015 00:00:00,"6588555",2015,"ABRITAS LTD"
"Bracknell Forest Council","http://opendatacommunities.org/id/unitary-authority/bracknell-forest","Bracknell Forest Council","00MA","Older People (65+)","Internal Services","","Agency",12/08/2015 00:00:00,"6588034",1810.9,"CARELINE"
"Bracknell Forest Council","http://opendatacommunities.org/id/unitary-authority/bracknell-forest","Bracknell Forest Council","00MA","Recreation, Sports and Leisure","Indoor Sports & Recreation Facilities","","Grounds Maintenance Costs",12/08/2015 00:00:00,"6588092",734.5,"S&S GARDEN SERVICES"
"Bracknell Forest Council","http://opendatacommunities.org/id/unitary-authority/bracknell-forest","Bracknell Forest Council","00MA","Social Care Activities","Social Care Activities","","Agency",10/07/2015 00:00:00,"6585476",929.78,"JCJ LOCUMS LTD"
"Bracknell Forest Council","http://opendatacommunities.org/id/unitary-authority/bracknell-forest","Bracknell Forest Council","00MA","Social Care Activities","Social Care Activities","","Agency",10/07/2015 00:00:00,"6585477",1301.69,"JCJ LOCUMS LTD"
"Bracknell Forest Council","http://opendatacommunities.org/id/unitary-authority/bracknell-forest","Bracknell Forest Council","00MA","Central Support Services - COF","Personnel","","Training Costs",15/07/2015 00:00:00,"6585526",1061.55,"BUCKINGHAMSHIRE NEW UNIVERSITY"
"Bracknell Forest Council","http://opendatacommunities.org/id/unitary-authority/bracknell-forest","Bracknell Forest Council","00MA","Older People (65+)","Long Term Support - Community:Other Long Term Care","","Contracted Services",01/05/2015 00:00:00,"6584989",1072.32,"AMBERBROOK MANAGEMENT LTD"
"Bracknell Forest Council","http://opendatacommunities.org/id/unitary-authority/bracknell-forest","Bracknell Forest Council","00MA","Social Care Activities","Social Care Activities","","Contracted Services",09/06/2015 00:00:00,"6582173",7742.4,"JUST ADVOCACY"
"Bracknell Forest Council","http://opendatacommunities.org/id/unitary-authority/bracknell-forest","Bracknell Forest Council","00MA","Social Care Activities","Social Care Activities","","Contracted Services",09/06/2015 00:00:00,"6582174",5833.33,"JUST ADVOCACY"
"Bracknell Forest Council","http://opendatacommunities.org/id/unitary-authority/bracknell-forest","Bracknell Forest Council","00MA","Management and Support Services - CYPL","Unallocated High Needs Related Expenditure","","Equipment - Purchase",13/05/2015 00:00:00,"6580639",2352,"JENX LTD"
"Bracknell Forest Council","http://opendatacommunities.org/id/unitary-authority/bracknell-forest","Bracknell Forest Council","00MA","Street Cleansing","Street Cleansing","","Contracted Services",31/05/2015 00:00:00,"6584030",63047.27,"CONTINENTAL LANDSCAPES LTD"
"Bracknell Forest Council","http://opendatacommunities.org/id/unitary-authority/bracknell-forest","Bracknell Forest Council","00MA","Open Spaces","Community Parks & Open Spaces","","External Grounds Maintenance Costs",31/05/2015 00:00:00,"6584031",73532.5,"CONTINENTAL LANDSCAPES LTD"
"Bracknell Forest Council","http://opendatacommunities.org/id/unitary-authority/bracknell-forest","Bracknell Forest Council","00MA","Central Support Services - COF","Finance","","Agency",19/06/2015 00:00:00,"6584042",2400,"ASHTON CONSULTING LTD"
"Bracknell Forest Council","http://opendatacommunities.org/id/unitary-authority/bracknell-forest","Bracknell Forest Council","00MA","Children Looked After","Adoption Services","","Subscriptions",15/02/2015 00:00:00,"6584056",1250,"ADOPTION UK"
"Bracknell Forest Council","http://opendatacommunities.org/id/unitary-authority/bracknell-forest","Bracknell Forest Council","00MA","Open Spaces","Community Parks & Open Spaces","","Contracted Services",21/05/2015 00:00:00,"6584064",3800,"ALPINE TREE SURGEONS"
"Bracknell Forest Council","http://opendatacommunities.org/id/unitary-authority/bracknell-forest","Bracknell Forest Council","00MA","Business Support","Premises Development","","Other Fees for Bought-in Services",11/06/2015 00:00:00,"6582552",5524,"FENCETEK"
"Bracknell Forest Council","http://opendatacommunities.org/id/unitary-authority/bracknell-forest","Bracknell Forest Council","00MA","Other Education and Community Budget","Service strategy and other education functions","","Consultants Fees",30/05/2015 00:00:00,"6581621",5000,"PERMANENT FUTURES LTD"
"Bracknell Forest Council","http://opendatacommunities.org/id/unitary-authority/bracknell-forest","Bracknell Forest Council","00MA","Recreation, Sports and Leisure","Indoor Sports & Recreation Facilities","","R&M - Service Contracts",29/05/2015 00:00:00,"6581729",1160,"PROFESSIONAL SOUND CONSULTANCY LTD"
"Bracknell Forest Council","http://opendatacommunities.org/id/unitary-authority/bracknell-forest","Bracknell Forest Council","00MA","Recreation, Sports and Leisure","Indoor Sports & Recreation Facilities","","Publicity & Marketing",31/05/2015 00:00:00,"6581739",1772,"GLOBAL RADIO SERVICES LTD"
"Bracknell Forest Council","http://opendatacommunities.org/id/unitary-authority/bracknell-forest","Bracknell Forest Council","00MA","Recreation, Sports and Leisure","Indoor Sports & Recreation Facilities","","Publicity & Marketing",31/05/2015 00:00:00,"6581740",2000,"GLOBAL RADIO SERVICES LTD"
"Bracknell Forest Council","http://opendatacommunities.org/id/unitary-authority/bracknell-forest","Bracknell Forest Council","00MA","Open Spaces","Community Parks & Open Spaces","","Contracted Services",20/05/2015 00:00:00,"6581742",6485,"BERKSHIRE TREE CARE"
"Bracknell Forest Council","http://opendatacommunities.org/id/unitary-authority/bracknell-forest","Bracknell Forest Council","00MA","Management and Support Services - CYPL","Unallocated High Needs Related Expenditure","","Voluntary Sector Service Providers",07/09/2015 00:00:00,"6589187",19089,"FARNEY CLOSE SCHOOL"
"Bracknell Forest Council","http://opendatacommunities.org/id/unitary-authority/bracknell-forest","Bracknell Forest Council","00MA","Management and Support Services - CYPL","Unallocated High Needs Related Expenditure","","Other Fees for Bought-in Services",12/08/2015 00:00:00,"6589176",17000,"BERKS HEALTHCARE NHS FOUNDATION TRUST"
"Bracknell Forest Council","http://opendatacommunities.org/id/unitary-authority/bracknell-forest","Bracknell Forest Council","00MA","Management and Support Services - CYPL","Unallocated High Needs Related Expenditure","","Voluntary Sector Service Providers",27/08/2015 00:00:00,"6589220",21333.33,"NAS SERVICES LTD"
"Bracknell Forest Council","http://opendatacommunities.org/id/unitary-authority/bracknell-forest","Bracknell Forest Council","00MA","Transport Planning, Policy & Strategy","Transport Policy, Planning & Strategy","","Contracted Services",14/09/2015 00:00:00,"6589657",761.23,"BRITISH TELECOMMUNICATIONS PLC"
"Bracknell Forest Council","http://opendatacommunities.org/id/unitary-authority/bracknell-forest","Bracknell Forest Council","00MA","Other Education and Community Budget","Service strategy and other education functions","","Approved Conference Fees & Expenses",08/07/2015 00:00:00,"6584756",666,"INSIDE GOVERNMENT"
"Bracknell Forest Council","http://opendatacommunities.org/id/unitary-authority/bracknell-forest","Bracknell Forest Council","00MA","Recreation, Sports and Leisure","Indoor Sports & Recreation Facilities","","Water & Sewerage",03/07/2015 00:00:00,"6584811",1760.46,"THAMES WATER UTILITIES LTD"
"Bracknell Forest Council","http://opendatacommunities.org/id/unitary-authority/bracknell-forest","Bracknell Forest Council","00MA","Recreation, Sports and Leisure","Indoor Sports & Recreation Facilities","","Water & Sewerage",26/06/2015 00:00:00,"6584806",598.13,"SOUTH EAST WATER"
"Bracknell Forest Council","http://opendatacommunities.org/id/unitary-authority/bracknell-forest","Bracknell Forest Council","00MA","Recreation, Sports and Leisure","Indoor Sports & Recreation Facilities","","Water & Sewerage",26/06/2015 00:00:00,"6584807",2737.67,"SOUTH EAST WATER"
"Bracknell Forest Council","http://opendatacommunities.org/id/unitary-authority/bracknell-forest","Bracknell Forest Council","00MA","Other Education and Community Budget","Service strategy and other education functions","","Staff Advertising",18/06/2015 00:00:00,"6584002",3759.5,"AMBLEGLOW LTD"
"Bracknell Forest Council","http://opendatacommunities.org/id/unitary-authority/bracknell-forest","Bracknell Forest Council","00MA","Assistive Equipment & Technology","Assistive Equipment & Technology","","Other Fees for Bought-in Services",21/05/2015 00:00:00,"6582308",1422.81,"PRIORITEYES LTD"
"Bracknell Forest Council","http://opendatacommunities.org/id/unitary-authority/bracknell-forest","Bracknell Forest Council","00MA","Children Looked After","Other services for LAC","","Contracted Services",07/08/2015 00:00:00,"6588979",1237.55,"PERSONAL SECURITY SERVICE LTD"
"Bracknell Forest Council","http://opendatacommunities.org/id/unitary-authority/bracknell-forest","Bracknell Forest Council","00MA","Children Looked After","Other services for LAC","","Contracted Services",31/07/2015 00:00:00,"6588976",813,"SWAAY"
"Bracknell Forest Council","http://opendatacommunities.org/id/unitary-authority/bracknell-forest","Bracknell Forest Council","00MA","Social Care Activities","Social Care Activities","","Contracted Services",15/06/2015 00:00:00,"6584320",690,"VOYAGE CARE"
"Bracknell Forest Council","http://opendatacommunities.org/id/unitary-authority/bracknell-forest","Bracknell Forest Council","00MA","Social Care Activities","Social Care Activities","","Contracted Services",18/05/2015 00:00:00,"6584382",517.5,"VOYAGE CARE"
"Bracknell Forest Council","http://opendatacommunities.org/id/unitary-authority/bracknell-forest","Bracknell Forest Council","00MA","Transport Planning, Policy & Strategy","Transport Policy, Planning & Strategy","","Agency",27/05/2015 00:00:00,"6581329",747,"WATERMAN ASPEN LTD"
"Bracknell Forest Council","http://opendatacommunities.org/id/unitary-authority/bracknell-forest","Bracknell Forest Council","00MA","Transport Planning, Policy & Strategy","Transport Policy, Planning & Strategy","","Agency",27/05/2015 00:00:00,"6581330",1396.47,"WATERMAN ASPEN LTD"
"Bracknell Forest Council","http://opendatacommunities.org/id/unitary-authority/bracknell-forest","Bracknell Forest Council","00MA","Transport Planning, Policy & Strategy","Transport Policy, Planning & Strategy","","Agency",27/05/2015 00:00:00,"6581331",2880,"WATERMAN ASPEN LTD"
"Bracknell Forest Council","http://opendatacommunities.org/id/unitary-authority/bracknell-forest","Bracknell Forest Council","00MA","Transport Planning, Policy & Strategy","Transport Policy, Planning & Strategy","","Agency",31/05/2015 00:00:00,"6582067",564.25,"WATERMAN ASPEN LTD"
"Bracknell Forest Council","http://opendatacommunities.org/id/unitary-authority/bracknell-forest","Bracknell Forest Council","00MA","Transport Planning, Policy & Strategy","Transport Policy, Planning & Strategy","","Agency",31/05/2015 00:00:00,"6582068",1110.45,"WATERMAN ASPEN LTD"
"Bracknell Forest Council","http://opendatacommunities.org/id/unitary-authority/bracknell-forest","Bracknell Forest Council","00MA","Transport Planning, Policy & Strategy","Transport Policy, Planning & Strategy","","Agency",31/05/2015 00:00:00,"6582189",1152,"WATERMAN ASPEN LTD"
"Bracknell Forest Council","http://opendatacommunities.org/id/unitary-authority/bracknell-forest","Bracknell Forest Council","00MA","Central Support Services - COF","Information Technology","","Training Costs",04/06/2015 00:00:00,"6582323",630,"GOVNET COMMUNICATIONS"
"Bracknell Forest Council","http://opendatacommunities.org/id/unitary-authority/bracknell-forest","Bracknell Forest Council","00MA","Transport Planning, Policy & Strategy","Transport Policy, Planning & Strategy","","Agency",13/05/2015 00:00:00,"6580441",555.22,"WATERMAN ASPEN LTD"
"Bracknell Forest Council","http://opendatacommunities.org/id/unitary-authority/bracknell-forest","Bracknell Forest Council","00MA","Transport Planning, Policy & Strategy","Transport Policy, Planning & Strategy","","Agency",19/05/2015 00:00:00,"6580509",1379.65,"WATERMAN ASPEN LTD"
"Bracknell Forest Council","http://opendatacommunities.org/id/unitary-authority/bracknell-forest","Bracknell Forest Council","00MA","Transport Planning, Policy & Strategy","Transport Policy, Planning & Strategy","","Agency",19/05/2015 00:00:00,"6581183",612,"WATERMAN ASPEN LTD"
"Bracknell Forest Council","http://opendatacommunities.org/id/unitary-authority/bracknell-forest","Bracknell Forest Council","00MA","Management and Support Services - CYPL","Holding Codes - net nil","","Externally Purchased Professional Services-curriculum",03/06/2015 00:00:00,"6582086",1864,"SOUTH EAST SPORTS MANAGEMENT LTD"
"Bracknell Forest Council","http://opendatacommunities.org/id/unitary-authority/bracknell-forest","Bracknell Forest Council","00MA","Post 16 Provision","High needs budget fpr post-16 provision","","Voluntary Sector Service Providers",05/05/2015 00:00:00,"6582158",15217.71,"LVS - HASSOCKS"
"Bracknell Forest Council","http://opendatacommunities.org/id/unitary-authority/bracknell-forest","Bracknell Forest Council","00MA","Culture and Heritage","Heritage Museums & Galleries","","Equipment - R&M",07/09/2015 00:00:00,"6589661",1085,"CROWTHORNE HEATING CO."
"Bracknell Forest Council","http://opendatacommunities.org/id/unitary-authority/bracknell-forest","Bracknell Forest Council","00MA","Social Care Activities","Social Care Activities","","Contracted Services",21/07/2015 00:00:00,"6588550",6989,"INNERSENSE"
"Bracknell Forest Council","http://opendatacommunities.org/id/unitary-authority/bracknell-forest","Bracknell Forest Council","00MA","Culture and Heritage","Heritage Museums & Galleries","","Equipment - R&M",12/08/2015 00:00:00,"6587535",643.5,"ARD PLAYGROUNDS"
"Bracknell Forest Council","http://opendatacommunities.org/id/unitary-authority/bracknell-forest","Bracknell Forest Council","00MA","Safeguarding Children and Young People�s Services","Social Work","","Agency",10/08/2015 00:00:00,"6587501",1500,"NONSTOP RECRUITMENT"
"Bracknell Forest Council","http://opendatacommunities.org/id/unitary-authority/bracknell-forest","Bracknell Forest Council","00MA","Safeguarding Children and Young People�s Services","Social Work","","Agency",10/08/2015 00:00:00,"6587502",1500,"NONSTOP RECRUITMENT"
"Bracknell Forest Council","http://opendatacommunities.org/id/unitary-authority/bracknell-forest","Bracknell Forest Council","00MA","Safeguarding Children and Young People�s Services","Social Work","","Agency",10/08/2015 00:00:00,"6587500",1500,"NONSTOP RECRUITMENT"
"Bracknell Forest Council","http://opendatacommunities.org/id/unitary-authority/bracknell-forest","Bracknell Forest Council","00MA","Early Years","High Needs Budget for Ealry Years","","Contract Cleaning",27/08/2015 00:00:00,"6588599",1499,"YBC CLEANING SERVICES LTD"
"Bracknell Forest Council","http://opendatacommunities.org/id/unitary-authority/bracknell-forest","Bracknell Forest Council","00MA","Older People (65+)","Long Term Support - Community:Supported Living","","Contracted Services",09/07/2015 00:00:00,"6585034",581.8,"DISABILITY INITIATIVE"
"Bracknell Forest Council","http://opendatacommunities.org/id/unitary-authority/bracknell-forest","Bracknell Forest Council","00MA","Commissioning & Service Delivery","Commissioning & Service Delivery","","R&M - Reactive",24/06/2015 00:00:00,"6585543",660,"GRAHAM ASSET MANAGEMENT LTD"
"Bracknell Forest Council","http://opendatacommunities.org/id/unitary-authority/bracknell-forest","Bracknell Forest Council","00MA","Family Support Services","Targeted Family Support","","Computer -Purchase",09/07/2015 00:00:00,"6585598",703.46,"DELL COMPUTER CORPORATION"
"Bracknell Forest Council","http://opendatacommunities.org/id/unitary-authority/bracknell-forest","Bracknell Forest Council","00MA","Special Schools & Alternative Provision","Pupil Referral Units","","R&M - Reactive",31/03/2015 00:00:00,"6582563",1913,"GRAHAM ASSET MANAGEMENT LTD"
"Bracknell Forest Council","http://opendatacommunities.org/id/unitary-authority/bracknell-forest","Bracknell Forest Council","00MA","Management and Support Services - CYPL","Strategy, Resources and Early Interventions","","Catering Equipment - Purchase",19/06/2015 00:00:00,"6583550",725,"HOBART UK (CAPITAL)"
"Bracknell Forest Council","http://opendatacommunities.org/id/unitary-authority/bracknell-forest","Bracknell Forest Council","00MA","Service Management & Support Services","Service Management & Support Services","","Reference Books & Publications",02/12/2014 00:00:00,"6582543",520,"SWEET & MAXWELL LTD"
"Bracknell Forest Council","http://opendatacommunities.org/id/unitary-authority/bracknell-forest","Bracknell Forest Council","00MA","Primary Schools","Delegated Primary School Budgets","","R&M - Reactive",31/05/2015 00:00:00,"6582557",1771,"GRAHAM ASSET MANAGEMENT LTD"
"Bracknell Forest Council","http://opendatacommunities.org/id/unitary-authority/bracknell-forest","Bracknell Forest Council","00MA","Primary Schools","Delegated Primary School Budgets","","R&M - Reactive",31/05/2015 00:00:00,"6582559",1848,"GRAHAM ASSET MANAGEMENT LTD"
"Bracknell Forest Council","http://opendatacommunities.org/id/unitary-authority/bracknell-forest","Bracknell Forest Council","00MA","Youth Justice","Youth Justice - Direct","","R&M - Reactive",31/05/2015 00:00:00,"6582562",1353,"GRAHAM ASSET MANAGEMENT LTD"
"Bracknell Forest Council","http://opendatacommunities.org/id/unitary-authority/bracknell-forest","Bracknell Forest Council","00MA","Physical Activity","Physical activity for adults","","Contracted Services",18/05/2015 00:00:00,"6582049",12122.43,"SOLUTIONS 4 HEALTH LTD"
"Bracknell Forest Council","http://opendatacommunities.org/id/unitary-authority/bracknell-forest","Bracknell Forest Council","00MA","Central Support Services - COF","Information Technology","","Telephones - Rental & Call Charges",09/06/2015 00:00:00,"6582540",16029.3,"BRITISH TELECOM"
"Bracknell Forest Council","http://opendatacommunities.org/id/unitary-authority/bracknell-forest","Bracknell Forest Council","00MA","Cemeteries, Crematoria & Mortuary Services","Cemeteries & Crematorium","","Equipment - Purchase",28/05/2015 00:00:00,"6581722",2916.67,"SONNING MOWERS"
"Bracknell Forest Council","http://opendatacommunities.org/id/unitary-authority/bracknell-forest","Bracknell Forest Council","00MA","Central Support Services - COF","Information Technology","","Equipment - R&M",29/05/2015 00:00:00,"6581728",6012.28,"CHASE SECURITY SOLUTIONS LTD T/A CAMEY SECURITY"
"Bracknell Forest Council","http://opendatacommunities.org/id/unitary-authority/bracknell-forest","Bracknell Forest Council","00MA","Central Support Services - COF","Finance","","Subscriptions",01/06/2015 00:00:00,"6581738",4570,"ATAMIS LIMITED"
"Bracknell Forest Council","http://opendatacommunities.org/id/unitary-authority/bracknell-forest","Bracknell Forest Council","00MA","Open Spaces","Community Parks & Open Spaces","","R&M - Reactive",07/08/2015 00:00:00,"6587519",657.36,"B.T.U. (MAINTENANCE) LTD"
"Bracknell Forest Council","http://opendatacommunities.org/id/unitary-authority/bracknell-forest","Bracknell Forest Council","00MA","Recreation, Sports and Leisure","Golf Courses","","Equipment - R&M",15/07/2015 00:00:00,"6587541",518.2,"FAST TRACK SERVICES (SOUTHERN)  LTD"
"Bracknell Forest Council","http://opendatacommunities.org/id/unitary-authority/bracknell-forest","Bracknell Forest Council","00MA","Culture and Heritage","Heritage Museums & Galleries","","Cost of Goods Sold",20/07/2015 00:00:00,"6587546",981,"KEYCRAFT"
"Bracknell Forest Council","http://opendatacommunities.org/id/unitary-authority/bracknell-forest","Bracknell Forest Council","00MA","Culture and Heritage","Heritage Museums & Galleries","","Cost of Goods Sold",16/07/2015 00:00:00,"6587559",1078.04,"TOBAR LIMITED"
"Bracknell Forest Council","http://opendatacommunities.org/id/unitary-authority/bracknell-forest","Bracknell Forest Council","00MA","Safeguarding Children and Young People�s Services","Social Work","","Agency",12/07/2015 00:00:00,"6588993",1625.89,"SEVEN RESOURCING LTD"
"Bracknell Forest Council","http://opendatacommunities.org/id/unitary-authority/bracknell-forest","Bracknell Forest Council","00MA","Sure Start Children�s Centres","Centrally managed expenditure - children�s centres","","Other Fees for Bought-in Services",12/08/2015 00:00:00,"6589176",2033.33,"BERKS HEALTHCARE NHS FOUNDATION TRUST"
"Bracknell Forest Council","http://opendatacommunities.org/id/unitary-authority/bracknell-forest","Bracknell Forest Council","00MA","Holding Accounts not in Budget Book - COF","General Holding Accounts","","R&M - Planned",27/08/2015 00:00:00,"6589610",8678,"CEMPLAS WATERPROOFING & CONCRETE REPAIRS LTD"
"Bracknell Forest Council","http://opendatacommunities.org/id/unitary-authority/bracknell-forest","Bracknell Forest Council","00MA","Holding Accounts not in Budget Book - COF","General Holding Accounts","","R&M - Planned",27/08/2015 00:00:00,"6589610",1766,"CEMPLAS WATERPROOFING & CONCRETE REPAIRS LTD"
"Bracknell Forest Council","http://opendatacommunities.org/id/unitary-authority/bracknell-forest","Bracknell Forest Council","00MA","Culture and Heritage","Heritage Museums & Galleries","","R&M - Service Contracts",15/07/2015 00:00:00,"6589663",550,"BERKSHIRE MECHANICAL SERVICES"
"Bracknell Forest Council","http://opendatacommunities.org/id/unitary-authority/bracknell-forest","Bracknell Forest Council","00MA","Cemeteries, Crematoria & Mortuary Services","Cemeteries & Crematorium","","Other Fees for Bought-in Services",28/08/2015 00:00:00,"6589664",14570,"ATKINS LTD"
"Bracknell Forest Council","http://opendatacommunities.org/id/unitary-authority/bracknell-forest","Bracknell Forest Council","00MA","Recreation, Sports and Leisure","Indoor Sports & Recreation Facilities","","Consultants Fees",31/08/2015 00:00:00,"6589047",786.71,"CFB LTD"
"Bracknell Forest Council","http://opendatacommunities.org/id/unitary-authority/bracknell-forest","Bracknell Forest Council","00MA","Waste Disposal","Disposal of Waste","","Contracted Services",31/08/2015 00:00:00,"6589076",1093.61,"ENITIAL"
"Bracknell Forest Council","http://opendatacommunities.org/id/unitary-authority/bracknell-forest","Bracknell Forest Council","00MA","Central Support Services - COF","Information Technology","","Telephones - Rental & Call Charges",11/06/2015 00:00:00,"6582538",3327.59,"VODAFONE LIMITED"
"Bracknell Forest Council","http://opendatacommunities.org/id/unitary-authority/bracknell-forest","Bracknell Forest Council","00MA","Recreation, Sports and Leisure","Golf Courses","","Cost of Goods Sold",13/04/2015 00:00:00,"6582567",867,"SRIXON"
"Bracknell Forest Council","http://opendatacommunities.org/id/unitary-authority/bracknell-forest","Bracknell Forest Council","00MA","Public Transport","Co-Ordination","","R&M - Reactive",31/05/2015 00:00:00,"6582485",3723.5,"GRAHAM ASSET MANAGEMENT LTD"
"Bracknell Forest Council","http://opendatacommunities.org/id/unitary-authority/bracknell-forest","Bracknell Forest Council","00MA","Social Care Activities","Social Care Activities","","Agency",07/05/2015 00:00:00,"6581273",1433.72,"BEACON CARE SERVICES LTD"
"Bracknell Forest Council","http://opendatacommunities.org/id/unitary-authority/bracknell-forest","Bracknell Forest Council","00MA","Conducting Elections","Other Elections","","Postage",29/04/2015 00:00:00,"6582517",1853.09,"LATCHAM DIRECT"
"Bracknell Forest Council","http://opendatacommunities.org/id/unitary-authority/bracknell-forest","Bracknell Forest Council","00MA","Social Care Activities","Social Care Activities","","Agency",30/04/2015 00:00:00,"6581272",1294.39,"BEACON CARE SERVICES LTD"
"Bracknell Forest Council","http://opendatacommunities.org/id/unitary-authority/bracknell-forest","Bracknell Forest Council","00MA","Social Care Activities","Social Care Activities","","Agency",14/05/2015 00:00:00,"6581275",1226.83,"BEACON CARE SERVICES LTD"
"Bracknell Forest Council","http://opendatacommunities.org/id/unitary-authority/bracknell-forest","Bracknell Forest Council","00MA","Social Care Activities","Social Care Activities","","Agency",21/05/2015 00:00:00,"6581276",1295.4,"BEACON CARE SERVICES LTD"
"Bracknell Forest Council","http://opendatacommunities.org/id/unitary-authority/bracknell-forest","Bracknell Forest Council","00MA","Recreation, Sports and Leisure","Golf Courses","","Cost of Goods Sold",13/04/2015 00:00:00,"60012283",823.65,"SRIXON"
"Bracknell Forest Council","http://opendatacommunities.org/id/unitary-authority/bracknell-forest","Bracknell Forest Council","00MA","Regulatory Services","Weights and Measures","","Equipment - R&M",11/06/2015 00:00:00,"6583151",580,"NEW CITY SCALES"
"Bracknell Forest Council","http://opendatacommunities.org/id/unitary-authority/bracknell-forest","Bracknell Forest Council","00MA","Culture and Heritage","Heritage Museums & Galleries","","Cost of Goods Sold",01/07/2015 00:00:00,"6585436",1430.39,"KEYCRAFT"
"Bracknell Forest Council","http://opendatacommunities.org/id/unitary-authority/bracknell-forest","Bracknell Forest Council","00MA","Public Transport","Co-Ordination","","Other Fees for Bought-in Services",22/06/2015 00:00:00,"6585576",1013.9,"SIMULATION SYSTEMS LTD"
"Bracknell Forest Council","http://opendatacommunities.org/id/unitary-authority/bracknell-forest","Bracknell Forest Council","00MA","Children Looked After","Leaving care support services","","Other Support to Clients",30/06/2015 00:00:00,"6590682",3835.2,"MOVING ON CARE MANAGEMENT LTD"
"Bracknell Forest Council","http://opendatacommunities.org/id/unitary-authority/bracknell-forest","Bracknell Forest Council","00MA","Children Looked After","Leaving care support services","","Other Support to Clients",25/09/2015 00:00:00,"6590729",1492.31,"ACORN PROPERTY MANAGEMENT"
"Bracknell Forest Council","http://opendatacommunities.org/id/unitary-authority/bracknell-forest","Bracknell Forest Council","00MA","Recreation, Sports and Leisure","Golf Courses","","Cost of Goods Sold",17/08/2015 00:00:00,"6590732",690,"PREMIUM GOLF BRANDS"
"Bracknell Forest Council","http://opendatacommunities.org/id/unitary-authority/bracknell-forest","Bracknell Forest Council","00MA","Short Term Support Maximise Independence","Short Term Support to Maximise Independence","","Other Fees for Bought-in Services",17/09/2015 00:00:00,"6590738",1140,"METRO ROD"
"Bracknell Forest Council","http://opendatacommunities.org/id/unitary-authority/bracknell-forest","Bracknell Forest Council","00MA","Holding Accounts not in Budget Book - COF","General Holding Accounts","","R&M - Planned",09/09/2015 00:00:00,"6590012",2420,"BENVILLE AND MARSH LTD"
"Bracknell Forest Council","http://opendatacommunities.org/id/unitary-authority/bracknell-forest","Bracknell Forest Council","00MA","Culture and Heritage","Heritage Museums & Galleries","","Equipment - Purchase",11/09/2015 00:00:00,"6590009",2328,"PLAYDALE PLAYGROUNDS LTD"
"Bracknell Forest Council","http://opendatacommunities.org/id/unitary-authority/bracknell-forest","Bracknell Forest Council","00MA","Children Looked After","Leaving care support services","","Other Support to Clients",31/07/2015 00:00:00,"6590684",2529.6,"MOVING ON CARE MANAGEMENT LTD"
"Bracknell Forest Council","http://opendatacommunities.org/id/unitary-authority/bracknell-forest","Bracknell Forest Council","00MA","Children Looked After","Leaving care support services","","Other Support to Clients",30/06/2015 00:00:00,"6590686",3237.95,"MOVING ON CARE MANAGEMENT LTD"
"Bracknell Forest Council","http://opendatacommunities.org/id/unitary-authority/bracknell-forest","Bracknell Forest Council","00MA","Children Looked After","Leaving care support services","","Other Support to Clients",31/07/2015 00:00:00,"6590687",2529.6,"MOVING ON CARE MANAGEMENT LTD"
"Bracknell Forest Council","http://opendatacommunities.org/id/unitary-authority/bracknell-forest","Bracknell Forest Council","00MA","Public Transport","Support To Operators","","Other Fees for Bought-in Services",18/09/2015 00:00:00,"6590726",3264.81,"CAPACITYGRID"
"Bracknell Forest Council","http://opendatacommunities.org/id/unitary-authority/bracknell-forest","Bracknell Forest Council","00MA","Internal Services","Internal Services","","Water & Sewerage",21/07/2015 00:00:00,"6586629",567.07,"SOUTH EAST WATER"
"Bracknell Forest Council","http://opendatacommunities.org/id/unitary-authority/bracknell-forest","Bracknell Forest Council","00MA","Safeguarding Children and Young People�s Services","Social Work","","Agency",05/07/2015 00:00:00,"6584800",1497.89,"SEVEN RESOURCING LTD"
"Bracknell Forest Council","http://opendatacommunities.org/id/unitary-authority/bracknell-forest","Bracknell Forest Council","00MA","Development Control","Applications - Development Control","","Agency",30/06/2015 00:00:00,"6583981",1659.45,"REBECCA LORD PLANNING"
"Bracknell Forest Council","http://opendatacommunities.org/id/unitary-authority/bracknell-forest","Bracknell Forest Council","00MA","Post 16 Provision","High needs budget fpr post-16 provision","","Voluntary Sector Service Providers",11/12/2014 00:00:00,"6582314",6045.49,"BERKS COLLEGE OF AGRICULTURE"
"Bracknell Forest Council","http://opendatacommunities.org/id/unitary-authority/bracknell-forest","Bracknell Forest Council","00MA","Post 16 Provision","High needs budget fpr post-16 provision","","Voluntary Sector Service Providers",11/12/2014 00:00:00,"6582314",2735.46,"BERKS COLLEGE OF AGRICULTURE"
"Bracknell Forest Council","http://opendatacommunities.org/id/unitary-authority/bracknell-forest","Bracknell Forest Council","00MA","Post 16 Provision","High needs budget fpr post-16 provision","","Voluntary Sector Service Providers",11/12/2014 00:00:00,"6582315",3419.33,"BERKS COLLEGE OF AGRICULTURE"
"Bracknell Forest Council","http://opendatacommunities.org/id/unitary-authority/bracknell-forest","Bracknell Forest Council","00MA","Post 16 Provision","High needs budget fpr post-16 provision","","Voluntary Sector Service Providers",11/12/2014 00:00:00,"6582315",6045.87,"BERKS COLLEGE OF AGRICULTURE"
"Bracknell Forest Council","http://opendatacommunities.org/id/unitary-authority/bracknell-forest","Bracknell Forest Council","00MA","General Grants, Bequests & Donations","General Grants, Bequests & Donations","","Other Fees for Bought-in Services",17/06/2015 00:00:00,"6582577",733.98,"LITTLE ACORNS MONTESSORI LTD"
"Bracknell Forest Council","http://opendatacommunities.org/id/unitary-authority/bracknell-forest","Bracknell Forest Council","00MA","Children Looked After","Fostering services","","Contracted Services",01/06/2015 00:00:00,"6582645",5545.8,"ISP CHILDCARE"
"Bracknell Forest Council","http://opendatacommunities.org/id/unitary-authority/bracknell-forest","Bracknell Forest Council","00MA","Children Looked After","Fostering services","","Contracted Services",31/05/2015 00:00:00,"6582646",3221.21,"NATIONAL FOSTERING AGENCY"
"Bracknell Forest Council","http://opendatacommunities.org/id/unitary-authority/bracknell-forest","Bracknell Forest Council","00MA","Children Looked After","Fostering services","","Contracted Services",31/05/2015 00:00:00,"6582647",1714.35,"NATIONAL FOSTERING AGENCY"
"Bracknell Forest Council","http://opendatacommunities.org/id/unitary-authority/bracknell-forest","Bracknell Forest Council","00MA","Children Looked After","Fostering services","","Contracted Services",01/06/2015 00:00:00,"6582648",3764.29,"FIVE RIVERS CHILD CARE LTD"
"Bracknell Forest Council","http://opendatacommunities.org/id/unitary-authority/bracknell-forest","Bracknell Forest Council","00MA","General Grants, Bequests & Donations","General Grants, Bequests & Donations","","Other Fees for Bought-in Services",18/06/2015 00:00:00,"6582698",3530.72,"LITTLE ACORNS MONTESSORI LTD"
"Bracknell Forest Council","http://opendatacommunities.org/id/unitary-authority/bracknell-forest","Bracknell Forest Council","00MA","Recreation, Sports and Leisure","Indoor Sports & Recreation Facilities","","Cleaning materials",27/05/2015 00:00:00,"6582938",718.2,"SOURCE CLEANING SUPPLIES"
"Bracknell Forest Council","http://opendatacommunities.org/id/unitary-authority/bracknell-forest","Bracknell Forest Council","00MA","Commissioning & Service Delivery","Commissioning & Service Delivery","","Contracted Services",10/06/2015 00:00:00,"6583149",11465.62,"RETHINK"
"Bracknell Forest Council","http://opendatacommunities.org/id/unitary-authority/bracknell-forest","Bracknell Forest Council","00MA","Substance Misuse","Drug misuse in adults","","Contracted Services",22/05/2015 00:00:00,"6581577",88964.35,"SMART CRIMINAL JUSTICE SERVICES"
"Bracknell Forest Council","http://opendatacommunities.org/id/unitary-authority/bracknell-forest","Bracknell Forest Council","00MA","Sexual Health Services","STI testing and treatment","","Contracted Services",15/05/2015 00:00:00,"6581269",223774,"ROYAL BERKSHIRE HOSPITAL"
"Bracknell Forest Council","http://opendatacommunities.org/id/unitary-authority/bracknell-forest","Bracknell Forest Council","00MA","Management and Support Services - CYPL","Unallocated High Needs Related Expenditure","","Voluntary Sector Service Providers",20/07/2015 00:00:00,"6588017",1500,"INCLUDE LTD"
"Bracknell Forest Council","http://opendatacommunities.org/id/unitary-authority/bracknell-forest","Bracknell Forest Council","00MA","Older People (65+)","Internal Services","","Agency",05/08/2015 00:00:00,"6588098",925.38,"CONTRACT OPTIONS"
"Bracknell Forest Council","http://opendatacommunities.org/id/unitary-authority/bracknell-forest","Bracknell Forest Council","00MA","Children Looked After","Fostering services","","Contracted Services",17/04/2015 00:00:00,"6590162",516.24,"ISP CHILDCARE"
"Bracknell Forest Council","http://opendatacommunities.org/id/unitary-authority/bracknell-forest","Bracknell Forest Council","00MA","Social Care Activities","Social Care Activities","","Agency",01/09/2015 00:00:00,"6590195",1250.97,"JCJ LOCUMS LTD"
"Bracknell Forest Council","http://opendatacommunities.org/id/unitary-authority/bracknell-forest","Bracknell Forest Council","00MA","Children Looked After","Fostering services","","Contracted Services",31/08/2015 00:00:00,"6590204",1071.43,"SUNBEAM FOSTERING AGENCY LIMITED"
"Bracknell Forest Council","http://opendatacommunities.org/id/unitary-authority/bracknell-forest","Bracknell Forest Council","00MA","Children Looked After","Fostering services","","Contracted Services",14/09/2015 00:00:00,"6590205",3684.66,"MOMENTS  FOSTERING LTD"
"Bracknell Forest Council","http://opendatacommunities.org/id/unitary-authority/bracknell-forest","Bracknell Forest Council","00MA","Children Looked After","Fostering services","","Contracted Services",14/09/2015 00:00:00,"6590206",3100,"MOMENTS  FOSTERING LTD"
"Bracknell Forest Council","http://opendatacommunities.org/id/unitary-authority/bracknell-forest","Bracknell Forest Council","00MA","Children Looked After","Fostering services","","Contracted Services",14/09/2015 00:00:00,"6590207",2967.01,"MOMENTS  FOSTERING LTD"
"Bracknell Forest Council","http://opendatacommunities.org/id/unitary-authority/bracknell-forest","Bracknell Forest Council","00MA","Children Looked After","Fostering services","","Contracted Services",01/08/2015 00:00:00,"6590208",4344.43,"BY THE BRIDGE"
"Bracknell Forest Council","http://opendatacommunities.org/id/unitary-authority/bracknell-forest","Bracknell Forest Council","00MA","Homelessness","Bed/Breakfast Accommodation","","Other Support to Clients",24/09/2015 00:00:00,"6590724",696,"TITAN STORAGE SOLUTIONS"
"Bracknell Forest Council","http://opendatacommunities.org/id/unitary-authority/bracknell-forest","Bracknell Forest Council","00MA","Central Support Services - COF","Customer Service Centre","","Banking Charges",07/09/2015 00:00:00,"6590731",4023.33,"CAPITA BUSINESS SERVICES LTD"
"Bracknell Forest Council","http://opendatacommunities.org/id/unitary-authority/bracknell-forest","Bracknell Forest Council","00MA","Recreation, Sports and Leisure","Indoor Sports & Recreation Facilities","","Equipment - Purchase",14/08/2015 00:00:00,"6588657",1735.68,"J P LENNARD LTD"
"Bracknell Forest Council","http://opendatacommunities.org/id/unitary-authority/bracknell-forest","Bracknell Forest Council","00MA","Recreation, Sports and Leisure","Indoor Sports & Recreation Facilities","","Cleaning materials",18/08/2015 00:00:00,"6588659",791.18,"BOWAK LTD"
"Bracknell Forest Council","http://opendatacommunities.org/id/unitary-authority/bracknell-forest","Bracknell Forest Council","00MA","Recreation, Sports and Leisure","Golf Courses","","Cost of Goods - Bar",17/08/2015 00:00:00,"6588669",704.56,"MATTHEW CLARK WHOLESALE"
"Bracknell Forest Council","http://opendatacommunities.org/id/unitary-authority/bracknell-forest","Bracknell Forest Council","00MA","Structural Maintenance","Bridges","","Consultants Fees",10/06/2015 00:00:00,"6583176",518.69,"ATKINS LTD"
"Bracknell Forest Council","http://opendatacommunities.org/id/unitary-authority/bracknell-forest","Bracknell Forest Council","00MA","Structural Maintenance","Bridges","","Consultants Fees",10/06/2015 00:00:00,"6583176",1109.76,"ATKINS LTD"
"Bracknell Forest Council","http://opendatacommunities.org/id/unitary-authority/bracknell-forest","Bracknell Forest Council","00MA","Management and Support Services - CYPL","Unallocated High Needs Related Expenditure","","Training Costs",21/04/2015 00:00:00,"6582547",4754,"ACTIVATE LEARNING"
"Bracknell Forest Council","http://opendatacommunities.org/id/unitary-authority/bracknell-forest","Bracknell Forest Council","00MA","Central Support Services - COF","Personnel","","Training Costs",24/06/2015 00:00:00,"6584038",2950,"PERSONALISED BUSINESS SOLUTIONS LTD"
"Bracknell Forest Council","http://opendatacommunities.org/id/unitary-authority/bracknell-forest","Bracknell Forest Council","00MA","Management and Support Services - CYPL","Strategy, Resources and Early Interventions","","Other Fees for Bought-in Services",09/06/2015 00:00:00,"6582292",840,"CIRCUS SCENE LTD"
"Bracknell Forest Council","http://opendatacommunities.org/id/unitary-authority/bracknell-forest","Bracknell Forest Council","00MA","Management and Support Services - CYPL","Holding Codes - net nil","","Other Fees for Bought-in Services",28/04/2015 00:00:00,"6582304",505.04,"AUTHORS ALOUD UK"
"Bracknell Forest Council","http://opendatacommunities.org/id/unitary-authority/bracknell-forest","Bracknell Forest Council","00MA","Management and Support Services - CYPL","Holding Codes - net nil","","Other Fees for Bought-in Services",28/04/2015 00:00:00,"6582305",790.4,"AUTHORS ALOUD UK"
"Bracknell Forest Council","http://opendatacommunities.org/id/unitary-authority/bracknell-forest","Bracknell Forest Council","00MA","Substance Misuse","Drug misuse in adults","","Contracted Services",20/05/2015 00:00:00,"6581880",1988,"NHS BRACKNELL AND ASCOT CCG"
"Bracknell Forest Council","http://opendatacommunities.org/id/unitary-authority/bracknell-forest","Bracknell Forest Council","00MA","Substance Misuse","Drug misuse in adults","","Contracted Services",31/05/2015 00:00:00,"6581877",2984.99,"THE NELSON TRUST"
"Bracknell Forest Council","http://opendatacommunities.org/id/unitary-authority/bracknell-forest","Bracknell Forest Council","00MA","Physical Activity","Physical activity for children","","Contracted Services",03/06/2015 00:00:00,"6581997",21405.71,"BACYP"
"Bracknell Forest Council","http://opendatacommunities.org/id/unitary-authority/bracknell-forest","Bracknell Forest Council","00MA","Social Care Activities","Social Care Activities","","Other Support to Clients",06/06/2015 00:00:00,"6582022",855.8,"CLAIRE SELF"
"Bracknell Forest Council","http://opendatacommunities.org/id/unitary-authority/bracknell-forest","Bracknell Forest Council","00MA","Safeguarding Children and Young People�s Services","Social Work","","Agency",31/05/2015 00:00:00,"6582025",1350,"TEMPEST RESOURCING"
"Bracknell Forest Council","http://opendatacommunities.org/id/unitary-authority/bracknell-forest","Bracknell Forest Council","00MA","Central Support Services - COF","Policy Unit","","Agency",02/06/2015 00:00:00,"6582242",3450,"EVODIA LTD"
"Bracknell Forest Council","http://opendatacommunities.org/id/unitary-authority/bracknell-forest","Bracknell Forest Council","00MA","Children Looked After","Residential care","","Contracted Services",09/06/2015 00:00:00,"6582650",16157.14,"MARLOWE CHILD & FAMILY SERVICES LTD"
"Bracknell Forest Council","http://opendatacommunities.org/id/unitary-authority/bracknell-forest","Bracknell Forest Council","00MA","Children Looked After","Residential care","","Contracted Services",01/06/2015 00:00:00,"6582657",5545.8,"ISP CHILDCARE"
"Bracknell Forest Council","http://opendatacommunities.org/id/unitary-authority/bracknell-forest","Bracknell Forest Council","00MA","Other Education and Community Budget","Service strategy and other education functions","","Other Fees for Bought-in Services",26/05/2015 00:00:00,"6581754",2000,"CAPITA PROPERTY & INFRASTRUCTURE"
"Bracknell Forest Council","http://opendatacommunities.org/id/unitary-authority/bracknell-forest","Bracknell Forest Council","00MA","Libraries","Stock Ordering, Cataloguing & Distribution","","Audio/Visual materials",19/05/2015 00:00:00,"6581760",746.42,"OVERDRIVE INC"
"Bracknell Forest Council","http://opendatacommunities.org/id/unitary-authority/bracknell-forest","Bracknell Forest Council","00MA","Open Spaces","Community Parks & Open Spaces","","R&M - Reactive",01/06/2015 00:00:00,"6582027",1227.77,"WATERMETRICS (UK) LLP"
"Bracknell Forest Council","http://opendatacommunities.org/id/unitary-authority/bracknell-forest","Bracknell Forest Council","00MA","Business Support","Premises Development","","R&M - Reactive",18/05/2015 00:00:00,"6581741",667.5,"CWE SERVICES LTD"
"Bracknell Forest Council","http://opendatacommunities.org/id/unitary-authority/bracknell-forest","Bracknell Forest Council","00MA","Vehicles &  Plant","Vehicles and Plant Summary Account","","Operating Lease Charge",01/09/2015 00:00:00,"6590177",1827.05,"ALPHABET (GB) LTD"
"Bracknell Forest Council","http://opendatacommunities.org/id/unitary-authority/bracknell-forest","Bracknell Forest Council","00MA","Culture and Heritage","Heritage Museums & Galleries","","Equipment - Purchase",04/08/2015 00:00:00,"6588654",1000,"TEA COSY CATERING"
"Bracknell Forest Council","http://opendatacommunities.org/id/unitary-authority/bracknell-forest","Bracknell Forest Council","00MA","Services for Young People","Universal services for young people","","R&M - Reactive",15/05/2015 00:00:00,"6583222",6300,"LODDON DOOR SERVICES LIMITED"
"Bracknell Forest Council","http://opendatacommunities.org/id/unitary-authority/bracknell-forest","Bracknell Forest Council","00MA","Management and Support Services - CYPL","Strategy, Resources and Early Interventions","","Catering Equipment - Purchase",19/06/2015 00:00:00,"6583549",1378,"HOBART UK (CAPITAL)"
"Bracknell Forest Council","http://opendatacommunities.org/id/unitary-authority/bracknell-forest","Bracknell Forest Council","00MA","Safeguarding Children and Young People�s Services","Social Work","","Agency",09/06/2015 00:00:00,"6583192",1500,"NONSTOP RECRUITMENT"
"Bracknell Forest Council","http://opendatacommunities.org/id/unitary-authority/bracknell-forest","Bracknell Forest Council","00MA","Safeguarding Children and Young People�s Services","Social Work","","Agency",07/06/2015 00:00:00,"6583193",1665,"TEMPEST RESOURCING"
"Bracknell Forest Council","http://opendatacommunities.org/id/unitary-authority/bracknell-forest","Bracknell Forest Council","00MA","Recreation, Sports and Leisure","Indoor Sports & Recreation Facilities","","R&M - Reactive",16/04/2015 00:00:00,"6583201",800,"BERKSHIRE MECHANICAL SERVICES"
"Bracknell Forest Council","http://opendatacommunities.org/id/unitary-authority/bracknell-forest","Bracknell Forest Council","00MA","Adults (18-64)","Long Term Support - Community:Supported Living","","Contracted Services",09/07/2015 00:00:00,"6585039",640.15,"DISABILITY INITIATIVE"
"Bracknell Forest Council","http://opendatacommunities.org/id/unitary-authority/bracknell-forest","Bracknell Forest Council","00MA","Culture and Heritage","Heritage Museums & Galleries","","Equipment - R&M",04/08/2015 00:00:00,"6587482",1650.45,"HMC COMPLIANCE LTD"
"Bracknell Forest Council","http://opendatacommunities.org/id/unitary-authority/bracknell-forest","Bracknell Forest Council","00MA","Culture and Heritage","Heritage Museums & Galleries","","Equipment - R&M",11/08/2015 00:00:00,"6587117",4988,"ARD PLAYGROUNDS"
"Bracknell Forest Council","http://opendatacommunities.org/id/unitary-authority/bracknell-forest","Bracknell Forest Council","00MA","Early Years","High Needs Budget for Ealry Years","","Minor Improvement Schemes",04/08/2015 00:00:00,"6587114",3950,"MEB BUILDING & REFURBISHMENT LTD"
"Bracknell Forest Council","http://opendatacommunities.org/id/unitary-authority/bracknell-forest","Bracknell Forest Council","00MA","Older People (65+)","Internal Services","","Agency",05/08/2015 00:00:00,"6588050",708.44,"CARELINE"
"Bracknell Forest Council","http://opendatacommunities.org/id/unitary-authority/bracknell-forest","Bracknell Forest Council","00MA","Parking Services","Off Street Parking","","Banking Charges",18/08/2015 00:00:00,"6588044",2093.3,"VINCI PARK SERVICES UK LTD"
"Bracknell Forest Council","http://opendatacommunities.org/id/unitary-authority/bracknell-forest","Bracknell Forest Council","00MA","Public Transport","Concessionary Fares","","Contracted Services",14/08/2015 00:00:00,"6587505",5250,"STAGECOACH HANTS AND SURREY"
"Bracknell Forest Council","http://opendatacommunities.org/id/unitary-authority/bracknell-forest","Bracknell Forest Council","00MA","Management and Support Services - CYPL","Unallocated High Needs Related Expenditure","","Other Fees for Bought-in Services",20/07/2015 00:00:00,"6587812",19033.33,"BERKS HEALTHCARE NHS FOUNDATION TRUST"
"Bracknell Forest Council","http://opendatacommunities.org/id/unitary-authority/bracknell-forest","Bracknell Forest Council","00MA","Management and Support Services - CYPL","Unallocated High Needs Related Expenditure","","Voluntary Sector Service Providers",14/07/2015 00:00:00,"6587828",17556,"ST DOMINICS SCHOOL"
"Bracknell Forest Council","http://opendatacommunities.org/id/unitary-authority/bracknell-forest","Bracknell Forest Council","00MA","Management and Support Services - CYPL","Unallocated High Needs Related Expenditure","","Other Local Authorities",12/08/2015 00:00:00,"6588004",12700,"BOWDEN HOUSE SCHOOL"
"Bracknell Forest Council","http://opendatacommunities.org/id/unitary-authority/bracknell-forest","Bracknell Forest Council","00MA","Management and Support Services - CYPL","Unallocated High Needs Related Expenditure","","Contracted Services",10/08/2015 00:00:00,"6587072",5126.83,"RANELAGH ACADEMY"
"Bracknell Forest Council","http://opendatacommunities.org/id/unitary-authority/bracknell-forest","Bracknell Forest Council","00MA","Management and Support Services - CYPL","Unallocated High Needs Related Expenditure","","Voluntary Sector Service Providers",15/07/2015 00:00:00,"6587803",29524.4,"COXLEASE SCHOOL PRIORY"
"Bracknell Forest Council","http://opendatacommunities.org/id/unitary-authority/bracknell-forest","Bracknell Forest Council","00MA","Management and Support Services - CYPL","Unallocated High Needs Related Expenditure","","Voluntary Sector Service Providers",15/07/2015 00:00:00,"6587803",11808.93,"COXLEASE SCHOOL PRIORY"
"Bracknell Forest Council","http://opendatacommunities.org/id/unitary-authority/bracknell-forest","Bracknell Forest Council","00MA","Miscellaneous Public Health Services","Public Health Teams","","Consultants Fees",04/08/2015 00:00:00,"6587495",16560,"PANORAMIC ASSOCIATES LTD"
"Bracknell Forest Council","http://opendatacommunities.org/id/unitary-authority/bracknell-forest","Bracknell Forest Council","00MA","Miscellaneous Public Health Services","Public Health Teams","","Consultants Fees",04/08/2015 00:00:00,"6587496",10400,"PANORAMIC ASSOCIATES LTD"
"Bracknell Forest Council","http://opendatacommunities.org/id/unitary-authority/bracknell-forest","Bracknell Forest Council","00MA","Miscellaneous Public Health Services","Public Health Teams","","Consultants Fees",04/08/2015 00:00:00,"6587497",1600,"PANORAMIC ASSOCIATES LTD"
"Bracknell Forest Council","http://opendatacommunities.org/id/unitary-authority/bracknell-forest","Bracknell Forest Council","00MA","Support Services & Management Costs","Training","","Training Costs",31/07/2015 00:00:00,"6586926",800,"BOURNEMOUTH UNIVERSITY"
"Bracknell Forest Council","http://opendatacommunities.org/id/unitary-authority/bracknell-forest","Bracknell Forest Council","00MA","Central Support Services - COF","Legal","","Equipment - Purchase",09/06/2015 00:00:00,"6584785",906.89,"BUSINESS DICTATION LIMITED"
"Bracknell Forest Council","http://opendatacommunities.org/id/unitary-authority/bracknell-forest","Bracknell Forest Council","00MA","Democratic Representation & Management COF","Democratic Representation & Management - COF","","Members Training & Development",06/07/2015 00:00:00,"6584510",790,"THE UNIVERSITY OF BIRMINGHAM"
"Bracknell Forest Council","http://opendatacommunities.org/id/unitary-authority/bracknell-forest","Bracknell Forest Council","00MA","Commissioning & Service Delivery","Commissioning & Service Delivery","","Grants and Donations",24/06/2015 00:00:00,"6584033",5000,"THAMES HOSPICECARE"
"Bracknell Forest Council","http://opendatacommunities.org/id/unitary-authority/bracknell-forest","Bracknell Forest Council","00MA","Commissioning & Service Delivery","Commissioning & Service Delivery","","Grants and Donations",22/06/2015 00:00:00,"6584034",2000,"PARKINSON�S DISEASE SOCIETY OF THE UK"
"Bracknell Forest Council","http://opendatacommunities.org/id/unitary-authority/bracknell-forest","Bracknell Forest Council","00MA","Commissioning & Service Delivery","Commissioning & Service Delivery","","Grants and Donations",22/06/2015 00:00:00,"6584035",800,"CROWTHORNE STROKE & DISABLED CLUB"
"Bracknell Forest Council","http://opendatacommunities.org/id/unitary-authority/bracknell-forest","Bracknell Forest Council","00MA","Commissioning & Service Delivery","Commissioning & Service Delivery","","Grants and Donations",21/06/2015 00:00:00,"6584036",1500,"MACULAR SOCIETY"
"Bracknell Forest Council","http://opendatacommunities.org/id/unitary-authority/bracknell-forest","Bracknell Forest Council","00MA","Commissioning & Service Delivery","Commissioning & Service Delivery","","Grants and Donations",23/06/2015 00:00:00,"6584037",2000,"YOUTH LINE LTD"
"Bracknell Forest Council","http://opendatacommunities.org/id/unitary-authority/bracknell-forest","Bracknell Forest Council","00MA","Recreation, Sports and Leisure","Indoor Sports & Recreation Facilities","","R&M - Reactive",29/05/2015 00:00:00,"6581759",1212.66,"BELLS ENGINEERING PRODUCTS LTD"
"Bracknell Forest Council","http://opendatacommunities.org/id/unitary-authority/bracknell-forest","Bracknell Forest Council","00MA","Children Looked After","Fostering services","","Contracted Services",31/05/2015 00:00:00,"6581777",3255,"HORIZON FOSTERING SERVICES LTD"
"Bracknell Forest Council","http://opendatacommunities.org/id/unitary-authority/bracknell-forest","Bracknell Forest Council","00MA","Other Welfare Services","Other Welfare Services","","Equipment - Purchase",26/08/2015 00:00:00,"6588702",1125,"TUNSTALL TELECOM LTD"
"Bracknell Forest Council","http://opendatacommunities.org/id/unitary-authority/bracknell-forest","Bracknell Forest Council","00MA","Services for Young People","Targeted services for young people","","Contracted Services",14/05/2015 00:00:00,"6583223",35742.09,"ADVIZA PARTNERSHIP"
"Bracknell Forest Council","http://opendatacommunities.org/id/unitary-authority/bracknell-forest","Bracknell Forest Council","00MA","Management and Support Services - CYPL","Schools Block Centrally Managed","","Contracted Services",14/05/2015 00:00:00,"6583223",1924.58,"ADVIZA PARTNERSHIP"
"Bracknell Forest Council","http://opendatacommunities.org/id/unitary-authority/bracknell-forest","Bracknell Forest Council","00MA","Central Support Services - COF","Personnel","","Training Costs",20/05/2015 00:00:00,"6581733",920.2,"MARIUS CONSULTING LIMITED"
"Bracknell Forest Council","http://opendatacommunities.org/id/unitary-authority/bracknell-forest","Bracknell Forest Council","00MA","Commissioning & Service Delivery","Commissioning & Service Delivery","","Consultants Fees",01/06/2015 00:00:00,"6581983",4888.05,"BADGERS INC LTD"
"Bracknell Forest Council","http://opendatacommunities.org/id/unitary-authority/bracknell-forest","Bracknell Forest Council","00MA","Central Support Services - COF","Information Technology","","Telephones - Rental & Call Charges",09/07/2015 00:00:00,"6584809",1671.41,"BRITISH TELECOM"
"Bracknell Forest Council","http://opendatacommunities.org/id/unitary-authority/bracknell-forest","Bracknell Forest Council","00MA","Recreation, Sports and Leisure","Indoor Sports & Recreation Facilities","","Water & Sewerage",03/07/2015 00:00:00,"6584810",3229.37,"THAMES WATER UTILITIES LTD"
"Bracknell Forest Council","http://opendatacommunities.org/id/unitary-authority/bracknell-forest","Bracknell Forest Council","00MA","Transport Planning, Policy & Strategy","Transport Policy, Planning & Strategy","","Equipment - R&M",14/05/2015 00:00:00,"6580789",5595,"SKY HIGH PLC"
"Bracknell Forest Council","http://opendatacommunities.org/id/unitary-authority/bracknell-forest","Bracknell Forest Council","00MA","Public Transport","Concessionary Fares","","Contracted Services",29/05/2015 00:00:00,"6581979",637.5,"RSP LTD"
"Bracknell Forest Council","http://opendatacommunities.org/id/unitary-authority/bracknell-forest","Bracknell Forest Council","00MA","Children Looked After","Residential care","","Other Local Authorities",12/08/2015 00:00:00,"6588004",6350,"BOWDEN HOUSE SCHOOL"
"Bracknell Forest Council","http://opendatacommunities.org/id/unitary-authority/bracknell-forest","Bracknell Forest Council","00MA","Management and Support Services - CYPL","Unallocated High Needs Related Expenditure","","Contracted Services",10/08/2015 00:00:00,"6587072",7914,"RANELAGH ACADEMY"
"Bracknell Forest Council","http://opendatacommunities.org/id/unitary-authority/bracknell-forest","Bracknell Forest Council","00MA","Central Support Services - COF","Information Technology","","Equipment - R&M",05/08/2015 00:00:00,"6586875",27491.4,"INTRINSIC TECHNOLOGY LTD"
"Bracknell Forest Council","http://opendatacommunities.org/id/unitary-authority/bracknell-forest","Bracknell Forest Council","00MA","Cemeteries, Crematoria & Mortuary Services","Cemeteries & Crematorium","","Cost of Goods Sold",30/06/2015 00:00:00,"6584508",520,"THE YABOO CO LTD T/A WESLEY MUSIC"
"Bracknell Forest Council","http://opendatacommunities.org/id/unitary-authority/bracknell-forest","Bracknell Forest Council","00MA","Regulatory Services","Environmental Protection","","Contracted Services",10/06/2015 00:00:00,"6583189",1925,"TRL LTD"
"Bracknell Forest Council","http://opendatacommunities.org/id/unitary-authority/bracknell-forest","Bracknell Forest Council","00MA","Business Support","Premises Development","","Other Fees for Bought-in Services",31/05/2015 00:00:00,"6581781",561,"ELITE SECURITY GROUP"
"Bracknell Forest Council","http://opendatacommunities.org/id/unitary-authority/bracknell-forest","Bracknell Forest Council","00MA","Cemeteries, Crematoria & Mortuary Services","Cemeteries & Crematorium","","Cost of Goods Sold",26/08/2015 00:00:00,"6588676",1704.6,"MARMAX PRODUCTS LTD"
"Bracknell Forest Council","http://opendatacommunities.org/id/unitary-authority/bracknell-forest","Bracknell Forest Council","00MA","Management and Support Services - CYPL","Strategy, Resources and Early Interventions","","Catering Equipment - R&M",27/07/2015 00:00:00,"6587719",561.13,"HOBART UK (SERVICE)"
"Bracknell Forest Council","http://opendatacommunities.org/id/unitary-authority/bracknell-forest","Bracknell Forest Council","00MA","Culture and Heritage","Heritage Museums & Galleries","","Cost of Goods Sold",18/08/2015 00:00:00,"6587994",740.48,"CHEATWELL GAMES"
"Bracknell Forest Council","http://opendatacommunities.org/id/unitary-authority/bracknell-forest","Bracknell Forest Council","00MA","Other Education and Community Budget","Service strategy and other education functions","","Subscriptions",19/08/2015 00:00:00,"6588033",2691,"NATIONAL GOVERNORS ASSOCIATION (NGA)"
"Bracknell Forest Council","http://opendatacommunities.org/id/unitary-authority/bracknell-forest","Bracknell Forest Council","00MA","Family Support Services","Short breaks for disabled children","","Equipment - Purchase",10/08/2015 00:00:00,"6588628",4725,"UK AMBULANCE SALES LTD"
"Bracknell Forest Council","http://opendatacommunities.org/id/unitary-authority/bracknell-forest","Bracknell Forest Council","00MA","Libraries","Stock Ordering, Cataloguing & Distribution","","Audio/Visual materials",20/07/2015 00:00:00,"6586718",1802.09,"ASKEWS & HOLTS LIBRARY SERVICE"
"Bracknell Forest Council","http://opendatacommunities.org/id/unitary-authority/bracknell-forest","Bracknell Forest Council","00MA","Corporate Management COF","Corporate Management COF","","Subscriptions",25/06/2015 00:00:00,"6584039",5000,"IESE LIMITED"
"Bracknell Forest Council","http://opendatacommunities.org/id/unitary-authority/bracknell-forest","Bracknell Forest Council","00MA","Adults (18-64)","Long Term Support - Community:Supported Living","","Other Support to Clients",12/05/2015 00:00:00,"6584041",7878,"BRACKNELL FOREST HOMES"
"Bracknell Forest Council","http://opendatacommunities.org/id/unitary-authority/bracknell-forest","Bracknell Forest Council","00MA","Recreation, Sports and Leisure","Golf Courses","","Cost of Goods Sold",06/01/2015 00:00:00,"6582569",1043.82,"ACUSHNET EUROPE LTD"
"Bracknell Forest Council","http://opendatacommunities.org/id/unitary-authority/bracknell-forest","Bracknell Forest Council","00MA","Adults (18-64)","Long Term Support - Community:Supported Living","","Contracted Services",11/02/2015 00:00:00,"6582172",1155,"DISABILITY INITIATIVE"
"Bracknell Forest Council","http://opendatacommunities.org/id/unitary-authority/bracknell-forest","Bracknell Forest Council","00MA","Adults (18-64)","Long term Support - Community:Homecare","","Taxi Charges",30/04/2015 00:00:00,"6582306",1610,"JJM TAXIS & ZULU CARS LTD"
"Bracknell Forest Council","http://opendatacommunities.org/id/unitary-authority/bracknell-forest","Bracknell Forest Council","00MA","Holding Accounts in Budget Book COF","Corporate Services - Office Services","","Postage",11/08/2015 00:00:00,"6587592",1526.45,"WHISTL"
"Bracknell Forest Council","http://opendatacommunities.org/id/unitary-authority/bracknell-forest","Bracknell Forest Council","00MA","Holding Accounts in Budget Book COF","Corporate Services - Office Services","","Postage",13/08/2015 00:00:00,"6587706",2004.36,"WHISTL"
"Bracknell Forest Council","http://opendatacommunities.org/id/unitary-authority/bracknell-forest","Bracknell Forest Council","00MA","Holding Accounts in Budget Book COF","Corporate Services - Office Services","","Postage",13/08/2015 00:00:00,"6587709",588.91,"WHISTL"
"Bracknell Forest Council","http://opendatacommunities.org/id/unitary-authority/bracknell-forest","Bracknell Forest Council","00MA","Sure Start Children�s Centres","Children�s centres - direct","","Other Fees for Bought-in Services",14/08/2015 00:00:00,"6588122",980,"MAGICAL MOMENTS CRECHE"
"Bracknell Forest Council","http://opendatacommunities.org/id/unitary-authority/bracknell-forest","Bracknell Forest Council","00MA","Management and Support Services - CYPL","Strategy, Resources and Early Interventions","","Catering - Payments to Contractors",05/08/2015 00:00:00,"6588433",40823.9,"ISS MEDICLEAN LIMITED"
"Bracknell Forest Council","http://opendatacommunities.org/id/unitary-authority/bracknell-forest","Bracknell Forest Council","00MA","Management and Support Services - CYPL","Strategy, Resources and Early Interventions","","Free Meals Subsidy",05/08/2015 00:00:00,"6588433",94244.65,"ISS MEDICLEAN LIMITED"
"Bracknell Forest Council","http://opendatacommunities.org/id/unitary-authority/bracknell-forest","Bracknell Forest Council","00MA","Management and Support Services - CYPL","Strategy, Resources and Early Interventions","","Subsidised Staff Services",05/08/2015 00:00:00,"6588433",4542.06,"ISS MEDICLEAN LIMITED"
"Bracknell Forest Council","http://opendatacommunities.org/id/unitary-authority/bracknell-forest","Bracknell Forest Council","00MA","Management and Support Services - CYPL","Strategy, Resources and Early Interventions","","Catering - Payments to Contractors",05/08/2015 00:00:00,"6588433",14459.17,"ISS MEDICLEAN LIMITED"
"Bracknell Forest Council","http://opendatacommunities.org/id/unitary-authority/bracknell-forest","Bracknell Forest Council","00MA","Management and Support Services - CYPL","Strategy, Resources and Early Interventions","","Free Meals Subsidy",05/08/2015 00:00:00,"6588433",29185.44,"ISS MEDICLEAN LIMITED"
"Bracknell Forest Council","http://opendatacommunities.org/id/unitary-authority/bracknell-forest","Bracknell Forest Council","00MA","Libraries","Stock Ordering, Cataloguing & Distribution","","Audio/Visual materials",12/08/2015 00:00:00,"6588129",739.48,"MAGNA LARGE PRINT BOOKS"
"Bracknell Forest Council","http://opendatacommunities.org/id/unitary-authority/bracknell-forest","Bracknell Forest Council","00MA","Libraries","Stock Ordering, Cataloguing & Distribution","","Audio/Visual materials",14/08/2015 00:00:00,"6588130",754.46,"MAGNA LARGE PRINT BOOKS"
"Bracknell Forest Council","http://opendatacommunities.org/id/unitary-authority/bracknell-forest","Bracknell Forest Council","00MA","Safeguarding Children and Young People�s Services","Social Work","","Agency",17/08/2015 00:00:00,"6588138",1500,"NONSTOP RECRUITMENT"
"Bracknell Forest Council","http://opendatacommunities.org/id/unitary-authority/bracknell-forest","Bracknell Forest Council","00MA","Safeguarding Children and Young People�s Services","Social Work","","Agency",12/08/2015 00:00:00,"6588140",1480,"AFFINITY WORKFORCE LIMITED"
"Bracknell Forest Council","http://opendatacommunities.org/id/unitary-authority/bracknell-forest","Bracknell Forest Council","00MA","Open Spaces","Community Parks & Open Spaces","","R&M - Reactive",06/08/2015 00:00:00,"6587668",760,"WATERMETRICS (UK) LLP"
"Bracknell Forest Council","http://opendatacommunities.org/id/unitary-authority/bracknell-forest","Bracknell Forest Council","00MA","Traffic Management & Road Safety","Traffic Management","","Contracted Services",07/08/2015 00:00:00,"6587749",773.96,"ALEXANDER ADVERTISING(INT)LTD"
"Bracknell Forest Council","http://opendatacommunities.org/id/unitary-authority/bracknell-forest","Bracknell Forest Council","00MA","Safeguarding Children and Young People�s Services","Social Work","","Youth & Community Activities",11/06/2015 00:00:00,"6582956",579.17,"HAMPSHIRE COUNTY COUNCIL"
"Bracknell Forest Council","http://opendatacommunities.org/id/unitary-authority/bracknell-forest","Bracknell Forest Council","00MA","Recreation, Sports and Leisure","Indoor Sports & Recreation Facilities","","Equipment - R&M",23/04/2015 00:00:00,"6579707",565.74,"MDS LEISURE"
"Bracknell Forest Council","http://opendatacommunities.org/id/unitary-authority/bracknell-forest","Bracknell Forest Council","00MA","Corporate Management COF","Corporate Management COF","","Statutory Auditors Fees",15/06/2015 00:00:00,"6583613",1070,"ERNST & YOUNG"
"Bracknell Forest Council","http://opendatacommunities.org/id/unitary-authority/bracknell-forest","Bracknell Forest Council","00MA","Recreation, Sports and Leisure","Indoor Sports & Recreation Facilities","","R&M - Service Contracts",23/06/2015 00:00:00,"6583657",957.7,"CHUBB FIRE LTD"
"Bracknell Forest Council","http://opendatacommunities.org/id/unitary-authority/bracknell-forest","Bracknell Forest Council","00MA","Commissioning & Service Delivery","Commissioning & Service Delivery","","Agency",31/05/2015 00:00:00,"6582331",15929,"ODGERS INTERIM"
"Bracknell Forest Council","http://opendatacommunities.org/id/unitary-authority/bracknell-forest","Bracknell Forest Council","00MA","Commissioning & Service Delivery","Commissioning & Service Delivery","","Contracted Services",31/08/2015 00:00:00,"6589239",8343.5,"THE ARK TRUST LTD"
"Bracknell Forest Council","http://opendatacommunities.org/id/unitary-authority/bracknell-forest","Bracknell Forest Council","00MA","Recreation, Sports and Leisure","Indoor Sports & Recreation Facilities","","Cleaning materials",09/09/2015 00:00:00,"6590744",675.27,"BOWAK LTD"
"Bracknell Forest Council","http://opendatacommunities.org/id/unitary-authority/bracknell-forest","Bracknell Forest Council","00MA","Transport Planning, Policy & Strategy","Transport Policy, Planning & Strategy","","Computer Software Maintenance",09/09/2015 00:00:00,"6590748",2500,"YOTTA DCL"
"Bracknell Forest Council","http://opendatacommunities.org/id/unitary-authority/bracknell-forest","Bracknell Forest Council","00MA","Sure Start Children�s Centres","Children�s centres - direct","","Other Fees for Bought-in Services",12/08/2015 00:00:00,"6587904",1200,"FERNHILL TRAVEL LTD"
"Bracknell Forest Council","http://opendatacommunities.org/id/unitary-authority/bracknell-forest","Bracknell Forest Council","00MA","Central Support Services - COF","Personnel","","Training Costs",11/08/2015 00:00:00,"6587905",572,"MCG TRAINING"
"Bracknell Forest Council","http://opendatacommunities.org/id/unitary-authority/bracknell-forest","Bracknell Forest Council","00MA","Open Spaces","Community Parks & Open Spaces","","R&M - Planned",07/09/2015 00:00:00,"6589527",1024.28,"CENTREWIRE LTD"
"Bracknell Forest Council","http://opendatacommunities.org/id/unitary-authority/bracknell-forest","Bracknell Forest Council","00MA","Open Spaces","Community Parks & Open Spaces","","External Grounds Maintenance Costs",17/09/2015 00:00:00,"6590027",1430,"SHORTS AGRICULTURAL"
"Bracknell Forest Council","http://opendatacommunities.org/id/unitary-authority/bracknell-forest","Bracknell Forest Council","00MA","Recreation, Sports and Leisure","Indoor Sports & Recreation Facilities","","R&M - Reactive",15/09/2015 00:00:00,"6590028",601.12,"BELLS ENGINEERING PRODUCTS LTD"
"Bracknell Forest Council","http://opendatacommunities.org/id/unitary-authority/bracknell-forest","Bracknell Forest Council","00MA","Public Transport","Concessionary Fares","","Contracted Services",14/08/2015 00:00:00,"6587506",31299,"COURTNEY COACHES LTD"
"Bracknell Forest Council","http://opendatacommunities.org/id/unitary-authority/bracknell-forest","Bracknell Forest Council","00MA","Public Transport","Concessionary Fares","","Contracted Services",14/08/2015 00:00:00,"6587508",38951,"FIRST BEELINE"
"Bracknell Forest Council","http://opendatacommunities.org/id/unitary-authority/bracknell-forest","Bracknell Forest Council","00MA","Recreation, Sports and Leisure","Indoor Sports & Recreation Facilities","","Publicity & Marketing",31/07/2015 00:00:00,"6586716",3575,"GLOBAL RADIO SERVICES LTD"
"Bracknell Forest Council","http://opendatacommunities.org/id/unitary-authority/bracknell-forest","Bracknell Forest Council","00MA","Holding Accounts not in Budget Book - COF","General Holding Accounts","","R&M - Service Contracts",26/08/2015 00:00:00,"6590004",507,"FRANK DRIVER LTD (FDL GENERATORS)"
"Bracknell Forest Council","http://opendatacommunities.org/id/unitary-authority/bracknell-forest","Bracknell Forest Council","00MA","Central Support Services - COF","Information Technology","","Computer -Purchase",09/09/2015 00:00:00,"6589634",3580,"SOL-TEC"
"Bracknell Forest Council","http://opendatacommunities.org/id/unitary-authority/bracknell-forest","Bracknell Forest Council","00MA","Open Spaces","Countryside Recreation & Management","","Clothing & Uniform - Staff",16/09/2015 00:00:00,"6589953",629.94,"THE OUTDOORS COMPANY"
"Bracknell Forest Council","http://opendatacommunities.org/id/unitary-authority/bracknell-forest","Bracknell Forest Council","00MA","Open Spaces","Countryside Recreation & Management","","Clothing & Uniform - Staff",16/09/2015 00:00:00,"6589953",912.88,"THE OUTDOORS COMPANY"
"Bracknell Forest Council","http://opendatacommunities.org/id/unitary-authority/bracknell-forest","Bracknell Forest Council","00MA","Central Support Services - COF","Information Technology","","Licences",18/08/2015 00:00:00,"6588117",3358,"SATISNET"
"Bracknell Forest Council","http://opendatacommunities.org/id/unitary-authority/bracknell-forest","Bracknell Forest Council","00MA","Open Spaces","Countryside Recreation & Management","","R&M - Planned",14/08/2015 00:00:00,"6588239",530,"HEATHLAND MANAGEMENT SERVICES"
"Bracknell Forest Council","http://opendatacommunities.org/id/unitary-authority/bracknell-forest","Bracknell Forest Council","00MA","Services for Young People","Targeted services for young people","","Contracted Services",27/08/2015 00:00:00,"6588561",13750,"BACYP"
"Bracknell Forest Council","http://opendatacommunities.org/id/unitary-authority/bracknell-forest","Bracknell Forest Council","00MA","Management and Support Services - CYPL","Unallocated High Needs Related Expenditure","","Voluntary Sector Service Providers",08/07/2015 00:00:00,"6586182",7298.82,"I CAN SERVICES LTD"
"Bracknell Forest Council","http://opendatacommunities.org/id/unitary-authority/bracknell-forest","Bracknell Forest Council","00MA","Management and Support Services - CYPL","Unallocated High Needs Related Expenditure","","Strategic Health Authority",15/07/2015 00:00:00,"6586204",3083.33,"BERKS HEALTHCARE NHS FOUNDATION TRUST"
"Bracknell Forest Council","http://opendatacommunities.org/id/unitary-authority/bracknell-forest","Bracknell Forest Council","00MA","Sexual Health Services","STI testing and treatment","","Contracted Services",10/07/2015 00:00:00,"6586274",4266,"GUY�S & ST THOMAS� NHS TRUST"
"Bracknell Forest Council","http://opendatacommunities.org/id/unitary-authority/bracknell-forest","Bracknell Forest Council","00MA","Central Support Services - COF","Information Technology","","Licences",14/07/2015 00:00:00,"6585331",40385.5,"BYTES TECHNOLOGY GROUP LTD"
"Bracknell Forest Council","http://opendatacommunities.org/id/unitary-authority/bracknell-forest","Bracknell Forest Council","00MA","Older People (65+)","Internal Services","","Agency",05/08/2015 00:00:00,"6588167",1337.28,"CARELINE"
"Bracknell Forest Council","http://opendatacommunities.org/id/unitary-authority/bracknell-forest","Bracknell Forest Council","00MA","Early Years","Centrally managed Expenditure - Early Years","","Free Milk",22/07/2015 00:00:00,"6585982",4739.49,"DAIRY CREST"
"Bracknell Forest Council","http://opendatacommunities.org/id/unitary-authority/bracknell-forest","Bracknell Forest Council","00MA","Early Years","Centrally managed Expenditure - Early Years","","Free Milk",03/08/2015 00:00:00,"6587130",3772.2,"DAIRY CREST"
"Bracknell Forest Council","http://opendatacommunities.org/id/unitary-authority/bracknell-forest","Bracknell Forest Council","00MA","Central Support Services - COF","Finance","","Licences",03/08/2015 00:00:00,"6587286",5266.29,"MOTION PICTURE LICENSING COMPANY"
"Bracknell Forest Council","http://opendatacommunities.org/id/unitary-authority/bracknell-forest","Bracknell Forest Council","00MA","Central Support Services - COF","Finance","","Agency",17/07/2015 00:00:00,"6587314",4800,"ASHTON CONSULTING LTD"
"Bracknell Forest Council","http://opendatacommunities.org/id/unitary-authority/bracknell-forest","Bracknell Forest Council","00MA","Central Support Services - COF","Finance","","Agency",31/07/2015 00:00:00,"6587370",2400,"ASHTON CONSULTING LTD"
"Bracknell Forest Council","http://opendatacommunities.org/id/unitary-authority/bracknell-forest","Bracknell Forest Council","00MA","Recreation, Sports and Leisure","Indoor Sports & Recreation Facilities","","R&M - Reactive",31/08/2015 00:00:00,"6590930",2304,"GRAHAM ASSET MANAGEMENT LTD"
"Bracknell Forest Council","http://opendatacommunities.org/id/unitary-authority/bracknell-forest","Bracknell Forest Council","00MA","Central Support Services - COF","Information Technology","","Licences",07/09/2015 00:00:00,"6590787",2450,"SITEMORSE LIMITED"
"Bracknell Forest Council","http://opendatacommunities.org/id/unitary-authority/bracknell-forest","Bracknell Forest Council","00MA","Miscellaneous Public Health Services","Public Health Teams","","Consultants Fees",12/02/2015 00:00:00,"6591134",11250,"PHAST"
"Bracknell Forest Council","http://opendatacommunities.org/id/unitary-authority/bracknell-forest","Bracknell Forest Council","00MA","Housing Benefits Administration","Housing Benefits Administration","","Consultants Fees",29/09/2015 00:00:00,"6591130",4260.8,"BBNG LIMITED"
"Bracknell Forest Council","http://opendatacommunities.org/id/unitary-authority/bracknell-forest","Bracknell Forest Council","00MA","Homelessness","Bed/Breakfast Accommodation","","External Agency Services",18/09/2015 00:00:00,"6590886",1020,"PHILLIPS ACCOMMODATION LTD"
"Bracknell Forest Council","http://opendatacommunities.org/id/unitary-authority/bracknell-forest","Bracknell Forest Council","00MA","Homelessness","Bed/Breakfast Accommodation","","External Agency Services",18/09/2015 00:00:00,"6590887",1680,"PHILLIPS ACCOMMODATION LTD"
"Bracknell Forest Council","http://opendatacommunities.org/id/unitary-authority/bracknell-forest","Bracknell Forest Council","00MA","Homelessness","Bed/Breakfast Accommodation","","External Agency Services",18/09/2015 00:00:00,"6590888",2100,"PHILLIPS ACCOMMODATION LTD"
"Bracknell Forest Council","http://opendatacommunities.org/id/unitary-authority/bracknell-forest","Bracknell Forest Council","00MA","Homelessness","Bed/Breakfast Accommodation","","External Agency Services",18/09/2015 00:00:00,"6590889",1680,"PHILLIPS ACCOMMODATION LTD"
"Bracknell Forest Council","http://opendatacommunities.org/id/unitary-authority/bracknell-forest","Bracknell Forest Council","00MA","Homelessness","Bed/Breakfast Accommodation","","External Agency Services",18/09/2015 00:00:00,"6590890",1320,"PHILLIPS ACCOMMODATION LTD"
"Bracknell Forest Council","http://opendatacommunities.org/id/unitary-authority/bracknell-forest","Bracknell Forest Council","00MA","Structural Maintenance","Bridges","","Consultants Fees",17/09/2015 00:00:00,"6590235",1720.54,"ATKINS LTD"
"Bracknell Forest Council","http://opendatacommunities.org/id/unitary-authority/bracknell-forest","Bracknell Forest Council","00MA","Structural Maintenance","Bridges","","Consultants Fees",17/09/2015 00:00:00,"6590235",2215.98,"ATKINS LTD"
"Bracknell Forest Council","http://opendatacommunities.org/id/unitary-authority/bracknell-forest","Bracknell Forest Council","00MA","Central Support Services - COF","Personnel","","Training Costs",14/09/2015 00:00:00,"6590194",866.8,"MCG TRAINING"
"Bracknell Forest Council","http://opendatacommunities.org/id/unitary-authority/bracknell-forest","Bracknell Forest Council","00MA","Open Spaces","Community Parks & Open Spaces","","External Grounds Maintenance Costs",31/08/2015 00:00:00,"6590541",82374.92,"CONTINENTAL LANDSCAPES LTD"
"Bracknell Forest Council","http://opendatacommunities.org/id/unitary-authority/bracknell-forest","Bracknell Forest Council","00MA","Street Cleansing","Street Cleansing","","Contracted Services",31/08/2015 00:00:00,"6590618",61811.93,"CONTINENTAL LANDSCAPES LTD"
"Bracknell Forest Council","http://opendatacommunities.org/id/unitary-authority/bracknell-forest","Bracknell Forest Council","00MA","Central Support Services - COF","Finance","","Agency",11/09/2015 00:00:00,"6590180",1920,"ASHTON CONSULTING LTD"
"Bracknell Forest Council","http://opendatacommunities.org/id/unitary-authority/bracknell-forest","Bracknell Forest Council","00MA","Recreation, Sports and Leisure","Indoor Sports & Recreation Facilities","","R&M - Reactive",31/08/2015 00:00:00,"6589662",825.42,"PICKERINGS LIFTS"
"Bracknell Forest Council","http://opendatacommunities.org/id/unitary-authority/bracknell-forest","Bracknell Forest Council","00MA","Short Term Support Maximise Independence","Short Term Support to Maximise Independence","","Computer -Purchase",09/09/2015 00:00:00,"6589705",1379.22,"DELL COMPUTER CORPORATION"
"Bracknell Forest Council","http://opendatacommunities.org/id/unitary-authority/bracknell-forest","Bracknell Forest Council","00MA","Recycling","Collection","","Contracted Services",09/09/2015 00:00:00,"6589767",1450,"SITA"
"Bracknell Forest Council","http://opendatacommunities.org/id/unitary-authority/bracknell-forest","Bracknell Forest Council","00MA","Recycling","Collection","","Contracted Services",09/09/2015 00:00:00,"6589767",70132.97,"SITA"
"Bracknell Forest Council","http://opendatacommunities.org/id/unitary-authority/bracknell-forest","Bracknell Forest Council","00MA","Business Support","Premises Development","","R&M - Service Contracts",21/07/2015 00:00:00,"6586377",1387,"NOVAR SYSTEMS LTD"
"Bracknell Forest Council","http://opendatacommunities.org/id/unitary-authority/bracknell-forest","Bracknell Forest Council","00MA","NHS Health Check Programme","NHS Health Check Programme","","Contracted Services",02/07/2015 00:00:00,"6585266",980,"FOREST END MEDICAL CENTRE"
"Bracknell Forest Council","http://opendatacommunities.org/id/unitary-authority/bracknell-forest","Bracknell Forest Council","00MA","NHS Health Check Programme","NHS Health Check Programme","","Contracted Services",06/07/2015 00:00:00,"6585268",800,"SANDHURST GROUP PRACTICE"
"Bracknell Forest Council","http://opendatacommunities.org/id/unitary-authority/bracknell-forest","Bracknell Forest Council","00MA","Obesity","Adult obesity","","Materials",17/07/2015 00:00:00,"6585973",3339,"SLIMMING WORLD"
"Bracknell Forest Council","http://opendatacommunities.org/id/unitary-authority/bracknell-forest","Bracknell Forest Council","00MA","Information & Early Intervention","Information & Early Intervention","","Other Fees for Bought-in Services",21/07/2015 00:00:00,"6587311",2100,"MHFA ENGLAND"
"Bracknell Forest Council","http://opendatacommunities.org/id/unitary-authority/bracknell-forest","Bracknell Forest Council","00MA","Information & Early Intervention","Information & Early Intervention","","Other Fees for Bought-in Services",21/07/2015 00:00:00,"6587311",850,"MHFA ENGLAND"
"Bracknell Forest Council","http://opendatacommunities.org/id/unitary-authority/bracknell-forest","Bracknell Forest Council","00MA","Recreation, Sports and Leisure","Golf Courses","","Cost of Goods Sold",12/06/2015 00:00:00,"6587583",630.76,"CALLAWAY GOLF EUROPE LTD"
"Bracknell Forest Council","http://opendatacommunities.org/id/unitary-authority/bracknell-forest","Bracknell Forest Council","00MA","Support Services & Management Costs","Training","","Training Costs",07/08/2015 00:00:00,"6587243",550,"PRESCRIPTION TRAINING"
"Bracknell Forest Council","http://opendatacommunities.org/id/unitary-authority/bracknell-forest","Bracknell Forest Council","00MA","Recreation, Sports and Leisure","Golf Courses","","Cost of Goods Sold",29/06/2015 00:00:00,"6588713",611.02,"CALLAWAY GOLF EUROPE LTD"
"Bracknell Forest Council","http://opendatacommunities.org/id/unitary-authority/bracknell-forest","Bracknell Forest Council","00MA","Family Support Services","Short breaks for disabled children","","Contracted Services",03/06/2015 00:00:00,"6583195",30900,"KIDS"
"Bracknell Forest Council","http://opendatacommunities.org/id/unitary-authority/bracknell-forest","Bracknell Forest Council","00MA","Business Support","Premises Development","","R&M - Reactive",15/06/2015 00:00:00,"6583231",1155,"BENVILLE AND MARSH LTD"
"Bracknell Forest Council","http://opendatacommunities.org/id/unitary-authority/bracknell-forest","Bracknell Forest Council","00MA","Business Support","Premises Development","","R&M - Reactive",15/06/2015 00:00:00,"6583231",1485,"BENVILLE AND MARSH LTD"
"Bracknell Forest Council","http://opendatacommunities.org/id/unitary-authority/bracknell-forest","Bracknell Forest Council","00MA","Cemeteries, Crematoria & Mortuary Services","Cemeteries & Crematorium","","Cost of Goods Sold",31/05/2015 00:00:00,"6583235",679,"THE YABOO CO LTD T/A WESLEY MUSIC"
"Bracknell Forest Council","http://opendatacommunities.org/id/unitary-authority/bracknell-forest","Bracknell Forest Council","00MA","Business Support","Premises Development","","R&M - Reactive",16/06/2015 00:00:00,"6583238",2320,"BENVILLE AND MARSH LTD"
"Bracknell Forest Council","http://opendatacommunities.org/id/unitary-authority/bracknell-forest","Bracknell Forest Council","00MA","Business Support","Premises Development","","R&M - Reactive",16/06/2015 00:00:00,"6583240",3370,"BENVILLE AND MARSH LTD"
"Bracknell Forest Council","http://opendatacommunities.org/id/unitary-authority/bracknell-forest","Bracknell Forest Council","00MA","Family Support Services","Direct payments","","Direct Payments to Clients",16/07/2015 00:00:00,"6582533",591.57,"Redact per Nicola"
"Bracknell Forest Council","http://opendatacommunities.org/id/unitary-authority/bracknell-forest","Bracknell Forest Council","00MA","Business Support","Premises Development","","R&M - Reactive",16/06/2015 00:00:00,"6583241",1795,"BENVILLE AND MARSH LTD"
"Bracknell Forest Council","http://opendatacommunities.org/id/unitary-authority/bracknell-forest","Bracknell Forest Council","00MA","Recreation, Sports and Leisure","Indoor Sports & Recreation Facilities","","R&M - Reactive",15/06/2015 00:00:00,"6583242",5999,"BENVILLE AND MARSH LTD"
"Bracknell Forest Council","http://opendatacommunities.org/id/unitary-authority/bracknell-forest","Bracknell Forest Council","00MA","Family Support Services","Short breaks for disabled children","","Contracted Services",08/06/2015 00:00:00,"6583194",29350,"KERITH COMMUNITY CHURCH KONNECTIONS"
"Bracknell Forest Council","http://opendatacommunities.org/id/unitary-authority/bracknell-forest","Bracknell Forest Council","00MA","Safeguarding Children and Young People�s Services","Social Work","","Agency",07/09/2015 00:00:00,"6589683",1400,"SEVEN RESOURCING LTD"
"Bracknell Forest Council","http://opendatacommunities.org/id/unitary-authority/bracknell-forest","Bracknell Forest Council","00MA","Older People (65+)","Long term Support - Residential","","Contracted Services",21/07/2015 00:00:00,"6588152",895.4,"THE ANTHONY TOBY HOMES TRUST"
"Bracknell Forest Council","http://opendatacommunities.org/id/unitary-authority/bracknell-forest","Bracknell Forest Council","00MA","Central Support Services - COF","Personnel","","Training Costs",09/07/2015 00:00:00,"6586077",850,"MARIUS CONSULTING LIMITED"
"Bracknell Forest Council","http://opendatacommunities.org/id/unitary-authority/bracknell-forest","Bracknell Forest Council","00MA","Management and Support Services - CYPL","CYPL Department Management Team","","Consultants Fees",13/02/2015 00:00:00,"6586120",1431.75,"CENTRAL HALL WESTMINSTER LIMITED"
"Bracknell Forest Council","http://opendatacommunities.org/id/unitary-authority/bracknell-forest","Bracknell Forest Council","00MA","Management and Support Services - CYPL","Strategy, Resources and Early Interventions","","Other Fees for Bought-in Services",10/06/2015 00:00:00,"6584517",4127.5,"ALTITUDE"
"Bracknell Forest Council","http://opendatacommunities.org/id/unitary-authority/bracknell-forest","Bracknell Forest Council","00MA","Support Services & Management Costs","Training","","Training Costs",23/06/2015 00:00:00,"6584512",675,"THAMES VALLEY POLICE"
"Bracknell Forest Council","http://opendatacommunities.org/id/unitary-authority/bracknell-forest","Bracknell Forest Council","00MA","Support Services & Management Costs","Training","","Training Costs",23/06/2015 00:00:00,"6584513",745,"THAMES VALLEY POLICE"
"Bracknell Forest Council","http://opendatacommunities.org/id/unitary-authority/bracknell-forest","Bracknell Forest Council","00MA","Culture and Heritage","Heritage Museums & Galleries","","Equipment - Rental",24/09/2015 00:00:00,"6591131",4957,"CREATIVE PROJECT SERVICES LTD"
"Bracknell Forest Council","http://opendatacommunities.org/id/unitary-authority/bracknell-forest","Bracknell Forest Council","00MA","Children Looked After","Other services for LAC","","Contracted Services",08/09/2015 00:00:00,"6590506",3700,"CARE ADVOCATES LTD"
"Bracknell Forest Council","http://opendatacommunities.org/id/unitary-authority/bracknell-forest","Bracknell Forest Council","00MA","Family Support Services","Targeted Family Support","","Other Support to Clients",01/08/2015 00:00:00,"6591135",1911.67,"NEW ELIZABETH HOUSE HOTEL LTD"
"Bracknell Forest Council","http://opendatacommunities.org/id/unitary-authority/bracknell-forest","Bracknell Forest Council","00MA","Family Support Services","Targeted Family Support","","Other Support to Clients",01/07/2015 00:00:00,"6591136",2041.67,"NEW ELIZABETH HOUSE HOTEL LTD"
"Bracknell Forest Council","http://opendatacommunities.org/id/unitary-authority/bracknell-forest","Bracknell Forest Council","00MA","Miscellaneous Public Health Services","Miscellaneous Public Health Services","","Contracted Services",14/07/2015 00:00:00,"6585979",10000,"XENZONE LTD"
"Bracknell Forest Council","http://opendatacommunities.org/id/unitary-authority/bracknell-forest","Bracknell Forest Council","00MA","Management and Support Services - CYPL","Unallocated High Needs Related Expenditure","","Voluntary Sector Service Providers",01/06/2015 00:00:00,"6585571",21274,"WITHERSLACK GROUP OF SCHOOLS (SOUTH) LTD"
"Bracknell Forest Council","http://opendatacommunities.org/id/unitary-authority/bracknell-forest","Bracknell Forest Council","00MA","Other Education and Community Budget","Service strategy and other education functions","","Consultants Fees",14/07/2015 00:00:00,"6585408",18000,"MIME CONSULTING LTD"
"Bracknell Forest Council","http://opendatacommunities.org/id/unitary-authority/bracknell-forest","Bracknell Forest Council","00MA","Management and Support Services - CYPL","Schools Block Centrally Managed","","Consultants Fees",10/07/2015 00:00:00,"6585437",1480,"XLCS LTD T/A XL EDUCATION SERVICES"
"Bracknell Forest Council","http://opendatacommunities.org/id/unitary-authority/bracknell-forest","Bracknell Forest Council","00MA","Management and Support Services - CYPL","Unallocated High Needs Related Expenditure","","Voluntary Sector Service Providers",07/07/2015 00:00:00,"6585531",11018,"BARNARDOS SERVICES LTD"
"Bracknell Forest Council","http://opendatacommunities.org/id/unitary-authority/bracknell-forest","Bracknell Forest Council","00MA","Management and Support Services - CYPL","Schools Block Centrally Managed","","Consultants Fees",08/07/2015 00:00:00,"6585564",1245,"TEACHING PERSONNEL LTD"
"Bracknell Forest Council","http://opendatacommunities.org/id/unitary-authority/bracknell-forest","Bracknell Forest Council","00MA","Management and Support Services - CYPL","Unallocated High Needs Related Expenditure","","Voluntary Sector Service Providers",01/06/2015 00:00:00,"6585565",28806,"WITHERSLACK GROUP OF SCHOOLS (SOUTH) LTD"
"Bracknell Forest Council","http://opendatacommunities.org/id/unitary-authority/bracknell-forest","Bracknell Forest Council","00MA","Management and Support Services - CYPL","Unallocated High Needs Related Expenditure","","Voluntary Sector Service Providers",01/06/2015 00:00:00,"6585567",21309.67,"WITHERSLACK GROUP OF SCHOOLS (SOUTH) LTD"
"Bracknell Forest Council","http://opendatacommunities.org/id/unitary-authority/bracknell-forest","Bracknell Forest Council","00MA","Management and Support Services - CYPL","Unallocated High Needs Related Expenditure","","Voluntary Sector Service Providers",01/06/2015 00:00:00,"6585568",19777,"WITHERSLACK GROUP OF SCHOOLS (SOUTH) LTD"
"Bracknell Forest Council","http://opendatacommunities.org/id/unitary-authority/bracknell-forest","Bracknell Forest Council","00MA","Transport Planning, Policy & Strategy","Transport Policy, Planning & Strategy","","Contracted Services",08/07/2015 00:00:00,"6585669",5000,"PLEASE CYCLE LIMITED"
"Bracknell Forest Council","http://opendatacommunities.org/id/unitary-authority/bracknell-forest","Bracknell Forest Council","00MA","Management and Support Services - CYPL","Unallocated High Needs Related Expenditure","","Voluntary Sector Service Providers",01/06/2015 00:00:00,"6585577",19116,"WITHERSLACK GROUP OF SCHOOLS (SOUTH) LTD"
"Bracknell Forest Council","http://opendatacommunities.org/id/unitary-authority/bracknell-forest","Bracknell Forest Council","00MA","Post 16 Provision","High needs budget fpr post-16 provision","","Voluntary Sector Service Providers",01/06/2015 00:00:00,"6585581",29333.33,"UNSTED PARK PRIORY"
"Bracknell Forest Council","http://opendatacommunities.org/id/unitary-authority/bracknell-forest","Bracknell Forest Council","00MA","Post 16 Provision","High needs budget fpr post-16 provision","","Voluntary Sector Service Providers",15/07/2015 00:00:00,"6585582",28666.67,"CLAY HILL SCHOOL PRIORY"
"Bracknell Forest Council","http://opendatacommunities.org/id/unitary-authority/bracknell-forest","Bracknell Forest Council","00MA","Management and Support Services - CYPL","Unallocated High Needs Related Expenditure","","Voluntary Sector Service Providers",01/06/2015 00:00:00,"6585591",20584,"WITHERSLACK GROUP OF SCHOOLS (SOUTH) LTD"
"Bracknell Forest Council","http://opendatacommunities.org/id/unitary-authority/bracknell-forest","Bracknell Forest Council","00MA","Management and Support Services - CYPL","Unallocated High Needs Related Expenditure","","Voluntary Sector Service Providers",01/06/2015 00:00:00,"6585592",18225,"WITHERSLACK GROUP OF SCHOOLS (SOUTH) LTD"
"Bracknell Forest Council","http://opendatacommunities.org/id/unitary-authority/bracknell-forest","Bracknell Forest Council","00MA","Management and Support Services - CYPL","Unallocated High Needs Related Expenditure","","Voluntary Sector Service Providers",01/06/2015 00:00:00,"6585594",20584,"WITHERSLACK GROUP OF SCHOOLS (SOUTH) LTD"
"Bracknell Forest Council","http://opendatacommunities.org/id/unitary-authority/bracknell-forest","Bracknell Forest Council","00MA","Management and Support Services - CYPL","Unallocated High Needs Related Expenditure","","Voluntary Sector Service Providers",01/06/2015 00:00:00,"6585596",18225,"WITHERSLACK GROUP OF SCHOOLS (SOUTH) LTD"
"Bracknell Forest Council","http://opendatacommunities.org/id/unitary-authority/bracknell-forest","Bracknell Forest Council","00MA","Management and Support Services - CYPL","Unallocated High Needs Related Expenditure","","Voluntary Sector Service Providers",01/06/2015 00:00:00,"6585597",15885,"WITHERSLACK GROUP OF SCHOOLS (SOUTH) LTD"
"Bracknell Forest Council","http://opendatacommunities.org/id/unitary-authority/bracknell-forest","Bracknell Forest Council","00MA","Business Support","Premises Development","","Refuse Collection",31/07/2015 00:00:00,"6588063",556.99,"SITA"
"Bracknell Forest Council","http://opendatacommunities.org/id/unitary-authority/bracknell-forest","Bracknell Forest Council","00MA","Older People (65+)","Long Term Support - Nursing","","Contracted Services",07/08/2015 00:00:00,"6587382",9119.64,"AMBERBROOK MANAGEMENT LTD"
"Bracknell Forest Council","http://opendatacommunities.org/id/unitary-authority/bracknell-forest","Bracknell Forest Council","00MA","Older People (65+)","Internal Services","","Agency",29/07/2015 00:00:00,"6587494",504,"AFFINITY WORKFORCE LIMITED"
"Bracknell Forest Council","http://opendatacommunities.org/id/unitary-authority/bracknell-forest","Bracknell Forest Council","00MA","Structural Maintenance","Bridges","","Consultants Fees",11/08/2015 00:00:00,"6587573",1370.34,"ATKINS LTD"
"Bracknell Forest Council","http://opendatacommunities.org/id/unitary-authority/bracknell-forest","Bracknell Forest Council","00MA","Business Support","Premises Development","","Computer Software Maintenance",07/08/2015 00:00:00,"6588062",7420,"KINETIC SOLUTIONS LIMITED"
"Bracknell Forest Council","http://opendatacommunities.org/id/unitary-authority/bracknell-forest","Bracknell Forest Council","00MA","Business Support","Premises Development","","R&M - Service Contracts",11/08/2015 00:00:00,"6588064",1950,"WMF UNITED KINGDOM LIMITED"
"Bracknell Forest Council","http://opendatacommunities.org/id/unitary-authority/bracknell-forest","Bracknell Forest Council","00MA","Business Support","Premises Development","","Publicity & Marketing",12/08/2015 00:00:00,"6588089",840,"STARTING TOGETHER LTD"
"Bracknell Forest Council","http://opendatacommunities.org/id/unitary-authority/bracknell-forest","Bracknell Forest Council","00MA","Other Education and Community Budget","Service strategy and other education functions","","Consultants Fees",06/08/2015 00:00:00,"6588168",5805,"LINDA BAILY SCHOOL WISE CONSULTING LTD"
"Bracknell Forest Council","http://opendatacommunities.org/id/unitary-authority/bracknell-forest","Bracknell Forest Council","00MA","Other Education and Community Budget","Service strategy and other education functions","","Approved Conference Fees & Expenses",11/08/2015 00:00:00,"6588221",740,"GOVNET COMMUNICATIONS"
"Bracknell Forest Council","http://opendatacommunities.org/id/unitary-authority/bracknell-forest","Bracknell Forest Council","00MA","Post 16 Provision","High needs budget fpr post-16 provision","","Voluntary Sector Service Providers",09/07/2015 00:00:00,"6586174",1400,"BRACKNELL & WOKINGHAM COLLEGE"
"Bracknell Forest Council","http://opendatacommunities.org/id/unitary-authority/bracknell-forest","Bracknell Forest Council","00MA","Central Support Services - COF","Information Technology","","Contracted Services",01/07/2015 00:00:00,"6583917",3881.48,"VODAFONE LIMITED"
"Bracknell Forest Council","http://opendatacommunities.org/id/unitary-authority/bracknell-forest","Bracknell Forest Council","00MA","Management and Support Services - CYPL","Holding Codes - net nil","","Externally Purchased Professional Services-curriculum",24/06/2015 00:00:00,"6584040",1155,"CREATE DEVELOPMENT LIMITED"
"Bracknell Forest Council","http://opendatacommunities.org/id/unitary-authority/bracknell-forest","Bracknell Forest Council","00MA","Recreation, Sports and Leisure","Indoor Sports & Recreation Facilities","","Cost of Goods Sold",08/06/2015 00:00:00,"6584046",560,"DANUK INNOVATIVE GIFTS LTD"
"Bracknell Forest Council","http://opendatacommunities.org/id/unitary-authority/bracknell-forest","Bracknell Forest Council","00MA","Recreation, Sports and Leisure","Indoor Sports & Recreation Facilities","","Cost of Goods Sold",19/06/2015 00:00:00,"6584069",582,"PALMER & HARVEY MCLANE LTD"
"Bracknell Forest Council","http://opendatacommunities.org/id/unitary-authority/bracknell-forest","Bracknell Forest Council","00MA","Commissioning & Service Delivery","Commissioning & Service Delivery","","Training Costs",10/08/2015 00:00:00,"6586978",629,"THE KNOWLEDGE ACADEMY LTD"
"Bracknell Forest Council","http://opendatacommunities.org/id/unitary-authority/bracknell-forest","Bracknell Forest Council","00MA","Supporting People","Supporting People","","Transfer Payments - Supporting People",17/08/2015 00:00:00,"6587566",43852.87,"LOOK AHEAD CARE AND SUPPORT"
"Bracknell Forest Council","http://opendatacommunities.org/id/unitary-authority/bracknell-forest","Bracknell Forest Council","00MA","Supporting People","Supporting People","","Transfer Payments - Supporting People",17/08/2015 00:00:00,"6587567",1600.56,"LIFE HOUSING"
"Bracknell Forest Council","http://opendatacommunities.org/id/unitary-authority/bracknell-forest","Bracknell Forest Council","00MA","Supporting People","Supporting People","","Transfer Payments - Supporting People",17/08/2015 00:00:00,"6587570",13338.19,"BRACKNELL FOREST HOMES"
"Bracknell Forest Council","http://opendatacommunities.org/id/unitary-authority/bracknell-forest","Bracknell Forest Council","00MA","Supporting People","Supporting People","","Transfer Payments - Supporting People",17/08/2015 00:00:00,"6587571",12102.87,"BERKSHIRE WOMEN�S AID"
"Bracknell Forest Council","http://opendatacommunities.org/id/unitary-authority/bracknell-forest","Bracknell Forest Council","00MA","Supporting People","Supporting People","","Transfer Payments - Supporting People",17/08/2015 00:00:00,"6587572",624.23,"ABILITY HOUSING ASSOCIATION"
"Bracknell Forest Council","http://opendatacommunities.org/id/unitary-authority/bracknell-forest","Bracknell Forest Council","00MA","Management and Support Services - CYPL","Unallocated High Needs Related Expenditure","","Contracted Services",12/06/2015 00:00:00,"6584058",5832.43,"ORACLE CARE LIMITED"
"Bracknell Forest Council","http://opendatacommunities.org/id/unitary-authority/bracknell-forest","Bracknell Forest Council","00MA","Family Support Services","Targeted Family Support","","Contracted Services",12/06/2015 00:00:00,"6584058",2936.14,"ORACLE CARE LIMITED"
"Bracknell Forest Council","http://opendatacommunities.org/id/unitary-authority/bracknell-forest","Bracknell Forest Council","00MA","Commissioning & Service Delivery","Commissioning & Service Delivery","","Consultants Fees",28/08/2015 00:00:00,"6588692",4690.2,"BADGERS INC LTD"
"Bracknell Forest Council","http://opendatacommunities.org/id/unitary-authority/bracknell-forest","Bracknell Forest Council","00MA","Central Support Services - COF","Information Technology","","Computer -Purchase",14/08/2015 00:00:00,"6588184",3401,"SOL-TEC"
"Bracknell Forest Council","http://opendatacommunities.org/id/unitary-authority/bracknell-forest","Bracknell Forest Council","00MA","Commissioning & Service Delivery","Commissioning & Service Delivery","","Staff Public Transport Fares",24/07/2015 00:00:00,"6587606",1734,"RSP LTD"
"Bracknell Forest Council","http://opendatacommunities.org/id/unitary-authority/bracknell-forest","Bracknell Forest Council","00MA","Commissioning & Service Delivery","Commissioning & Service Delivery","","Agency",31/07/2015 00:00:00,"6586704",18740,"ODGERS INTERIM"
"Bracknell Forest Council","http://opendatacommunities.org/id/unitary-authority/bracknell-forest","Bracknell Forest Council","00MA","Other Education and Community Budget","Service strategy and other education functions","","Consultants Fees",04/07/2015 00:00:00,"6585397",5000,"PERMANENT FUTURES LTD"
"Bracknell Forest Council","http://opendatacommunities.org/id/unitary-authority/bracknell-forest","Bracknell Forest Council","00MA","Management and Support Services - CYPL","Unallocated High Needs Related Expenditure","","Voluntary Sector Service Providers",01/06/2015 00:00:00,"6585599",18225,"WITHERSLACK GROUP OF SCHOOLS (SOUTH) LTD"
"Bracknell Forest Council","http://opendatacommunities.org/id/unitary-authority/bracknell-forest","Bracknell Forest Council","00MA","Management and Support Services - CYPL","Unallocated High Needs Related Expenditure","","Voluntary Sector Service Providers",01/06/2015 00:00:00,"6585601",20584,"WITHERSLACK GROUP OF SCHOOLS (SOUTH) LTD"
"Bracknell Forest Council","http://opendatacommunities.org/id/unitary-authority/bracknell-forest","Bracknell Forest Council","00MA","Management and Support Services - CYPL","Unallocated High Needs Related Expenditure","","Voluntary Sector Service Providers",01/06/2015 00:00:00,"6585603",18225,"WITHERSLACK GROUP OF SCHOOLS (SOUTH) LTD"
"Bracknell Forest Council","http://opendatacommunities.org/id/unitary-authority/bracknell-forest","Bracknell Forest Council","00MA","Management and Support Services - CYPL","Unallocated High Needs Related Expenditure","","Voluntary Sector Service Providers",01/06/2015 00:00:00,"6585604",20584,"WITHERSLACK GROUP OF SCHOOLS (SOUTH) LTD"
"Bracknell Forest Council","http://opendatacommunities.org/id/unitary-authority/bracknell-forest","Bracknell Forest Council","00MA","Management and Support Services - CYPL","Unallocated High Needs Related Expenditure","","Voluntary Sector Service Providers",01/06/2015 00:00:00,"6585607",21611.33,"WITHERSLACK GROUP OF SCHOOLS (SOUTH) LTD"
"Bracknell Forest Council","http://opendatacommunities.org/id/unitary-authority/bracknell-forest","Bracknell Forest Council","00MA","Management and Support Services - CYPL","Unallocated High Needs Related Expenditure","","Voluntary Sector Service Providers",01/06/2015 00:00:00,"6585573",18894,"WITHERSLACK GROUP OF SCHOOLS (SOUTH) LTD"
"Bracknell Forest Council","http://opendatacommunities.org/id/unitary-authority/bracknell-forest","Bracknell Forest Council","00MA","Management and Support Services - CYPL","Unallocated High Needs Related Expenditure","","Voluntary Sector Service Providers",01/06/2015 00:00:00,"6585575",19116,"WITHERSLACK GROUP OF SCHOOLS (SOUTH) LTD"
"Bracknell Forest Council","http://opendatacommunities.org/id/unitary-authority/bracknell-forest","Bracknell Forest Council","00MA","Miscellaneous Public Health Services","Miscellaneous Public Health Services","","Contracted Services",18/05/2015 00:00:00,"6582193",12027,"BERKS HEALTHCARE NHS FOUNDATION TRUST"
"Bracknell Forest Council","http://opendatacommunities.org/id/unitary-authority/bracknell-forest","Bracknell Forest Council","00MA","Sexual Health Services","Contraception","","Contracted Services",18/05/2015 00:00:00,"6582193",4197,"BERKS HEALTHCARE NHS FOUNDATION TRUST"
"Bracknell Forest Council","http://opendatacommunities.org/id/unitary-authority/bracknell-forest","Bracknell Forest Council","00MA","Sexual Health Services","STI testing and treatment","","Contracted Services",18/05/2015 00:00:00,"6582193",20153.1,"BERKS HEALTHCARE NHS FOUNDATION TRUST"
"Bracknell Forest Council","http://opendatacommunities.org/id/unitary-authority/bracknell-forest","Bracknell Forest Council","00MA","Sexual Health Services","STI testing and treatment","","Contracted Services",15/06/2015 00:00:00,"6582529",20153,"BERKS HEALTHCARE NHS FOUNDATION TRUST"
"Bracknell Forest Council","http://opendatacommunities.org/id/unitary-authority/bracknell-forest","Bracknell Forest Council","00MA","Obesity","Adult obesity","","Contracted Services",15/06/2015 00:00:00,"6582529",19667,"BERKS HEALTHCARE NHS FOUNDATION TRUST"
"Bracknell Forest Council","http://opendatacommunities.org/id/unitary-authority/bracknell-forest","Bracknell Forest Council","00MA","Sexual Health Services","STI testing and treatment","","Contracted Services",15/06/2015 00:00:00,"6582529",184171.1,"BERKS HEALTHCARE NHS FOUNDATION TRUST"
"Bracknell Forest Council","http://opendatacommunities.org/id/unitary-authority/bracknell-forest","Bracknell Forest Council","00MA","Other Education and Community Budget","Service strategy and other education functions","","Staff Advertising",02/07/2015 00:00:00,"6584531",630,"ASSOCIATION OF EDUCATIONAL PSYCHOLOGISTS"
"Bracknell Forest Council","http://opendatacommunities.org/id/unitary-authority/bracknell-forest","Bracknell Forest Council","00MA","Family Support Services","Targeted Family Support","","Other Support to Clients",01/07/2015 00:00:00,"6591137",1911.67,"NEW ELIZABETH HOUSE HOTEL LTD"
"Bracknell Forest Council","http://opendatacommunities.org/id/unitary-authority/bracknell-forest","Bracknell Forest Council","00MA","Family Support Services","Targeted Family Support","","Other Support to Clients",01/09/2015 00:00:00,"6591138",2375,"NEW ELIZABETH HOUSE HOTEL LTD"
"Bracknell Forest Council","http://opendatacommunities.org/id/unitary-authority/bracknell-forest","Bracknell Forest Council","00MA","Services for Young People","Universal services for young people","","R&M - Service Contracts",02/09/2015 00:00:00,"6589395",739.8,"CHURCHES FIRE SECURITY LTD"
"Bracknell Forest Council","http://opendatacommunities.org/id/unitary-authority/bracknell-forest","Bracknell Forest Council","00MA","Recreation, Sports and Leisure","Golf Courses","","Materials",15/09/2015 00:00:00,"6590760",1822,"MAXSTIM LTD"
"Bracknell Forest Council","http://opendatacommunities.org/id/unitary-authority/bracknell-forest","Bracknell Forest Council","00MA","Internal Services","Internal Services","","Equipment - R&M",01/09/2015 00:00:00,"6590785",672,"WEALDEN REHAB PROFESSIONAL CARE EQUIPMENT"
"Bracknell Forest Council","http://opendatacommunities.org/id/unitary-authority/bracknell-forest","Bracknell Forest Council","00MA","Other Trading Surpluses & Deficits","Smartcard","","Contracted Services",31/08/2015 00:00:00,"6590216",2769,"SMARTCITIZEN LIMITED"
"Bracknell Forest Council","http://opendatacommunities.org/id/unitary-authority/bracknell-forest","Bracknell Forest Council","00MA","Other Trading Surpluses & Deficits","Smartcard","","Contracted Services",31/08/2015 00:00:00,"6590219",5156,"SMARTCITIZEN LIMITED"
"Bracknell Forest Council","http://opendatacommunities.org/id/unitary-authority/bracknell-forest","Bracknell Forest Council","00MA","Other Trading Surpluses & Deficits","Smartcard","","Materials",31/08/2015 00:00:00,"6590219",1100.78,"SMARTCITIZEN LIMITED"
"Bracknell Forest Council","http://opendatacommunities.org/id/unitary-authority/bracknell-forest","Bracknell Forest Council","00MA","Other Trading Surpluses & Deficits","Smartcard","","Materials",31/07/2015 00:00:00,"6590220",2820,"SMARTCITIZEN LIMITED"
"Bracknell Forest Council","http://opendatacommunities.org/id/unitary-authority/bracknell-forest","Bracknell Forest Council","00MA","Public Transport","Support To Operators","","Contracted Services",14/08/2015 00:00:00,"6590214",4549.71,"BUCKINGHAMSHIRE COUNTY COUNCIL"
"Bracknell Forest Council","http://opendatacommunities.org/id/unitary-authority/bracknell-forest","Bracknell Forest Council","00MA","Open Spaces","Community Parks & Open Spaces","","R&M - Reactive",02/09/2015 00:00:00,"6590221",760,"WATERMETRICS (UK) LLP"
"Bracknell Forest Council","http://opendatacommunities.org/id/unitary-authority/bracknell-forest","Bracknell Forest Council","00MA","Social Care Activities","Social Care Activities","","Equipment - Purchase",09/09/2015 00:00:00,"6589700",711.7,"DELL COMPUTER CORPORATION"
"Bracknell Forest Council","http://opendatacommunities.org/id/unitary-authority/bracknell-forest","Bracknell Forest Council","00MA","Central Support Services - COF","Information Technology","","Mobile Telephones",10/09/2015 00:00:00,"6589702",1776,"DELL COMPUTER CORPORATION"
"Bracknell Forest Council","http://opendatacommunities.org/id/unitary-authority/bracknell-forest","Bracknell Forest Council","00MA","Recycling","Collection","","Contracted Services",09/09/2015 00:00:00,"6589767",1450,"SITA"
"Bracknell Forest Council","http://opendatacommunities.org/id/unitary-authority/bracknell-forest","Bracknell Forest Council","00MA","Waste Collection","Household Waste Collection","","Contracted Services",09/09/2015 00:00:00,"6589767",70132.97,"SITA"
"Bracknell Forest Council","http://opendatacommunities.org/id/unitary-authority/bracknell-forest","Bracknell Forest Council","00MA","Sexual Health Services","Contraception","","Contracted Services",30/06/2015 00:00:00,"6586207",729,"EVERGREEN PRACTICE"
"Bracknell Forest Council","http://opendatacommunities.org/id/unitary-authority/bracknell-forest","Bracknell Forest Council","00MA","Sexual Health Services","Contraception","","Contracted Services",02/07/2015 00:00:00,"6585280",702,"THE RINGMEAD PRACTICE"
"Bracknell Forest Council","http://opendatacommunities.org/id/unitary-authority/bracknell-forest","Bracknell Forest Council","00MA","Sexual Health Services","Contraception","","Contracted Services",02/07/2015 00:00:00,"6585282",1782,"FOREST END MEDICAL CENTRE"
"Bracknell Forest Council","http://opendatacommunities.org/id/unitary-authority/bracknell-forest","Bracknell Forest Council","00MA","Sexual Health Services","Contraception","","Contracted Services",08/07/2015 00:00:00,"6585284",513,"SANDHURST GROUP PRACTICE"
"Bracknell Forest Council","http://opendatacommunities.org/id/unitary-authority/bracknell-forest","Bracknell Forest Council","00MA","Sexual Health Services","Contraception","","Contracted Services",02/07/2015 00:00:00,"6585293",742.5,"FOREST END MEDICAL CENTRE"
"Bracknell Forest Council","http://opendatacommunities.org/id/unitary-authority/bracknell-forest","Bracknell Forest Council","00MA","Sexual Health Services","Contraception","","Contracted Services",01/07/2015 00:00:00,"6585298",632.5,"SANDHURST GROUP PRACTICE"
"Bracknell Forest Council","http://opendatacommunities.org/id/unitary-authority/bracknell-forest","Bracknell Forest Council","00MA","Culture and Heritage","Heritage Museums & Galleries","","Equipment - R&M",29/07/2015 00:00:00,"6586729",754.25,"FAST TRACK SERVICES (SOUTHERN)  LTD"
"Bracknell Forest Council","http://opendatacommunities.org/id/unitary-authority/bracknell-forest","Bracknell Forest Council","00MA","Culture and Heritage","Heritage Museums & Galleries","","R&M - Reactive",29/07/2015 00:00:00,"6586732",524,"FAST TRACK SERVICES (SOUTHERN)  LTD"
"Bracknell Forest Council","http://opendatacommunities.org/id/unitary-authority/bracknell-forest","Bracknell Forest Council","00MA","Management and Support Services - CYPL","De-Delegated Expenditure","","Taxi Fares - Home/School Transport",01/07/2015 00:00:00,"6585693",16343.45,"BERKSHIRE EDUCATION TRAVEL"
"Bracknell Forest Council","http://opendatacommunities.org/id/unitary-authority/bracknell-forest","Bracknell Forest Council","00MA","Management and Support Services - CYPL","De-Delegated Expenditure","","Taxi Fares - Home/School Transport",01/07/2015 00:00:00,"6585703",10540.61,"BERKSHIRE EDUCATION TRAVEL"
"Bracknell Forest Council","http://opendatacommunities.org/id/unitary-authority/bracknell-forest","Bracknell Forest Council","00MA","Management and Support Services - CYPL","De-Delegated Expenditure","","Taxi Fares - Home/School Transport",01/07/2015 00:00:00,"6585704",8879.68,"BERKSHIRE EDUCATION TRAVEL"
"Bracknell Forest Council","http://opendatacommunities.org/id/unitary-authority/bracknell-forest","Bracknell Forest Council","00MA","Management and Support Services - CYPL","De-Delegated Expenditure","","Taxi Fares - Home/School Transport",01/07/2015 00:00:00,"6585691",8031.06,"BERKSHIRE EDUCATION TRAVEL"
"Bracknell Forest Council","http://opendatacommunities.org/id/unitary-authority/bracknell-forest","Bracknell Forest Council","00MA","Management and Support Services - CYPL","Unallocated High Needs Related Expenditure","","Consultants Fees",14/07/2015 00:00:00,"6585406",23000,"MIME CONSULTING LTD"
"Bracknell Forest Council","http://opendatacommunities.org/id/unitary-authority/bracknell-forest","Bracknell Forest Council","00MA","Management and Support Services - CYPL","De-Delegated Expenditure","","Taxi Fares - Home/School Transport",01/07/2015 00:00:00,"6585695",19357.27,"BERKSHIRE EDUCATION TRAVEL"
"Bracknell Forest Council","http://opendatacommunities.org/id/unitary-authority/bracknell-forest","Bracknell Forest Council","00MA","Management and Support Services - CYPL","De-Delegated Expenditure","","Taxi Fares - Home/School Transport",01/07/2015 00:00:00,"6585699",16015.09,"BERKSHIRE EDUCATION TRAVEL"
"Bracknell Forest Council","http://opendatacommunities.org/id/unitary-authority/bracknell-forest","Bracknell Forest Council","00MA","Management and Support Services - CYPL","De-Delegated Expenditure","","Taxi Fares - Home/School Transport",01/07/2015 00:00:00,"6585701",5563.74,"BERKSHIRE EDUCATION TRAVEL"
"Bracknell Forest Council","http://opendatacommunities.org/id/unitary-authority/bracknell-forest","Bracknell Forest Council","00MA","Miscellaneous Public Health Services","Miscellaneous Public Health Services","","Contracted Services",15/06/2015 00:00:00,"6582529",12027,"BERKS HEALTHCARE NHS FOUNDATION TRUST"
"Bracknell Forest Council","http://opendatacommunities.org/id/unitary-authority/bracknell-forest","Bracknell Forest Council","00MA","Sexual Health Services","Contraception","","Contracted Services",15/06/2015 00:00:00,"6582529",4197,"BERKS HEALTHCARE NHS FOUNDATION TRUST"
"Bracknell Forest Council","http://opendatacommunities.org/id/unitary-authority/bracknell-forest","Bracknell Forest Council","00MA","Obesity","Adult obesity","","Contracted Services",18/05/2015 00:00:00,"6582193",19667,"BERKS HEALTHCARE NHS FOUNDATION TRUST"
"Bracknell Forest Council","http://opendatacommunities.org/id/unitary-authority/bracknell-forest","Bracknell Forest Council","00MA","Sexual Health Services","STI testing and treatment","","Contracted Services",18/05/2015 00:00:00,"6582193",184171,"BERKS HEALTHCARE NHS FOUNDATION TRUST"
"Bracknell Forest Council","http://opendatacommunities.org/id/unitary-authority/bracknell-forest","Bracknell Forest Council","00MA","Sexual Health Services","STI testing and treatment","","Contracted Services",17/06/2015 00:00:00,"6583663",223774,"ROYAL BERKSHIRE HOSPITAL"
"Bracknell Forest Council","http://opendatacommunities.org/id/unitary-authority/bracknell-forest","Bracknell Forest Council","00MA","Secondary Schools","Delegated Secondary Schools Budgets","","R&M - Reactive",17/06/2015 00:00:00,"6583522",600,"BERKSHIRE MECHANICAL SERVICES"
"Bracknell Forest Council","http://opendatacommunities.org/id/unitary-authority/bracknell-forest","Bracknell Forest Council","00MA","Recreation, Sports and Leisure","Indoor Sports & Recreation Facilities","","Equipment - Purchase",23/06/2015 00:00:00,"6583524",5561.6,"MORRIS & BLUNT LTD"
"Bracknell Forest Council","http://opendatacommunities.org/id/unitary-authority/bracknell-forest","Bracknell Forest Council","00MA","Environmental Initiatives","Sustainable Development Strategies","","Other Fees for Bought-in Services",31/05/2015 00:00:00,"6583526",3355,"GRAHAM ASSET MANAGEMENT LTD"
"Bracknell Forest Council","http://opendatacommunities.org/id/unitary-authority/bracknell-forest","Bracknell Forest Council","00MA","Registration of Electors","Registration of Electors","","Postage",03/06/2015 00:00:00,"6582928",5514.95,"WOKINGHAM BOROUGH COUNCIL"
"Bracknell Forest Council","http://opendatacommunities.org/id/unitary-authority/bracknell-forest","Bracknell Forest Council","00MA","Early Years","Centrally managed Expenditure - Early Years","","Approved Conference Fees & Expenses",12/06/2015 00:00:00,"6583313",740,"GOVNET COMMUNICATIONS"
"Bracknell Forest Council","http://opendatacommunities.org/id/unitary-authority/bracknell-forest","Bracknell Forest Council","00MA","Assistive Equipment & Technology","Assistive Equipment & Technology","","Contracted Services",29/06/2015 00:00:00,"6583465",62214.63,"WEST BERKSHIRE COUNCIL"
"Bracknell Forest Council","http://opendatacommunities.org/id/unitary-authority/bracknell-forest","Bracknell Forest Council","00MA","Central Support Services - COF","Information Technology","","Licences",22/06/2015 00:00:00,"6583472",1368,"SOCITM  LTD"
"Bracknell Forest Council","http://opendatacommunities.org/id/unitary-authority/bracknell-forest","Bracknell Forest Council","00MA","Service Management & Support Services","Service Management & Support Services","","Staff Advertising",31/05/2015 00:00:00,"6583473",565,"HAYMARKET PUBLISHING SERV LTD"
"Bracknell Forest Council","http://opendatacommunities.org/id/unitary-authority/bracknell-forest","Bracknell Forest Council","00MA","Local Tax Collection","Non-Domestic Rates","","Consultants Fees",18/06/2015 00:00:00,"6583491",1000,"INFORM CPI LTD"
"Bracknell Forest Council","http://opendatacommunities.org/id/unitary-authority/bracknell-forest","Bracknell Forest Council","00MA","Central Support Services - COF","Information Technology","","Computer -Purchase",12/06/2015 00:00:00,"6583268",3401,"SOL-TEC"
"Bracknell Forest Council","http://opendatacommunities.org/id/unitary-authority/bracknell-forest","Bracknell Forest Council","00MA","Public Transport","Concessionary Fares","","Contracted Services",17/06/2015 00:00:00,"6582575",31299,"COURTNEY COACHES LTD"
"Bracknell Forest Council","http://opendatacommunities.org/id/unitary-authority/bracknell-forest","Bracknell Forest Council","00MA","Public Transport","Concessionary Fares","","Contracted Services",17/06/2015 00:00:00,"6582576",38951,"FIRST BEELINE"
"Bracknell Forest Council","http://opendatacommunities.org/id/unitary-authority/bracknell-forest","Bracknell Forest Council","00MA","Public Transport","Concessionary Fares","","Contracted Services",17/06/2015 00:00:00,"6582580",5250,"STAGECOACH HANTS AND SURREY"
"Bracknell Forest Council","http://opendatacommunities.org/id/unitary-authority/bracknell-forest","Bracknell Forest Council","00MA","Management and Support Services - CYPL","De-Delegated Expenditure","","Coach Fares - Home/School Transport",18/09/2015 00:00:00,"6591156",780,"FERNHILL TRAVEL LTD"
"Bracknell Forest Council","http://opendatacommunities.org/id/unitary-authority/bracknell-forest","Bracknell Forest Council","00MA","Management and Support Services - CYPL","De-Delegated Expenditure","","Coach Fares - Home/School Transport",18/09/2015 00:00:00,"6591156",42120,"FERNHILL TRAVEL LTD"
"Bracknell Forest Council","http://opendatacommunities.org/id/unitary-authority/bracknell-forest","Bracknell Forest Council","00MA","Commissioning & Service Delivery","Commissioning & Service Delivery","","Contracted Services",30/09/2015 00:00:00,"6591355",8760,"BERKSHIRE CARERS SERVICE"
"Bracknell Forest Council","http://opendatacommunities.org/id/unitary-authority/bracknell-forest","Bracknell Forest Council","00MA","Commissioning & Service Delivery","Commissioning & Service Delivery","","Contracted Services",30/09/2015 00:00:00,"6591356",16000,"BERKSHIRE CARERS SERVICE"
"Bracknell Forest Council","http://opendatacommunities.org/id/unitary-authority/bracknell-forest","Bracknell Forest Council","00MA","Open Spaces","Community Parks & Open Spaces","","Materials",31/08/2015 00:00:00,"6589071",512.55,"UNIT 42 LTD"
"Bracknell Forest Council","http://opendatacommunities.org/id/unitary-authority/bracknell-forest","Bracknell Forest Council","00MA","Open Spaces","Community Parks & Open Spaces","","Grounds Maintenance Costs",07/09/2015 00:00:00,"6589317",9300,"SCOFELL LANDSCAPES LTD"
"Bracknell Forest Council","http://opendatacommunities.org/id/unitary-authority/bracknell-forest","Bracknell Forest Council","00MA","Other Education and Community Budget","Service strategy and other education functions","","Schools ICT Learning Resources - Software Maintenance",18/06/2015 00:00:00,"6583291",57690.95,"RM EDUCATION PLC"
"Bracknell Forest Council","http://opendatacommunities.org/id/unitary-authority/bracknell-forest","Bracknell Forest Council","00MA","Open Spaces","Community Parks & Open Spaces","","Contracted Services",04/06/2015 00:00:00,"6582379",1750,"ALPINE TREE SURGEONS"
"Bracknell Forest Council","http://opendatacommunities.org/id/unitary-authority/bracknell-forest","Bracknell Forest Council","00MA","Children Looked After","Other services for LAC","","Contracted Services",11/06/2015 00:00:00,"6584450",4996.8,"CARE ADVOCATES LTD"
"Bracknell Forest Council","http://opendatacommunities.org/id/unitary-authority/bracknell-forest","Bracknell Forest Council","00MA","Children 5-19 Public Health Programmes","Children 5-19 Public Health Programmes","","Contracted Services",15/06/2015 00:00:00,"6582529",180143,"BERKS HEALTHCARE NHS FOUNDATION TRUST"
"Bracknell Forest Council","http://opendatacommunities.org/id/unitary-authority/bracknell-forest","Bracknell Forest Council","00MA","Children 5-19 Public Health Programmes","Children 5-19 Public Health Programmes","","Contracted Services",18/05/2015 00:00:00,"6582193",180143,"BERKS HEALTHCARE NHS FOUNDATION TRUST"
"Bracknell Forest Council","http://opendatacommunities.org/id/unitary-authority/bracknell-forest","Bracknell Forest Council","00MA","Central Support Services - COF","Personnel","","Other Fees for Bought-in Services",25/06/2015 00:00:00,"6583449",4961.23,"HEALES MEDICAL LTD"
"Bracknell Forest Council","http://opendatacommunities.org/id/unitary-authority/bracknell-forest","Bracknell Forest Council","00MA","Central Support Services - COF","Construction and Property","","R&M - Reactive",31/05/2015 00:00:00,"6583525",2500,"GRAHAM ASSET MANAGEMENT LTD"
"Bracknell Forest Council","http://opendatacommunities.org/id/unitary-authority/bracknell-forest","Bracknell Forest Council","00MA","Vehicles &  Plant","Vehicles and Plant Summary Account","","Operating Lease Charge",12/06/2015 00:00:00,"6583618",12825.03,"AUTOMOTIVE LEASING"
"Bracknell Forest Council","http://opendatacommunities.org/id/unitary-authority/bracknell-forest","Bracknell Forest Council","00MA","Vehicles &  Plant","Vehicles and Plant Summary Account","","Operating Lease Charge",12/06/2015 00:00:00,"6583619",9676,"AUTOMOTIVE LEASING"
"Bracknell Forest Council","http://opendatacommunities.org/id/unitary-authority/bracknell-forest","Bracknell Forest Council","00MA","Support Services & Management Costs","Training","","Training Costs",23/06/2015 00:00:00,"6583655",2660,"SAFE AND SOUND DERBY"
"Bracknell Forest Council","http://opendatacommunities.org/id/unitary-authority/bracknell-forest","Bracknell Forest Council","00MA","Holding Accounts in Budget Book COF","Corporate Serv - Reprographics & Printing","","Wokingham DC",03/06/2015 00:00:00,"6582928",28068.83,"WOKINGHAM BOROUGH COUNCIL"
"Bracknell Forest Council","http://opendatacommunities.org/id/unitary-authority/bracknell-forest","Bracknell Forest Council","00MA","Holding Accounts in Budget Book COF","Corporate Services - Office Services","","Postage",17/06/2015 00:00:00,"6583281",1750.05,"WHISTL"
"Bracknell Forest Council","http://opendatacommunities.org/id/unitary-authority/bracknell-forest","Bracknell Forest Council","00MA","Holding Accounts in Budget Book COF","Corporate Services - Office Services","","Postage",11/06/2015 00:00:00,"6583284",1776.03,"WHISTL"
"Bracknell Forest Council","http://opendatacommunities.org/id/unitary-authority/bracknell-forest","Bracknell Forest Council","00MA","Holding Accounts in Budget Book COF","Corporate Services - Office Services","","Postage",17/06/2015 00:00:00,"6583282",728.1,"WHISTL"
"Bracknell Forest Council","http://opendatacommunities.org/id/unitary-authority/bracknell-forest","Bracknell Forest Council","00MA","Holding Accounts in Budget Book COF","Corporate Services - Office Services","","Postage",11/06/2015 00:00:00,"6583283",548.29,"WHISTL"
"Bracknell Forest Council","http://opendatacommunities.org/id/unitary-authority/bracknell-forest","Bracknell Forest Council","00MA","Development Control","Applications - Development Control","","Refunds",26/06/2015 00:00:00,"6583508",7700,"SG HINDS"
"Bracknell Forest Council","http://opendatacommunities.org/id/unitary-authority/bracknell-forest","Bracknell Forest Council","00MA","Management and Support Services - CYPL","CYPL Department Management Team","","Consultants Fees",15/06/2015 00:00:00,"6583254",40000,"EAST SUSSEX COUNTY COUNCIL"
"Bracknell Forest Council","http://opendatacommunities.org/id/unitary-authority/bracknell-forest","Bracknell Forest Council","00MA","Central Support Services - COF","Finance","","Computer Software",10/06/2015 00:00:00,"6583483",593,"HAGUE COMPUTER SUPPLIES"
"Bracknell Forest Council","http://opendatacommunities.org/id/unitary-authority/bracknell-forest","Bracknell Forest Council","00MA","Central Support Services - COF","Finance","","Computer Software Maintenance",10/06/2015 00:00:00,"6583484",750,"HAGUE COMPUTER SUPPLIES"
"Bracknell Forest Council","http://opendatacommunities.org/id/unitary-authority/bracknell-forest","Bracknell Forest Council","00MA","Holding Accounts in Budget Book COF","Corporate Services - Office Services","","Postage",08/06/2015 00:00:00,"6583489",598.09,"ROYAL MAIL GROUP LTD"
"Bracknell Forest Council","http://opendatacommunities.org/id/unitary-authority/bracknell-forest","Bracknell Forest Council","00MA","Recreation, Sports and Leisure","Golf Courses","","Cost of Goods Sold",13/03/2015 00:00:00,"6582582",663.48,"ACUSHNET EUROPE LTD"
"Bracknell Forest Council","http://opendatacommunities.org/id/unitary-authority/bracknell-forest","Bracknell Forest Council","00MA","Culture and Heritage","Heritage Museums & Galleries","","Cost of Goods Sold",28/09/2015 00:00:00,"6591391",1296.2,"TOBAR LIMITED"
"Bracknell Forest Council","http://opendatacommunities.org/id/unitary-authority/bracknell-forest","Bracknell Forest Council","00MA","Short Term Support Maximise Independence","Short Term Support to Maximise Independence","","Other Fees for Bought-in Services",28/09/2015 00:00:00,"6591392",14307.5,"ATKINS LTD"
"Bracknell Forest Council","http://opendatacommunities.org/id/unitary-authority/bracknell-forest","Bracknell Forest Council","00MA","Vehicles &  Plant","Vehicles and Plant Summary Account","","Petrol",30/09/2015 00:00:00,"6591253",2838.66,"ALLSTAR BUSINESS SOLUTIONS LTD"
"Bracknell Forest Council","http://opendatacommunities.org/id/unitary-authority/bracknell-forest","Bracknell Forest Council","00MA","Conducting Elections","Other Elections","","Other Fees for Bought-in Services",16/09/2015 00:00:00,"6591353",5010.7,"WOKINGHAM BOROUGH COUNCIL"
"Bracknell Forest Council","http://opendatacommunities.org/id/unitary-authority/bracknell-forest","Bracknell Forest Council","00MA","Business Support","Premises Development","","Rent of Property",02/09/2015 00:00:00,"6589311",122125,"CLERKS WELL PROPERTIES LIMITED"
"Bracknell Forest Council","http://opendatacommunities.org/id/unitary-authority/bracknell-forest","Bracknell Forest Council","00MA","Children Looked After","Other services for LAC","","Contracted Services",18/06/2015 00:00:00,"6584044",1894.76,"ABOVE BEYOND CARE"
"Bracknell Forest Council","http://opendatacommunities.org/id/unitary-authority/bracknell-forest","Bracknell Forest Council","00MA","Children Looked After","Other services for LAC","","Contracted Services",18/06/2015 00:00:00,"6584049",1607.1,"ABOVE BEYOND CARE"
"Bracknell Forest Council","http://opendatacommunities.org/id/unitary-authority/bracknell-forest","Bracknell Forest Council","00MA","Children Looked After","Residential care","","Contracted Services",30/06/2015 00:00:00,"6584054",3428.57,"SHERICO CARE SERVICES LTD"
"Bracknell Forest Council","http://opendatacommunities.org/id/unitary-authority/bracknell-forest","Bracknell Forest Council","00MA","Management and Support Services - CYPL","De-Delegated Expenditure","","Taxi Fares - Home/School Transport",31/05/2015 00:00:00,"6582288",818,"JJM TAXIS & ZULU CARS LTD"
"Bracknell Forest Council","http://opendatacommunities.org/id/unitary-authority/bracknell-forest","Bracknell Forest Council","00MA","Management and Support Services - CYPL","De-Delegated Expenditure","","Taxi Fares - Home/School Transport",31/05/2015 00:00:00,"6582288",783,"JJM TAXIS & ZULU CARS LTD"
"Bracknell Forest Council","http://opendatacommunities.org/id/unitary-authority/bracknell-forest","Bracknell Forest Council","00MA","Management and Support Services - CYPL","De-Delegated Expenditure","","Taxi Fares - Home/School Transport",31/05/2015 00:00:00,"6582288",966,"JJM TAXIS & ZULU CARS LTD"
"Bracknell Forest Council","http://opendatacommunities.org/id/unitary-authority/bracknell-forest","Bracknell Forest Council","00MA","Other Welfare Services","Other Welfare Services","","Equipment - Purchase",24/07/2015 00:00:00,"6586665",2475,"TUNSTALL TELECOM LTD"
"Bracknell Forest Council","http://opendatacommunities.org/id/unitary-authority/bracknell-forest","Bracknell Forest Council","00MA","Family Support Services","Targeted Family Support","","Contracted Services",11/08/2015 00:00:00,"6588402",2841.43,"ORACLE CARE LIMITED"
"Bracknell Forest Council","http://opendatacommunities.org/id/unitary-authority/bracknell-forest","Bracknell Forest Council","00MA","Management and Support Services - CYPL","Unallocated High Needs Related Expenditure","","Contracted Services",11/08/2015 00:00:00,"6588402",5644.28,"ORACLE CARE LIMITED"
"Bracknell Forest Council","http://opendatacommunities.org/id/unitary-authority/bracknell-forest","Bracknell Forest Council","00MA","Children Looked After","Fostering services","","Contracted Services",01/07/2015 00:00:00,"6588616",3229.89,"FUTURES FOR CHILDREN LTD"
"Bracknell Forest Council","http://opendatacommunities.org/id/unitary-authority/bracknell-forest","Bracknell Forest Council","00MA","Children Looked After","Fostering services","","Contracted Services",01/07/2015 00:00:00,"6588617",3229.89,"FUTURES FOR CHILDREN LTD"
"Bracknell Forest Council","http://opendatacommunities.org/id/unitary-authority/bracknell-forest","Bracknell Forest Council","00MA","Local Tax Collection","Non-Domestic Rates","","Consultants Fees",18/09/2015 00:00:00,"6588723",3808.96,"CAPACITYGRID"
"Bracknell Forest Council","http://opendatacommunities.org/id/unitary-authority/bracknell-forest","Bracknell Forest Council","00MA","Sure Start Children�s Centres","Children�s centres - direct","","Other Fees for Bought-in Services",13/08/2015 00:00:00,"6588767",980,"MAGICAL MOMENTS CRECHE"
"Bracknell Forest Council","http://opendatacommunities.org/id/unitary-authority/bracknell-forest","Bracknell Forest Council","00MA","Central Support Services - COF","Construction and Property","","Consultants Fees",30/09/2015 00:00:00,"6591375",16803.97,"LIFE ENVIRONMENTAL SERVICES LTD"
"Bracknell Forest Council","http://opendatacommunities.org/id/unitary-authority/bracknell-forest","Bracknell Forest Council","00MA","Holding Accounts in Budget Book COF","Corporate Serv - Reprographics & Printing","","Agency",28/09/2015 00:00:00,"6591368",630,"WHATEVER DESIGN LTD"
"Bracknell Forest Council","http://opendatacommunities.org/id/unitary-authority/bracknell-forest","Bracknell Forest Council","00MA","Recreation, Sports and Leisure","Indoor Sports & Recreation Facilities","","Publicity & Marketing",01/10/2015 00:00:00,"6591377",1200,"HIBU UK LIMITED"
"Bracknell Forest Council","http://opendatacommunities.org/id/unitary-authority/bracknell-forest","Bracknell Forest Council","00MA","Social Care Activities","Social Care Activities","","Agency",03/08/2015 00:00:00,"6587595",1284.78,"JCJ LOCUMS LTD"
"Bracknell Forest Council","http://opendatacommunities.org/id/unitary-authority/bracknell-forest","Bracknell Forest Council","00MA","Social Care Activities","Social Care Activities","","Agency",10/08/2015 00:00:00,"6587596",1310.14,"JCJ LOCUMS LTD"
"Bracknell Forest Council","http://opendatacommunities.org/id/unitary-authority/bracknell-forest","Bracknell Forest Council","00MA","Adults (18-64)","Long Term Support - Community:Supported Living","","Contracted Services",19/06/2015 00:00:00,"6588157",1283.7,"DISABILITY INITIATIVE"
"Bracknell Forest Council","http://opendatacommunities.org/id/unitary-authority/bracknell-forest","Bracknell Forest Council","00MA","Adults (18-64)","Long Term Support - Community:Supported Living","","Contracted Services",19/06/2015 00:00:00,"6588155",933.6,"DISABILITY INITIATIVE"
"Bracknell Forest Council","http://opendatacommunities.org/id/unitary-authority/bracknell-forest","Bracknell Forest Council","00MA","Housing Benefits Administration","Housing Benefits Administration","","Licences",28/04/2015 00:00:00,"6578938",2000,"NORTHGATE PUBLIC SERVICES (UK) LTD"
"Bracknell Forest Council","http://opendatacommunities.org/id/unitary-authority/bracknell-forest","Bracknell Forest Council","00MA","Management and Support Services - CYPL","Schools Block Centrally Managed","","Consultants Fees",16/09/2015 00:00:00,"6590256",1204,"TEACHING PERSONNEL LTD"
"Bracknell Forest Council","http://opendatacommunities.org/id/unitary-authority/bracknell-forest","Bracknell Forest Council","00MA","Management and Support Services - CYPL","De-Delegated Expenditure","","Training Costs",05/08/2015 00:00:00,"6587417",1150,"CAPITA BUSINESS SERVICES LTD"
"Bracknell Forest Council","http://opendatacommunities.org/id/unitary-authority/bracknell-forest","Bracknell Forest Council","00MA","Holding Accounts not in Budget Book - COF","RW - Insurance Claims","","Other Expenses",21/07/2015 00:00:00,"6586727",3668.63,"WEIGHTMANS LLP"
"Bracknell Forest Council","http://opendatacommunities.org/id/unitary-authority/bracknell-forest","Bracknell Forest Council","00MA","Commissioning & Service Delivery","Commissioning & Service Delivery","","Contracted Services",31/07/2015 00:00:00,"6586705",8343.5,"THE ARK TRUST LTD"
"Bracknell Forest Council","http://opendatacommunities.org/id/unitary-authority/bracknell-forest","Bracknell Forest Council","00MA","Recreation, Sports and Leisure","Indoor Sports & Recreation Facilities","","R&M - Service Contracts",17/07/2015 00:00:00,"6586668",2309.65,"H20 SERVICING LTD"
"Bracknell Forest Council","http://opendatacommunities.org/id/unitary-authority/bracknell-forest","Bracknell Forest Council","00MA","Regulatory Services","Public Conveniences","","R&M - Reactive",11/06/2015 00:00:00,"6583540",5050,"C J M HARVEY CONSTRUCTION LTD"
"Bracknell Forest Council","http://opendatacommunities.org/id/unitary-authority/bracknell-forest","Bracknell Forest Council","00MA","Services for Young People","Targeted services for young people","","Grants and Donations",04/09/2015 00:00:00,"6588928",5625,"YOUTH LINE LTD"
"Bracknell Forest Council","http://opendatacommunities.org/id/unitary-authority/bracknell-forest","Bracknell Forest Council","00MA","Business Support","Premises Development","","R&M - Reactive",27/07/2015 00:00:00,"6586748",1795.2,"GRAHAM ASSET MANAGEMENT LTD"
"Bracknell Forest Council","http://opendatacommunities.org/id/unitary-authority/bracknell-forest","Bracknell Forest Council","00MA","Business Support","Premises Development","","R&M - Reactive",27/07/2015 00:00:00,"6586749",1795.2,"GRAHAM ASSET MANAGEMENT LTD"
"Bracknell Forest Council","http://opendatacommunities.org/id/unitary-authority/bracknell-forest","Bracknell Forest Council","00MA","Children Looked After","Residential care","","Contracted Services",12/06/2015 00:00:00,"6584058",12267.14,"ORACLE CARE LIMITED"
"Bracknell Forest Council","http://opendatacommunities.org/id/unitary-authority/bracknell-forest","Bracknell Forest Council","00MA","Management and Support Services - CYPL","De-Delegated Expenditure","","Training Costs",01/09/2015 00:00:00,"6589045",880,"TEAM-TEACH LTD"
"Bracknell Forest Council","http://opendatacommunities.org/id/unitary-authority/bracknell-forest","Bracknell Forest Council","00MA","Safeguarding Children and Young People�s Services","Social Work","","Agency",10/06/2015 00:00:00,"6589073",1480,"AFFINITY WORKFORCE LIMITED"
"Bracknell Forest Council","http://opendatacommunities.org/id/unitary-authority/bracknell-forest","Bracknell Forest Council","00MA","Short Term Support Maximise Independence","Short Term Support to Maximise Independence","","Other Fees for Bought-in Services",04/09/2015 00:00:00,"6589100",861.8,"LIFE ENVIRONMENTAL SERVICES LTD"
"Bracknell Forest Council","http://opendatacommunities.org/id/unitary-authority/bracknell-forest","Bracknell Forest Council","00MA","Service Management & Support Services","Service Management & Support Services","","Computer Software Maintenance",21/08/2015 00:00:00,"6588417",1000,"NORTHGATE PUBLIC SERVICES (UK) LTD"
"Bracknell Forest Council","http://opendatacommunities.org/id/unitary-authority/bracknell-forest","Bracknell Forest Council","00MA","Short Term Support Maximise Independence","Short Term Support to Maximise Independence","","R&M - Reactive",18/08/2015 00:00:00,"6588714",1351.33,"BERKSHIRE MECHANICAL SERVICES"
"Bracknell Forest Council","http://opendatacommunities.org/id/unitary-authority/bracknell-forest","Bracknell Forest Council","00MA","Central Support Services - COF","Information Technology","","Telephones - Rental & Call Charges",11/08/2015 00:00:00,"6588178",3232.38,"VODAFONE LIMITED"
"Bracknell Forest Council","http://opendatacommunities.org/id/unitary-authority/bracknell-forest","Bracknell Forest Council","00MA","Central Support Services - COF","Information Technology","","Equipment - Rental",14/08/2015 00:00:00,"6588179",2567.67,"VODAFONE LIMITED"
"Bracknell Forest Council","http://opendatacommunities.org/id/unitary-authority/bracknell-forest","Bracknell Forest Council","00MA","Central Support Services - COF","Information Technology","","Telephones - Rental & Call Charges",09/08/2015 00:00:00,"6588181",9813.89,"BRITISH TELECOM"
"Bracknell Forest Council","http://opendatacommunities.org/id/unitary-authority/bracknell-forest","Bracknell Forest Council","00MA","Safeguarding Children and Young People�s Services","Social Work","","Agency",09/08/2015 00:00:00,"6587600",1600,"SEVEN RESOURCING LTD"
"Bracknell Forest Council","http://opendatacommunities.org/id/unitary-authority/bracknell-forest","Bracknell Forest Council","00MA","Management and Support Services - CYPL","Holding Codes - net nil","","External Agency Services",21/07/2015 00:00:00,"6586206",1216.49,"BROWNE JACOBSON LLP"
"Bracknell Forest Council","http://opendatacommunities.org/id/unitary-authority/bracknell-forest","Bracknell Forest Council","00MA","Recreation, Sports and Leisure","Golf Courses","","Cost of Goods Sold",06/05/2015 00:00:00,"6583517",528.47,"BRAND FUSION INTERNATIONAL LTD"
"Bracknell Forest Council","http://opendatacommunities.org/id/unitary-authority/bracknell-forest","Bracknell Forest Council","00MA","Business Support","Premises Development","","R&M - Reactive",16/09/2015 00:00:00,"6590965",1580,"BENVILLE AND MARSH LTD"
"Bracknell Forest Council","http://opendatacommunities.org/id/unitary-authority/bracknell-forest","Bracknell Forest Council","00MA","Family Support Services","Targeted Family Support","","Other Support to Clients",01/07/2015 00:00:00,"6590163",2454.17,"NEW ELIZABETH HOUSE HOTEL LTD"
"Bracknell Forest Council","http://opendatacommunities.org/id/unitary-authority/bracknell-forest","Bracknell Forest Council","00MA","Safeguarding Children and Young People�s Services","Social Work","","Agency",14/09/2015 00:00:00,"6590212",1600,"SEVEN RESOURCING LTD"
"Bracknell Forest Council","http://opendatacommunities.org/id/unitary-authority/bracknell-forest","Bracknell Forest Council","00MA","Safeguarding Children and Young People�s Services","Social Work","","Agency",12/07/2015 00:00:00,"6590213",3462.72,"TEMPEST RESOURCING"
"Bracknell Forest Council","http://opendatacommunities.org/id/unitary-authority/bracknell-forest","Bracknell Forest Council","00MA","Safeguarding Children and Young People�s Services","Social Work","","Agency",15/09/2015 00:00:00,"6590224",1500,"NONSTOP RECRUITMENT"
"Bracknell Forest Council","http://opendatacommunities.org/id/unitary-authority/bracknell-forest","Bracknell Forest Council","00MA","Safeguarding Children and Young People�s Services","Social Work","Independent Fostering (Non BFBC)","Consultants Fees",05/06/2015 00:00:00,"6582644",502.19,"SARAH TURNER"
"Bracknell Forest Council","http://opendatacommunities.org/id/unitary-authority/bracknell-forest","Bracknell Forest Council","00MA","Central Support Services - COF","Personnel","Independent Fostering (Non BFBC)","Training Costs",30/06/2015 00:00:00,"6584942",500,"REBECCA STEPHENS"
"Bracknell Forest Council","http://opendatacommunities.org/id/unitary-authority/bracknell-forest","Bracknell Forest Council","00MA","Libraries","Stock Ordering, Cataloguing & Distribution","Sec 28A - Day Centre Purchases","Audio/Visual materials",30/06/2015 00:00:00,"6584952",518.25,"JOHN GLEW"
"Bracknell Forest Council","http://opendatacommunities.org/id/unitary-authority/bracknell-forest","Bracknell Forest Council","00MA","Safeguarding Children and Young People�s Services","Social Work","Supporting SEN Pre 16","Consultants Fees",07/07/2015 00:00:00,"6584936",613.78,"JANET DACRE"
"Bracknell Forest Council","http://opendatacommunities.org/id/unitary-authority/bracknell-forest","Bracknell Forest Council","00MA","Safeguarding Children and Young People�s Services","Social Work","Sec 28A - Day Centre Purchases","Consultants Fees",07/07/2015 00:00:00,"6584946",546.56,"MR RICHARD CHARLES FOSTER"
"Bracknell Forest Council","http://opendatacommunities.org/id/unitary-authority/bracknell-forest","Bracknell Forest Council","00MA","NHS Health Check Programme","NHS Health Check Programme","Tree Service","Contracted Services",04/08/2015 00:00:00,"6588015",620,"DR. M VENKATA RAO"
"Bracknell Forest Council","http://opendatacommunities.org/id/unitary-authority/bracknell-forest","Bracknell Forest Council","00MA","Open Spaces","Countryside Recreation & Management","Tree Service","R&M - Planned",29/06/2015 00:00:00,"6584163",550,"DENNIS ARTIS"
"Bracknell Forest Council","http://opendatacommunities.org/id/unitary-authority/bracknell-forest","Bracknell Forest Council","00MA","Short Term Support Maximise Independence","Short Term Support to Maximise Independence","Stop Smoking Services & Interventions (Berks)","Other Support to Clients",01/07/2015 00:00:00,"6585031",1280,"MS CLARE EDWARDS"
"Bracknell Forest Council","http://opendatacommunities.org/id/unitary-authority/bracknell-forest","Bracknell Forest Council","00MA","Safeguarding Children and Young People�s Services","Social Work","Information Technology - Section","Consultants Fees",19/06/2015 00:00:00,"6584057",538.47,"MR RICHARD CHARLES FOSTER"
"Bracknell Forest Council","http://opendatacommunities.org/id/unitary-authority/bracknell-forest","Bracknell Forest Council","00MA","Cemeteries, Crematoria & Mortuary Services","Cemeteries & Crematorium","Heathlands EPH","Contracted Services",30/06/2015 00:00:00,"6584690",840,"NEIL CURTIS"
"Bracknell Forest Council","http://opendatacommunities.org/id/unitary-authority/bracknell-forest","Bracknell Forest Council","00MA","Open Spaces","Community Parks & Open Spaces","Heathlands EPH","Contracted Services",14/07/2015 00:00:00,"6585884",700,"DENNIS ARTIS"
"Bracknell Forest Council","http://opendatacommunities.org/id/unitary-authority/bracknell-forest","Bracknell Forest Council","00MA","Central Support Services - COF","Personnel","Home to School Transport","Training Costs",30/06/2015 00:00:00,"6584641",1050,"D R TAYLOR"
"Bracknell Forest Council","http://opendatacommunities.org/id/unitary-authority/bracknell-forest","Bracknell Forest Council","00MA","Support Services & Management Costs","Training","Home to School Transport","Training Costs",09/09/2015 00:00:00,"6589514",900,"V. CRUMP"
"Bracknell Forest Council","http://opendatacommunities.org/id/unitary-authority/bracknell-forest","Bracknell Forest Council","00MA","Support Services & Management Costs","Training","Mainstream - Element 3 top up non BFC pre 16","Training Costs",09/09/2015 00:00:00,"6589516",500,"CAROLINE SKINNER"
"Bracknell Forest Council","http://opendatacommunities.org/id/unitary-authority/bracknell-forest","Bracknell Forest Council","00MA","Recreation, Sports and Leisure","Golf Courses","","Cost of Goods Sold",28/08/2015 00:00:00,"6590292",829.1,"UNDER ARMOUR EUROPE"
"Bracknell Forest Council","http://opendatacommunities.org/id/unitary-authority/bracknell-forest","Bracknell Forest Council","00MA","Recreation, Sports and Leisure","Golf Courses","","Cost of Goods Sold",31/08/2015 00:00:00,"6590293",2162.8,"UNDER ARMOUR EUROPE"
"Bracknell Forest Council","http://opendatacommunities.org/id/unitary-authority/bracknell-forest","Bracknell Forest Council","00MA","Sure Start Children�s Centres","Centrally managed expenditure - children�s centres","","Other Fees for Bought-in Services",17/08/2015 00:00:00,"6588769",588,"MAGICAL MOMENTS CRECHE"
"Bracknell Forest Council","http://opendatacommunities.org/id/unitary-authority/bracknell-forest","Bracknell Forest Council","00MA","Children Looked After","Residential care","","Contracted Services",06/07/2015 00:00:00,"6586734",18857.14,"OAK HOUSE"
"Bracknell Forest Council","http://opendatacommunities.org/id/unitary-authority/bracknell-forest","Bracknell Forest Council","00MA","Libraries","Stock Ordering, Cataloguing & Distribution","","Audio/Visual materials",23/07/2015 00:00:00,"6586738",780,"BERTRAM TRADING LTD"
"Bracknell Forest Council","http://opendatacommunities.org/id/unitary-authority/bracknell-forest","Bracknell Forest Council","00MA","Libraries","Stock Ordering, Cataloguing & Distribution","","Audio/Visual materials",27/07/2015 00:00:00,"6586739",540,"BERTRAM TRADING LTD"
"Bracknell Forest Council","http://opendatacommunities.org/id/unitary-authority/bracknell-forest","Bracknell Forest Council","00MA","Business Support","Premises Development","","R&M - Planned",27/07/2015 00:00:00,"6586742",1281.5,"GRAHAM ASSET MANAGEMENT LTD"
"Bracknell Forest Council","http://opendatacommunities.org/id/unitary-authority/bracknell-forest","Bracknell Forest Council","00MA","Business Support","Premises Development","","R&M - Planned",27/07/2015 00:00:00,"6586742",1413.5,"GRAHAM ASSET MANAGEMENT LTD"
"Bracknell Forest Council","http://opendatacommunities.org/id/unitary-authority/bracknell-forest","Bracknell Forest Council","00MA","Adults (18-64)","Long Term Support - Community:Supported Living","","Contracted Services",19/06/2015 00:00:00,"6588153",1400.4,"DISABILITY INITIATIVE"
"Bracknell Forest Council","http://opendatacommunities.org/id/unitary-authority/bracknell-forest","Bracknell Forest Council","00MA","Adults (18-64)","Long term Support - Community:Homecare","","Taxi Charges",30/06/2015 00:00:00,"6588186",1771,"JJM TAXIS & ZULU CARS LTD"
"Bracknell Forest Council","http://opendatacommunities.org/id/unitary-authority/bracknell-forest","Bracknell Forest Council","00MA","Management and Support Services - CYPL","Strategy, Resources and Early Interventions","","Free Meals Subsidy",10/07/2015 00:00:00,"6585342",105714.65,"ISS MEDICLEAN LIMITED"
"Bracknell Forest Council","http://opendatacommunities.org/id/unitary-authority/bracknell-forest","Bracknell Forest Council","00MA","Management and Support Services - CYPL","Strategy, Resources and Early Interventions","","Subsidised Staff Services",10/07/2015 00:00:00,"6585342",5101.7,"ISS MEDICLEAN LIMITED"
"Bracknell Forest Council","http://opendatacommunities.org/id/unitary-authority/bracknell-forest","Bracknell Forest Council","00MA","Management and Support Services - CYPL","Strategy, Resources and Early Interventions","","Catering - Payments to Contractors",10/07/2015 00:00:00,"6585342",15821.76,"ISS MEDICLEAN LIMITED"
"Bracknell Forest Council","http://opendatacommunities.org/id/unitary-authority/bracknell-forest","Bracknell Forest Council","00MA","Management and Support Services - CYPL","Strategy, Resources and Early Interventions","","Free Meals Subsidy",10/07/2015 00:00:00,"6585342",32737.44,"ISS MEDICLEAN LIMITED"
"Bracknell Forest Council","http://opendatacommunities.org/id/unitary-authority/bracknell-forest","Bracknell Forest Council","00MA","Safeguarding Children and Young People�s Services","Social Work","","Agency",03/05/2015 00:00:00,"6583459",1467.29,"SEVEN RESOURCING LTD"
"Bracknell Forest Council","http://opendatacommunities.org/id/unitary-authority/bracknell-forest","Bracknell Forest Council","00MA","Cemeteries, Crematoria & Mortuary Services","Cemeteries & Crematorium","Mainstream - Element 3 top up non BFC pre 16","Contracted Services",30/08/2015 00:00:00,"6589763",1400,"NEIL CURTIS"
"Bracknell Forest Council","http://opendatacommunities.org/id/unitary-authority/bracknell-forest","Bracknell Forest Council","00MA","Cemeteries, Crematoria & Mortuary Services","Cemeteries & Crematorium","SSCO Partnership Fund","Contracted Services",30/07/2015 00:00:00,"6587630",560,"NEIL CURTIS"
"Bracknell Forest Council","http://opendatacommunities.org/id/unitary-authority/bracknell-forest","Bracknell Forest Council","00MA","Services for Young People","Targeted services for young people","Certificated Contract Payments","Primary Care Trust",31/07/2015 00:00:00,"6586626",800,"DR SARAH TILLETT"
"Bracknell Forest Council","http://opendatacommunities.org/id/unitary-authority/bracknell-forest","Bracknell Forest Council","00MA","Social Care Activities","Social Care Activities","Edgbarrow Sports Centre","Refreshments",07/03/2015 00:00:00,"6585735",660,"EILEEN M CHARLTON"
"Bracknell Forest Council","http://opendatacommunities.org/id/unitary-authority/bracknell-forest","Bracknell Forest Council","00MA","Open Spaces","Countryside Recreation & Management","Certificated Contract Payments","R&M - Planned",27/08/2015 00:00:00,"6588570",700,"DENNIS ARTIS"
"Bracknell Forest Council","http://opendatacommunities.org/id/unitary-authority/bracknell-forest","Bracknell Forest Council","00MA","Open Spaces","Community Parks & Open Spaces","Certificated Contract Payments","Contracted Services",11/05/2015 00:00:00,"6581485",860,"DENNIS ARTIS"
"Bracknell Forest Council","http://opendatacommunities.org/id/unitary-authority/bracknell-forest","Bracknell Forest Council","00MA","Open Spaces","Community Parks & Open Spaces","CAF Team","Contracted Services",29/06/2015 00:00:00,"6584730",1240,"DENNIS ARTIS"
"Bracknell Forest Council","http://opendatacommunities.org/id/unitary-authority/bracknell-forest","Bracknell Forest Council","00MA","Open Spaces","Community Parks & Open Spaces","Certificated Contract Payments","Contracted Services",23/06/2015 00:00:00,"6584731",850,"DENNIS ARTIS"
"Bracknell Forest Council","http://opendatacommunities.org/id/unitary-authority/bracknell-forest","Bracknell Forest Council","00MA","Libraries","Stock Ordering, Cataloguing & Distribution","Supporting SEN - Post 16","Audio/Visual materials",30/06/2015 00:00:00,"6585869",519.35,"BOLINDA"
"Bracknell Forest Council","http://opendatacommunities.org/id/unitary-authority/bracknell-forest","Bracknell Forest Council","00MA","Cemeteries, Crematoria & Mortuary Services","Cemeteries & Crematorium","Supporting SEN - Post 16","R&M - Reactive",09/06/2015 00:00:00,"6584695",1680,"MRS JACQUELINE MARTIN"
"Bracknell Forest Council","http://opendatacommunities.org/id/unitary-authority/bracknell-forest","Bracknell Forest Council","00MA","Other Education and Community Budget","Service strategy and other education functions","Supporting SEN - Post 16","Translating & Interpreting",03/07/2015 00:00:00,"6584668",1548,"ROSANNA HARRISON"
"Bracknell Forest Council","http://opendatacommunities.org/id/unitary-authority/bracknell-forest","Bracknell Forest Council","00MA","Social Care Activities","Social Care Activities","Legal Services","Other Support to Clients",30/01/2015 00:00:00,"6586014",600,"JOHN BROADBENT"
"Bracknell Forest Council","http://opendatacommunities.org/id/unitary-authority/bracknell-forest","Bracknell Forest Council","00MA","Open Spaces","Community Parks & Open Spaces","Highways Contract Mobilisation Costs","Contracted Services",20/07/2015 00:00:00,"6587766",1130,"DENNIS ARTIS"
"Bracknell Forest Council","http://opendatacommunities.org/id/unitary-authority/bracknell-forest","Bracknell Forest Council","00MA","Open Spaces","Community Parks & Open Spaces","School Catering","Contracted Services",14/07/2015 00:00:00,"6587767",680,"DENNIS ARTIS"
"Bracknell Forest Council","http://opendatacommunities.org/id/unitary-authority/bracknell-forest","Bracknell Forest Council","00MA","Children Looked After","Other services for LAC","","Contracted Services",11/06/2015 00:00:00,"6583539",5550,"CARE ADVOCATES LTD"
"Bracknell Forest Council","http://opendatacommunities.org/id/unitary-authority/bracknell-forest","Bracknell Forest Council","00MA","Business Support","Premises Development","","Other Fees for Bought-in Services",31/03/2015 00:00:00,"6583819",527,"ELITE SECURITY GROUP"
"Bracknell Forest Council","http://opendatacommunities.org/id/unitary-authority/bracknell-forest","Bracknell Forest Council","00MA","Management and Support Services - CYPL","Strategy, Resources and Early Interventions","","Catering - Payments to Contractors",10/07/2015 00:00:00,"6585342",43888.25,"ISS MEDICLEAN LIMITED"
"Bracknell Forest Council","http://opendatacommunities.org/id/unitary-authority/bracknell-forest","Bracknell Forest Council","00MA","Management and Support Services - CYPL","De-Delegated Expenditure","","Taxi Fares - Home/School Transport",01/07/2015 00:00:00,"6585705",8405.27,"BERKSHIRE EDUCATION TRAVEL"
"Bracknell Forest Council","http://opendatacommunities.org/id/unitary-authority/bracknell-forest","Bracknell Forest Council","00MA","Recreation, Sports and Leisure","Golf Courses","","Publicity & Marketing",09/06/2015 00:00:00,"6584841",1144,"ETHICSTAR LTD"
"Bracknell Forest Council","http://opendatacommunities.org/id/unitary-authority/bracknell-forest","Bracknell Forest Council","00MA","Recreation, Sports and Leisure","Golf Courses","","R&M - Reactive",07/07/2015 00:00:00,"6584845",1670,"AJW CONSTRUCTION LTD"
"Bracknell Forest Council","http://opendatacommunities.org/id/unitary-authority/bracknell-forest","Bracknell Forest Council","00MA","Recreation, Sports and Leisure","Golf Courses","","R&M - Service Contracts",15/07/2015 00:00:00,"6585713",540,"HUXLEY GOLF"
"Bracknell Forest Council","http://opendatacommunities.org/id/unitary-authority/bracknell-forest","Bracknell Forest Council","00MA","Recreation, Sports and Leisure","Golf Courses","","Materials",09/07/2015 00:00:00,"6585714",645.5,"MAXSTIM LTD"
"Bracknell Forest Council","http://opendatacommunities.org/id/unitary-authority/bracknell-forest","Bracknell Forest Council","00MA","Culture and Heritage","Heritage Museums & Galleries","","Equipment - Rental",15/06/2015 00:00:00,"6583307",2833.33,"TECHNIQUEST LTD"
"Bracknell Forest Council","http://opendatacommunities.org/id/unitary-authority/bracknell-forest","Bracknell Forest Council","00MA","Management and Support Services - CYPL","CYPL Department Management Team","","Consultants Fees",08/06/2015 00:00:00,"6582361",6661.9,"HAZLEBURY CONSULTING LTD"
"Bracknell Forest Council","http://opendatacommunities.org/id/unitary-authority/bracknell-forest","Bracknell Forest Council","00MA","Children Looked After","Residential care","","Contracted Services",29/06/2015 00:00:00,"6584787",4200,"BENECARE LTD"
"Bracknell Forest Council","http://opendatacommunities.org/id/unitary-authority/bracknell-forest","Bracknell Forest Council","00MA","Recreation, Sports and Leisure","Golf Courses","","Cost of Goods Sold",05/06/2015 00:00:00,"6584850",603.98,"MOTOCADDY LTD"
"Bracknell Forest Council","http://opendatacommunities.org/id/unitary-authority/bracknell-forest","Bracknell Forest Council","00MA","Business Support","Premises Development","","R&M - Reactive",27/07/2015 00:00:00,"6586744",8996,"GRAHAM ASSET MANAGEMENT LTD"
"Bracknell Forest Council","http://opendatacommunities.org/id/unitary-authority/bracknell-forest","Bracknell Forest Council","00MA","Business Support","Premises Development","","R&M - Reactive",27/07/2015 00:00:00,"6586745",994,"GRAHAM ASSET MANAGEMENT LTD"
"Bracknell Forest Council","http://opendatacommunities.org/id/unitary-authority/bracknell-forest","Bracknell Forest Council","00MA","Business Support","Premises Development","","R&M - Reactive",27/07/2015 00:00:00,"6586746",507.14,"GRAHAM ASSET MANAGEMENT LTD"
"Bracknell Forest Council","http://opendatacommunities.org/id/unitary-authority/bracknell-forest","Bracknell Forest Council","00MA","Business Support","Premises Development","","R&M - Reactive",27/07/2015 00:00:00,"6586747",1206.78,"GRAHAM ASSET MANAGEMENT LTD"
"Bracknell Forest Council","http://opendatacommunities.org/id/unitary-authority/bracknell-forest","Bracknell Forest Council","00MA","General Grants, Bequests & Donations","General Grants, Bequests & Donations","","Other Fees for Bought-in Services",09/09/2015 00:00:00,"6589315",2560,"1ST OWLSMOOR SCOUT GROUP"
"Bracknell Forest Council","http://opendatacommunities.org/id/unitary-authority/bracknell-forest","Bracknell Forest Council","00MA","Other Education and Community Budget","Service strategy and other education functions","","Recruitment Expenses",30/07/2015 00:00:00,"6587170",728.75,"CAPITA RESOURCING LTD"
"Bracknell Forest Council","http://opendatacommunities.org/id/unitary-authority/bracknell-forest","Bracknell Forest Council","00MA","Services for Young People","Universal services for young people","","Clothing & Uniform - Staff",02/07/2015 00:00:00,"6587259",556,"MOTIF8 EMBROIDERY & PRINT LIMITED"
"Bracknell Forest Council","http://opendatacommunities.org/id/unitary-authority/bracknell-forest","Bracknell Forest Council","00MA","Recreation, Sports and Leisure","Sports Development & Community Recreations","","Agency",11/06/2015 00:00:00,"6583567",4095,"EAST BERKSHIRE CRICKET COACHING"
"Bracknell Forest Council","http://opendatacommunities.org/id/unitary-authority/bracknell-forest","Bracknell Forest Council","00MA","Holding Accounts not in Budget Book - COF","General Holding Accounts","","Contract Cleaning",31/08/2015 00:00:00,"6589334",98751.28,"KGB CLEANING SOUTH WEST LIMITED"
"Bracknell Forest Council","http://opendatacommunities.org/id/unitary-authority/bracknell-forest","Bracknell Forest Council","00MA","Recreation, Sports and Leisure","Golf Courses","","Cost of Goods Sold",13/03/2015 00:00:00,"6582594",1194.26,"ACUSHNET EUROPE LTD"
"Bracknell Forest Council","http://opendatacommunities.org/id/unitary-authority/bracknell-forest","Bracknell Forest Council","00MA","Conducting Elections","Other Elections","","Postage",11/05/2015 00:00:00,"6583292",2070.64,"ROYAL MAIL GROUP LTD"
"Bracknell Forest Council","http://opendatacommunities.org/id/unitary-authority/bracknell-forest","Bracknell Forest Council","00MA","Safeguarding Children and Young People�s Services","Local safeguarding children board","","Consultants Fees",11/07/2015 00:00:00,"6585089",4250,"ALEX WALTERS CONSULTANCY LTD"
"Bracknell Forest Council","http://opendatacommunities.org/id/unitary-authority/bracknell-forest","Bracknell Forest Council","00MA","Housing Mangt & Support Services (HMSS)","Housing Department Support Staff & Costs","","Training Costs",13/07/2015 00:00:00,"6586663",595,"TRAINING SYNERGY"
"Bracknell Forest Council","http://opendatacommunities.org/id/unitary-authority/bracknell-forest","Bracknell Forest Council","00MA","Children Looked After","Residential care","","Contracted Services",11/08/2015 00:00:00,"6588402",11871.43,"ORACLE CARE LIMITED"
"Bracknell Forest Council","http://opendatacommunities.org/id/unitary-authority/bracknell-forest","Bracknell Forest Council","00MA","Children Looked After","Other services for LAC","","Contracted Services",13/02/2015 00:00:00,"6588619",2284.8,"MOVING ON CARE MANAGEMENT LTD"
"Bracknell Forest Council","http://opendatacommunities.org/id/unitary-authority/bracknell-forest","Bracknell Forest Council","00MA","Children Looked After","Residential care","","Contracted Services",13/02/2015 00:00:00,"6588621",2284.8,"MOVING ON CARE MANAGEMENT LTD"
